Body Name,Body,Service Area Catergorisation,Service Division Catergorisation,Responsible Unit,Expenses Type,Detailed Expenses Type,Expenses Code,Date,Transaction Number,Amount,Capital / Revenue,Supplier Name,Supplier ID
North East Lincolnshire Council,http://statistics.data.gov.uk/id/local-authority/00FC),Cap Dep Chief Exec,Ad Adult Serv-Hlth Improvement,Hps-Disabled Fac. Grants,Cap Grants To O/Side Sources,Cap Grants To O/Side Sources,YJ101,11/01/2018,498535,7509.03,CAPITAL,F R TOWNSEND & CO LTD,104217
North East Lincolnshire Council,http://statistics.data.gov.uk/id/local-authority/00FC),Cap Dep Chief Exec,Ad Adult Serv-Hlth Improvement,Hps-Disabled Fac. Grants,Cap Grants To O/Side Sources,Cap Grants To O/Side Sources,YJ101,23/01/2018,499871,2995,CAPITAL,NEWGLAZE,100642
North East Lincolnshire Council,http://statistics.data.gov.uk/id/local-authority/00FC),Cap Dep Chief Exec,Ad Adult Serv-Hlth Improvement,Hps-Disabled Fac. Grants,Cap Grants To O/Side Sources,Cap Grants To O/Side Sources,YJ101,04/01/2018,497634,3910.13,CAPITAL,MR PAUL MEAKIN,136463
North East Lincolnshire Council,http://statistics.data.gov.uk/id/local-authority/00FC),Cap Dep Chief Exec,Ad Adult Serv-Hlth Improvement,Hps-Disabled Fac. Grants,Cap Grants To O/Side Sources,Cap Grants To O/Side Sources,YJ101,04/01/2018,497606,4707.45,CAPITAL,OBAM LIFT SERVICES LTD,112666
North East Lincolnshire Council,http://statistics.data.gov.uk/id/local-authority/00FC),Cap Dep Chief Exec,Ad Adult Serv-Hlth Improvement,Hps-Disabled Fac. Grants,Cap Grants To O/Side Sources,Cap Grants To O/Side Sources,YJ101,31/01/2018,500919,1440.3,CAPITAL,P G INGOLDBY & SONS LTD,100591
North East Lincolnshire Council,http://statistics.data.gov.uk/id/local-authority/00FC),Cap Dep Chief Exec,Ad Adult Serv-Hlth Improvement,Hps-Disabled Fac. Grants,Cap Grants To O/Side Sources,Cap Grants To O/Side Sources,YJ101,04/01/2018,497497,4283,CAPITAL,VIC HANSEN BUILDING & JOINERY LTD,103981
North East Lincolnshire Council,http://statistics.data.gov.uk/id/local-authority/00FC),Cap Dep Chief Exec,Ad Adult Serv-Hlth Improvement,Hps-Disabled Fac. Grants,Cap Grants To O/Side Sources,Cap Grants To O/Side Sources,YJ101,08/01/2018,497678,5956.21,CAPITAL,KES BUILDING MAINTENANCE LIMITED,100786
North East Lincolnshire Council,http://statistics.data.gov.uk/id/local-authority/00FC),Cap Dep Chief Exec,Ad Adult Serv-Hlth Improvement,Hps-Disabled Fac. Grants,Cap Grants To O/Side Sources,Cap Grants To O/Side Sources,YJ101,04/01/2018,497544,3895,CAPITAL,OBAM LIFT SERVICES LTD,112666
North East Lincolnshire Council,http://statistics.data.gov.uk/id/local-authority/00FC),Cap Dep Chief Exec,Ad Adult Serv-Hlth Improvement,Hps-Disabled Fac. Grants,Cap Grants To O/Side Sources,Cap Grants To O/Side Sources,YJ101,04/01/2018,497638,8178.47,CAPITAL,ENGIE SERVICES LTD,133267
North East Lincolnshire Council,http://statistics.data.gov.uk/id/local-authority/00FC),Cap Dep Chief Exec,Ad Adult Serv-Hlth Improvement,Hps-Disabled Fac. Grants,Cap Grants To O/Side Sources,Cap Grants To O/Side Sources,YJ101,22/01/2018,499173,3972,CAPITAL,OBAM LIFT SERVICES LTD,112666
North East Lincolnshire Council,http://statistics.data.gov.uk/id/local-authority/00FC),Cap Dep Chief Exec,Ad Adult Serv-Hlth Improvement,Hps-Disabled Fac. Grants,Cap Grants To O/Side Sources,Cap Grants To O/Side Sources,YJ101,04/01/2018,497534,24955.64,CAPITAL,MARK BENNETT,101838
North East Lincolnshire Council,http://statistics.data.gov.uk/id/local-authority/00FC),Cap Dep Chief Exec,Ad Adult Serv-Hlth Improvement,Hps-Disabled Fac. Grants,Cap Grants To O/Side Sources,Cap Grants To O/Side Sources,YJ101,04/01/2018,497604,4445,CAPITAL,OBAM LIFT SERVICES LTD,112666
North East Lincolnshire Council,http://statistics.data.gov.uk/id/local-authority/00FC),Cap Dep Chief Exec,Ad Adult Serv-Hlth Improvement,Hps-Disabled Fac. Grants,Cap Grants To O/Side Sources,Cap Grants To O/Side Sources,YJ101,04/01/2018,497582,1744.5,CAPITAL,VIC HANSEN BUILDING & JOINERY LTD,103981
North East Lincolnshire Council,http://statistics.data.gov.uk/id/local-authority/00FC),Cap Dep Chief Exec,Ad Adult Serv-Hlth Improvement,Hps-Disabled Fac. Grants,Cap Grants To O/Side Sources,Cap Grants To O/Side Sources,YJ101,04/01/2018,497605,1445,CAPITAL,HANDICARE ACCESSIIBILITY LTD,102647
North East Lincolnshire Council,http://statistics.data.gov.uk/id/local-authority/00FC),Cap Dep Chief Exec,Ad Adult Serv-Hlth Improvement,Hps-Disabled Fac. Grants,Cap Grants To O/Side Sources,Cap Grants To O/Side Sources,YJ101,29/01/2018,500832,895,CAPITAL,HANDICARE ACCESSIIBILITY LTD,102647
North East Lincolnshire Council,http://statistics.data.gov.uk/id/local-authority/00FC),Cap Dep Chief Exec,Ad Adult Serv-Hlth Improvement,Hps-Disabled Fac. Grants,Cap Grants To O/Side Sources,Cap Grants To O/Side Sources,YJ101,29/01/2018,500624,6302.68,CAPITAL,ABLE 4 ENTERPRISE LTD,120159
North East Lincolnshire Council,http://statistics.data.gov.uk/id/local-authority/00FC),Cap Dep Chief Exec,Ad Adult Serv-Hlth Improvement,Hps-Disabled Fac. Grants,Cap Grants To O/Side Sources,Cap Grants To O/Side Sources,YJ101,16/01/2018,499104,3935,CAPITAL,TOTAL HYGIENE LTD,100849
North East Lincolnshire Council,http://statistics.data.gov.uk/id/local-authority/00FC),Cap Dep Chief Exec,Ad Adult Serv-Hlth Improvement,Hps-Disabled Fac. Grants,Cap Grants To O/Side Sources,Cap Grants To O/Side Sources,YJ101,25/01/2018,500328,1565.25,CAPITAL,PRISM MEDICAL UK LTD,119507
North East Lincolnshire Council,http://statistics.data.gov.uk/id/local-authority/00FC),Cap Dep Chief Exec,Ad Adult Serv-Hlth Improvement,Hps-Disabled Fac. Grants,Cap Grants To O/Side Sources,Cap Grants To O/Side Sources,YJ101,04/01/2018,497526,1519,CAPITAL,OBAM LIFT SERVICES LTD,112666
North East Lincolnshire Council,http://statistics.data.gov.uk/id/local-authority/00FC),Cap Dep Chief Exec,Ad Adult Serv-Hlth Improvement,Hps-Disabled Fac. Grants,Cap Grants To O/Side Sources,Cap Grants To O/Side Sources,YJ101,25/01/2018,500362,7061.9,CAPITAL,P G INGOLDBY & SONS LTD,100591
North East Lincolnshire Council,http://statistics.data.gov.uk/id/local-authority/00FC),Cap Dep Chief Exec,Ad Adult Serv-Hlth Improvement,Hps-Disabled Fac. Grants,Cap Grants To O/Side Sources,Cap Grants To O/Side Sources,YJ101,29/01/2018,500819,5500.05,CAPITAL,VIC HANSEN BUILDING & JOINERY LTD,103981
North East Lincolnshire Council,http://statistics.data.gov.uk/id/local-authority/00FC),Cap Dep Chief Exec,Ad Adult Serv-Hlth Improvement,Hps-Disabled Fac. Grants,Cap Grants To O/Side Sources,Cap Grants To O/Side Sources,YJ101,29/01/2018,500598,5089.51,CAPITAL,ABLE 4 ENTERPRISE LTD,120159
North East Lincolnshire Council,http://statistics.data.gov.uk/id/local-authority/00FC),Cap Dep Chief Exec,Ad Adult Serv-Hlth Improvement,Hps-Disabled Fac. Grants,Cap Grants To O/Side Sources,Cap Grants To O/Side Sources,YJ101,11/01/2018,498572,1639.6,CAPITAL,PRISM MEDICAL UK LTD,119507
North East Lincolnshire Council,http://statistics.data.gov.uk/id/local-authority/00FC),Cap Dep Chief Exec,Ad Adult Serv-Hlth Improvement,Hps-Disabled Fac. Grants,Cap Grants To O/Side Sources,Cap Grants To O/Side Sources,YJ101,22/01/2018,499209,1865,CAPITAL,HANDICARE ACCESSIIBILITY LTD,102647
North East Lincolnshire Council,http://statistics.data.gov.uk/id/local-authority/00FC),Cap Dep Chief Exec,Ad Adult Serv-Hlth Improvement,Hps-Disabled Fac. Grants,Cap Grants To O/Side Sources,Cap Grants To O/Side Sources,YJ101,16/01/2018,499099,4238,CAPITAL,TOTAL HYGIENE LTD,100849
North East Lincolnshire Council,http://statistics.data.gov.uk/id/local-authority/00FC),Cap Dep Chief Exec,Ad Adult Serv-Hlth Improvement,Hps-Disabled Fac. Grants,Cap Grants To O/Side Sources,Cap Grants To O/Side Sources,YJ101,08/01/2018,497475,9245,CAPITAL,OBAM LIFT SERVICES LTD,112666
North East Lincolnshire Council,http://statistics.data.gov.uk/id/local-authority/00FC),Cap Dep Chief Exec,Ad Adult Serv-Hlth Improvement,Housing Assist Grants And Loan,Cap Grants To O/Side Sources,Cap Grants To O/Side Sources,YJ101,04/01/2018,497638,1554.12,CAPITAL,ENGIE SERVICES LTD,133267
North East Lincolnshire Council,http://statistics.data.gov.uk/id/local-authority/00FC),Cap Dep Chief Exec,Ad Adult Serv-Hlth Improvement,Housing Assist Grants And Loan,Cap Grants To O/Side Sources,Cap Grants To O/Side Sources,YJ101,16/01/2018,498494,4068,CAPITAL,VIC HANSEN BUILDING & JOINERY LTD,103981
North East Lincolnshire Council,http://statistics.data.gov.uk/id/local-authority/00FC),Cap Dep Chief Exec,Ad Adult Serv-Hlth Improvement,Housing Assist Grants And Loan,Cap Grants To O/Side Sources,Cap Grants To O/Side Sources,YJ101,11/01/2018,498769,1343.94,CAPITAL,YES ENERGY SOLUTIONS,138575
North East Lincolnshire Council,http://statistics.data.gov.uk/id/local-authority/00FC),Cap Dep Chief Exec,Ad Adult Serv-Hlth Improvement,Housing Assist Grants And Loan,Cap Grants To O/Side Sources,Cap Grants To O/Side Sources,YJ101,31/01/2018,501360,6222,CAPITAL,DERRICK SAXBY,138715
North East Lincolnshire Council,http://statistics.data.gov.uk/id/local-authority/00FC),Cap Dep Chief Exec,Ad Adult Serv-Hlth Improvement,Housing Assist Grants And Loan,Cap Grants To O/Side Sources,Cap Grants To O/Side Sources,YJ101,31/01/2018,500986,4734,CAPITAL,ETON-LINCS LIMITED,101510
North East Lincolnshire Council,http://statistics.data.gov.uk/id/local-authority/00FC),Cap Dep Chief Exec,Ad Adult Serv-Hlth Improvement,Housing Assist Grants And Loan,Cap Grants To O/Side Sources,Cap Grants To O/Side Sources,YJ101,23/01/2018,499576,1130.16,CAPITAL,LOCAL WORLD LIMITED,118774
North East Lincolnshire Council,http://statistics.data.gov.uk/id/local-authority/00FC),Cap Dep Chief Exec,Ad Adult Serv-Hlth Improvement,Housing Assist Grants And Loan,Cap Grants To O/Side Sources,Cap Grants To O/Side Sources,YJ101,23/01/2018,499575,1130.16,CAPITAL,LOCAL WORLD LIMITED,118774
North East Lincolnshire Council,http://statistics.data.gov.uk/id/local-authority/00FC),Cap Dep Chief Exec,Director Of Public Health,New Leisure Centre At Grimsby,Cap Land/Build-Build Enh Wrk,Cap Land/Build-Build Enh Wrk,YA102,15/01/2018,499197,83619.5,CAPITAL,INTERSERVE CONSTRUCTION,128140
North East Lincolnshire Council,http://statistics.data.gov.uk/id/local-authority/00FC),Cap Dep Chief Exec,Director Of Public Health,New Leisure Centre At Grimsby,Cap Land/Build-Build Enh Wrk,Cap Land/Build-Build Enh Wrk,YA102,11/01/2018,494739,6952,CAPITAL,NIGEL SMITH PLUMBING & MECHANICAL SERVICES LT,138200
North East Lincolnshire Council,http://statistics.data.gov.uk/id/local-authority/00FC),Cap Dep Chief Exec,Director Of Public Health,Drug & Alcohol Recovery,Cap Land/Build-Build Enh Wrk,Cap Land/Build-Build Enh Wrk,YA102,25/01/2018,500434,3205.48,CAPITAL,JACKSON GREEN & PRESTON,111045
North East Lincolnshire Council,http://statistics.data.gov.uk/id/local-authority/00FC),Cap Dep Chief Exec,Director Of Public Health,Playing Pitch Reprovision,Cap Land/Build-Build Enh Wrk,Cap Land/Build-Build Enh Wrk,YA102,18/01/2018,499524,1794,CAPITAL,ROBINSON LOW FRANCIS LLP,136534
North East Lincolnshire Council,http://statistics.data.gov.uk/id/local-authority/00FC),Chief Executive,Director Of Finance,Backlog Maintenance,Cap Land/Build-Build Enh Wrk,Cap Land/Build-Build Enh Wrk,YA102,15/01/2018,499136,10500,CAPITAL,ALFRED BAGNALL & SONS (EAST MIDLANDS) LTD,139075
North East Lincolnshire Council,http://statistics.data.gov.uk/id/local-authority/00FC),Chief Executive,Director Of Finance,Backlog Maintenance,Cap Land/Build-Build Enh Wrk,Cap Land/Build-Build Enh Wrk,YA102,25/01/2018,499611,1392,CAPITAL,LINCS ELECTRICAL SERVICES LTD,102044
North East Lincolnshire Council,http://statistics.data.gov.uk/id/local-authority/00FC),Chief Executive,Director Of Finance,Backlog Maintenance,Cap Land/Build-Build Enh Wrk,Cap Land/Build-Build Enh Wrk,YA102,04/01/2018,497387,385,CAPITAL,ETON-LINCS LIMITED,101510
North East Lincolnshire Council,http://statistics.data.gov.uk/id/local-authority/00FC),Chief Executive,Director Of Finance,Backlog Maintenance,Cap Land/Build-Build Enh Wrk,Cap Land/Build-Build Enh Wrk,YA102,25/01/2018,500393,2083,CAPITAL,ENGIE SERVICES LTD,133267
North East Lincolnshire Council,http://statistics.data.gov.uk/id/local-authority/00FC),Chief Executive,Director Of Finance,Backlog Maintenance,Cap Land/Build-Prof Fees,Cap Land/Build-Prof Fees,YA103,04/01/2018,496897,374.12,CAPITAL,ENGIE SERVICES LTD,133267
North East Lincolnshire Council,http://statistics.data.gov.uk/id/local-authority/00FC),Chief Executive,Director Of Finance,Backlog Maintenance,Cap Land/Build-Prof Fees,Cap Land/Build-Prof Fees,YA103,29/01/2018,500781,4551.49,CAPITAL,ENGIE SERVICES LTD,133267
North East Lincolnshire Council,http://statistics.data.gov.uk/id/local-authority/00FC),Chief Executive,Director Of Finance,Backlog Maintenance,Cap Land/Build-Prof Fees,Cap Land/Build-Prof Fees,YA103,29/01/2018,500782,783.32,CAPITAL,ENGIE SERVICES LTD,133267
North East Lincolnshire Council,http://statistics.data.gov.uk/id/local-authority/00FC),Chief Executive,Director Of Finance,Backlog Maintenance,Cap Land/Build-Prof Fees,Cap Land/Build-Prof Fees,YA103,29/01/2018,500783,11454.15,CAPITAL,ENGIE SERVICES LTD,133267
North East Lincolnshire Council,http://statistics.data.gov.uk/id/local-authority/00FC),Chief Executive,Director Of Finance,Backlog Maintenance,Cap Land/Build-Prof Fees,Cap Land/Build-Prof Fees,YA103,31/01/2018,500784,8660,CAPITAL,ENGIE SERVICES LTD,133267
North East Lincolnshire Council,http://statistics.data.gov.uk/id/local-authority/00FC),Chief Executive,Director Of Finance,Backlog Maintenance,Cap Land/Build-Build Enh Wrk,Cap Land/Build-Build Enh Wrk,YA102,18/01/2018,499608,3545,CAPITAL,ETON-LINCS LIMITED,101510
North East Lincolnshire Council,http://statistics.data.gov.uk/id/local-authority/00FC),Chief Executive,Director Of Finance,Property Rationalisation Prog,Cap Land/Build-Prof Fees,Cap Land/Build-Prof Fees,YA103,15/01/2018,498803,100000,CAPITAL,ROMANO INTERNATIONAL LTD,101824
North East Lincolnshire Council,http://statistics.data.gov.uk/id/local-authority/00FC),Chief Executive,Director Of Finance,Property Rationalisation Prog,Cap Land/Build-Prof Fees,Cap Land/Build-Prof Fees,YA103,04/01/2018,496898,2263.99,CAPITAL,ENGIE SERVICES LTD,133267
North East Lincolnshire Council,http://statistics.data.gov.uk/id/local-authority/00FC),Chief Executive,Director Of Finance,Property Rationalisation Prog,Cap Infrastr-Purchase,Cap Infrastr-Purchase,YC101,09/01/2018,497132,3080,CAPITAL,INSIGHT DIRECT (UK) LTD,101011
North East Lincolnshire Council,http://statistics.data.gov.uk/id/local-authority/00FC),Chief Executive,Director Of Finance,Property Rationalisation Prog,Cap Infrastr-Purchase,Cap Infrastr-Purchase,YC101,29/01/2018,500628,4460.12,CAPITAL,COMPUTACENTER UK LTD,101303
North East Lincolnshire Council,http://statistics.data.gov.uk/id/local-authority/00FC),Chief Executive,Director Of Finance,Dig Strat Del/Imp Civica/Edrms,Cap Veh Plt Eqp-Prof Fees,Cap Veh Plt Eqp-Prof Fees,YB103,11/01/2018,498667,840,CAPITAL,SOFTWARE ACUMEN LTD,139050
North East Lincolnshire Council,http://statistics.data.gov.uk/id/local-authority/00FC),Chief Executive,Director Of Finance,Civica W360 Revs And Bens,Cap Land/Build-Build Enh Wrk,Cap Land/Build-Build Enh Wrk,YA102,08/01/2018,497885,15045,CAPITAL,CIVICA UK LIMITED,103029
North East Lincolnshire Council,http://statistics.data.gov.uk/id/local-authority/00FC),Chief Executive,Shared Services,Ict Refresh 16-17,Cap Land/Build-Build Enh Wrk,Cap Land/Build-Build Enh Wrk,YA102,15/01/2018,498475,7409,CAPITAL,ENGIE SERVICES LTD,133267
North East Lincolnshire Council,http://statistics.data.gov.uk/id/local-authority/00FC),Chief Executive,Shared Services,Ict Refresh 16-17,Cap Land/Build-Build Enh Wrk,Cap Land/Build-Build Enh Wrk,YA102,22/01/2018,499239,6060.5,CAPITAL,COMPUTACENTER UK LTD,101303
North East Lincolnshire Council,http://statistics.data.gov.uk/id/local-authority/00FC),Chief Executive,Shared Services,Ict Refresh 16-17,Cap Land/Build-Build Enh Wrk,Cap Land/Build-Build Enh Wrk,YA102,18/01/2018,499515,252,CAPITAL,COMPUTACENTER UK LTD,101303
North East Lincolnshire Council,http://statistics.data.gov.uk/id/local-authority/00FC),Chief Executive,Ad Environment,Fleet Replacement Programme,Cap Veh Plt Eqp-Purchase,Cap Veh Plt Eqp-Purchase,YB101,25/01/2018,500431,53700,CAPITAL,CUMBERLAND PLATFORMS LTD,138644
North East Lincolnshire Council,http://statistics.data.gov.uk/id/local-authority/00FC),Chief Executive,Ad Environment,Fleet Replacement Programme,Cap Veh Plt Eqp-Purchase,Cap Veh Plt Eqp-Purchase,YB101,04/01/2018,497653,3680.39,CAPITAL,ELMTRONICS LTD,138873
North East Lincolnshire Council,http://statistics.data.gov.uk/id/local-authority/00FC),Chief Executive,Director Of Economy & Growth,Local Transport Plan Schemes,Cap Infrastr-Build Enh Wrk,Cap Infrastr-Build Enh Wrk,YC102,04/01/2018,496061,12334.56,CAPITAL,EC SURFACING LTD,125951
North East Lincolnshire Council,http://statistics.data.gov.uk/id/local-authority/00FC),Chief Executive,Director Of Economy & Growth,Local Transport Plan Schemes,Cap Infrastr-Build Enh Wrk,Cap Infrastr-Build Enh Wrk,YC102,15/01/2018,497882,1375,CAPITAL,CLUGSTON SURVEY SERVICES,105668
North East Lincolnshire Council,http://statistics.data.gov.uk/id/local-authority/00FC),Chief Executive,Director Of Economy & Growth,Local Transport Plan Schemes,Cap Infrastr-Build Enh Wrk,Cap Infrastr-Build Enh Wrk,YC102,04/01/2018,496904,9408,CAPITAL,ENGIE SERVICES LTD,133267
North East Lincolnshire Council,http://statistics.data.gov.uk/id/local-authority/00FC),Chief Executive,Director Of Economy & Growth,Local Transport Plan Schemes,Cap Infrastr-Build Enh Wrk,Cap Infrastr-Build Enh Wrk,YC102,08/01/2018,496932,740.08,CAPITAL,ENGIE SERVICES LTD,133267
North East Lincolnshire Council,http://statistics.data.gov.uk/id/local-authority/00FC),Chief Executive,Director Of Economy & Growth,Local Transport Plan Schemes,Cap Infrastr-Build Enh Wrk,Cap Infrastr-Build Enh Wrk,YC102,04/01/2018,495657,23247.5,CAPITAL,EC SURFACING LTD,125951
North East Lincolnshire Council,http://statistics.data.gov.uk/id/local-authority/00FC),Chief Executive,Director Of Economy & Growth,Local Transport Plan Schemes,Cap Infrastr-Build Enh Wrk,Cap Infrastr-Build Enh Wrk,YC102,04/01/2018,496933,2970,CAPITAL,ENGIE SERVICES LTD,133267
North East Lincolnshire Council,http://statistics.data.gov.uk/id/local-authority/00FC),Chief Executive,Director Of Economy & Growth,Local Transport Plan Schemes,Cap Infrastr-Build Enh Wrk,Cap Infrastr-Build Enh Wrk,YC102,04/01/2018,496934,2789.7,CAPITAL,ENGIE SERVICES LTD,133267
North East Lincolnshire Council,http://statistics.data.gov.uk/id/local-authority/00FC),Chief Executive,Director Of Economy & Growth,Local Transport Plan Schemes,Cap Infrastr-Build Enh Wrk,Cap Infrastr-Build Enh Wrk,YC102,31/01/2018,501002,4764.3,CAPITAL,P H CONSTRUCTION SERVICES LTD,102107
North East Lincolnshire Council,http://statistics.data.gov.uk/id/local-authority/00FC),Chief Executive,Director Of Economy & Growth,Local Transport Plan Schemes,Cap Infrastr-Build Enh Wrk,Cap Infrastr-Build Enh Wrk,YC102,31/01/2018,501003,400.42,CAPITAL,SPECIALIST SURFACING LIMITED,100579
North East Lincolnshire Council,http://statistics.data.gov.uk/id/local-authority/00FC),Chief Executive,Director Of Economy & Growth,Local Transport Plan Schemes,Cap Land/Build-Build Enh Wrk,Cap Land/Build-Build Enh Wrk,YA102,25/01/2018,500580,1660,CAPITAL,ALMEGA PROMOTIONAL GIFTS LTD,129985
North East Lincolnshire Council,http://statistics.data.gov.uk/id/local-authority/00FC),Chief Executive,Director Of Economy & Growth,Local Transport Plan Schemes,Cap Land/Build-Build Enh Wrk,Cap Land/Build-Build Enh Wrk,YA102,25/01/2018,500580,2090,CAPITAL,ALMEGA PROMOTIONAL GIFTS LTD,129985
North East Lincolnshire Council,http://statistics.data.gov.uk/id/local-authority/00FC),Chief Executive,Director Of Economy & Growth,Local Transport Plan Schemes,Cap Land/Build-Build Enh Wrk,Cap Land/Build-Build Enh Wrk,YA102,25/01/2018,500580,2990,CAPITAL,ALMEGA PROMOTIONAL GIFTS LTD,129985
North East Lincolnshire Council,http://statistics.data.gov.uk/id/local-authority/00FC),Chief Executive,Director Of Economy & Growth,Local Transport Plan Schemes,Cap Land/Build-Build Enh Wrk,Cap Land/Build-Build Enh Wrk,YA102,25/01/2018,500580,1500,CAPITAL,ALMEGA PROMOTIONAL GIFTS LTD,129985
North East Lincolnshire Council,http://statistics.data.gov.uk/id/local-authority/00FC),Chief Executive,Director Of Economy & Growth,Local Transport Plan Schemes,Cap Land/Build-Build Enh Wrk,Cap Land/Build-Build Enh Wrk,YA102,25/01/2018,500580,2200,CAPITAL,ALMEGA PROMOTIONAL GIFTS LTD,129985
North East Lincolnshire Council,http://statistics.data.gov.uk/id/local-authority/00FC),Chief Executive,Director Of Economy & Growth,Local Transport Plan Schemes,Cap Infrastr-Build Enh Wrk,Cap Infrastr-Build Enh Wrk,YC102,04/01/2018,496935,1289.52,CAPITAL,ENGIE SERVICES LTD,133267
North East Lincolnshire Council,http://statistics.data.gov.uk/id/local-authority/00FC),Chief Executive,Director Of Economy & Growth,Local Transport Plan Schemes,Cap Infrastr-Build Enh Wrk,Cap Infrastr-Build Enh Wrk,YC102,04/01/2018,496937,3000,CAPITAL,ENGIE SERVICES LTD,133267
North East Lincolnshire Council,http://statistics.data.gov.uk/id/local-authority/00FC),Chief Executive,Director Of Economy & Growth,Local Transport Plan Schemes,Cap Infrastr-Build Enh Wrk,Cap Infrastr-Build Enh Wrk,YC102,25/01/2018,498101,980,CAPITAL,CAMPBELL DESIGN AND ENGINEERING LTD,128191
North East Lincolnshire Council,http://statistics.data.gov.uk/id/local-authority/00FC),Chief Executive,Director Of Economy & Growth,Local Transport Plan Schemes,Cap Infrastr-Build Enh Wrk,Cap Infrastr-Build Enh Wrk,YC102,04/01/2018,496906,19800,CAPITAL,ENGIE SERVICES LTD,133267
North East Lincolnshire Council,http://statistics.data.gov.uk/id/local-authority/00FC),Chief Executive,Director Of Economy & Growth,Local Transport Plan Schemes,Cap Infrastr-Build Enh Wrk,Cap Infrastr-Build Enh Wrk,YC102,04/01/2018,496931,8040,CAPITAL,ENGIE SERVICES LTD,133267
North East Lincolnshire Council,http://statistics.data.gov.uk/id/local-authority/00FC),Chief Executive,Director Of Economy & Growth,Local Transport Plan Schemes,Cap Infrastr-Purchase,Cap Infrastr-Purchase,YC101,25/01/2018,499582,5924.52,CAPITAL,SPECIALIST SURFACING LIMITED,100579
North East Lincolnshire Council,http://statistics.data.gov.uk/id/local-authority/00FC),Chief Executive,Director Of Economy & Growth,Affordable Housing (S106),Cap Land/Build-Prof Fees,Cap Land/Build-Prof Fees,YA103,25/01/2018,500428,25000,CAPITAL,LONGHURST AND HAVELOK HOMES LTD,100342
North East Lincolnshire Council,http://statistics.data.gov.uk/id/local-authority/00FC),Chief Executive,Director Of Economy & Growth,Gllep Junction Improvement,Cap Land/Build-Build Enh Wrk,Cap Land/Build-Build Enh Wrk,YA102,16/01/2018,499085,28600,CAPITAL,ENGIE SERVICES LTD,133267
North East Lincolnshire Council,http://statistics.data.gov.uk/id/local-authority/00FC),Chief Executive,Director Of Economy & Growth,Gllep Junction Improvement,Cap Land/Build-Build Enh Wrk,Cap Land/Build-Build Enh Wrk,YA102,04/01/2018,496915,9000,CAPITAL,ENGIE SERVICES LTD,133267
North East Lincolnshire Council,http://statistics.data.gov.uk/id/local-authority/00FC),Chief Executive,Director Of Economy & Growth,Town Centre Works Lep,Cap Infrastr-Build Enh Wrk,Cap Infrastr-Build Enh Wrk,YC102,29/01/2018,500821,18239,CAPITAL,PBS CONSTRUCTION (NORTH EAST) LTD,127459
North East Lincolnshire Council,http://statistics.data.gov.uk/id/local-authority/00FC),Chief Executive,Director Of Economy & Growth,Shiip Scheme,Cap Infrastr-Prof Fees,Cap Infrastr-Prof Fees,YC103,15/01/2018,498805,2309,CAPITAL,BEVAN BRITTAN LLP,131317
North East Lincolnshire Council,http://statistics.data.gov.uk/id/local-authority/00FC),Chief Executive,Director Of Economy & Growth,Shiip Scheme,Cap Infrastr-Prof Fees,Cap Infrastr-Prof Fees,YC103,04/01/2018,496912,4543.5,CAPITAL,ENGIE SERVICES LTD,133267
North East Lincolnshire Council,http://statistics.data.gov.uk/id/local-authority/00FC),Chief Executive,Director Of Economy & Growth,Shiip Scheme,Cap Infrastr-Build Enh Wrk,Cap Infrastr-Build Enh Wrk,YC102,22/01/2018,498897,12000,CAPITAL,LANDPLAN (GB) LTD,138939
North East Lincolnshire Council,http://statistics.data.gov.uk/id/local-authority/00FC),Chief Executive,Director Of Economy & Growth,Shiip Scheme,Cap Infrastr-Prof Fees,Cap Infrastr-Prof Fees,YC103,04/01/2018,497581,3620,CAPITAL,ENGIE SERVICES LTD,133267
North East Lincolnshire Council,http://statistics.data.gov.uk/id/local-authority/00FC),Chief Executive,Director Of Economy & Growth,Catch Offshore,Cap Land/Build-Build Enh Wrk,Cap Land/Build-Build Enh Wrk,YA102,15/01/2018,497840,3405,CAPITAL,HIGH ACCESS SOLUTIONS LTD,138450
North East Lincolnshire Council,http://statistics.data.gov.uk/id/local-authority/00FC),Chief Executive,Director Of Economy & Growth,Abbey Walk Car Park Lift,Cap Land/Build-Build Enh Wrk,Cap Land/Build-Build Enh Wrk,YA102,22/01/2018,499766,44950,CAPITAL,STANNAH LIFT SERVICES LTD,100622
North East Lincolnshire Council,http://statistics.data.gov.uk/id/local-authority/00FC),Chief Executive,Director Of Economy & Growth,Abbey Walk Car Park Lift,Cap Land/Build-Build Enh Wrk,Cap Land/Build-Build Enh Wrk,YA102,22/01/2018,499767,26970,CAPITAL,STANNAH LIFT SERVICES LTD,100622
North East Lincolnshire Council,http://statistics.data.gov.uk/id/local-authority/00FC),Chief Executive,Director Of Economy & Growth,Scartho Road Hosp Junc Imp,Cap Infrastr-Build Enh Wrk,Cap Infrastr-Build Enh Wrk,YC102,22/01/2018,499595,3747,CAPITAL,ADVANTAGE TSC & D LTD,109136
North East Lincolnshire Council,http://statistics.data.gov.uk/id/local-authority/00FC),Chief Executive,Director Of Economy & Growth,Scartho Road Hosp Junc Imp,Cap Infrastr-Build Enh Wrk,Cap Infrastr-Build Enh Wrk,YC102,04/01/2018,496908,10080,CAPITAL,ENGIE SERVICES LTD,133267
North East Lincolnshire Council,http://statistics.data.gov.uk/id/local-authority/00FC),Chief Executive,Director Of Economy & Growth,Scartho Road Hosp Junc Imp,Cap Infrastr-Build Enh Wrk,Cap Infrastr-Build Enh Wrk,YC102,25/01/2018,499959,27843.51,CAPITAL,NORTHERN POWERGRID (YORKSHIRE) PLC,108328
North East Lincolnshire Council,http://statistics.data.gov.uk/id/local-authority/00FC),Chief Executive,Director Of Economy & Growth,Scartho Road Hosp Junc Imp,Cap Infrastr-Build Enh Wrk,Cap Infrastr-Build Enh Wrk,YC102,22/01/2018,499577,550,CAPITAL,LOCAL TRANSPORT PROJECTS LTD,121248
North East Lincolnshire Council,http://statistics.data.gov.uk/id/local-authority/00FC),Chief Executive,Director Of Economy & Growth,Scartho Road Hosp Junc Imp,Cap Infrastr-Build Enh Wrk,Cap Infrastr-Build Enh Wrk,YC102,29/01/2018,500811,16538.37,CAPITAL,VIRGIN MEDIA LTD,101831
North East Lincolnshire Council,http://statistics.data.gov.uk/id/local-authority/00FC),Chief Executive,Director Of Economy & Growth,Cleethorpes Cycle Hub,Cap Infrastr-Build Enh Wrk,Cap Infrastr-Build Enh Wrk,YC102,16/01/2018,499381,21859.63,CAPITAL,S VOASE BUILDERS LTD,103594
North East Lincolnshire Council,http://statistics.data.gov.uk/id/local-authority/00FC),Chief Executive,Ad Environment,Safer Communities P/Ship,Communications And Computing,Computer S/Ware - Maintenance,LF102,11/01/2018,498717,2150,REVENUE,PALOMA SYSTEMS LTD,108781
North East Lincolnshire Council,http://statistics.data.gov.uk/id/local-authority/00FC),Chief Executive,Ad Environment,Safer Communities P/Ship,Voluntary Associations,Third Pp - Third Sector,PF101,11/01/2018,498714,27850,REVENUE,GRIMSBY & SCUNTHORPE RAPE CRISIS,102472
North East Lincolnshire Council,http://statistics.data.gov.uk/id/local-authority/00FC),Chief Executive,Ad Environment,Safer Communities P/Ship,Voluntary Associations,Third Pp - Third Sector,PF101,11/01/2018,498714,34500,REVENUE,GRIMSBY & SCUNTHORPE RAPE CRISIS,102472
North East Lincolnshire Council,http://statistics.data.gov.uk/id/local-authority/00FC),Chief Executive,Ad Environment,Grounds & Bereavement Services,Grounds Maintenance Costs,Grounds Maintenance,GJ101,15/01/2018,499058,360,REVENUE,MR RAY JOHNSON,119907
North East Lincolnshire Council,http://statistics.data.gov.uk/id/local-authority/00FC),Chief Executive,Ad Environment,Grounds & Bereavement Services,Grounds Maintenance Costs,Grounds Maintenance,GJ101,15/01/2018,498678,854,REVENUE,F G ADAMSON & SON,100752
North East Lincolnshire Council,http://statistics.data.gov.uk/id/local-authority/00FC),Chief Executive,Ad Environment,Grounds & Bereavement Services,Grounds Maintenance Costs,Grounds Maintenance,GJ101,23/01/2018,499578,288,REVENUE,ELLIS DIRECT LIMITED,101138
North East Lincolnshire Council,http://statistics.data.gov.uk/id/local-authority/00FC),Chief Executive,Ad Environment,Grounds & Bereavement Services,Equip / Furniture / Materials,Equipment - Maintenance,LA104,25/01/2018,500404,11775.93,REVENUE,FACULTATIEVE TECHNOLOGIES LTD,101165
North East Lincolnshire Council,http://statistics.data.gov.uk/id/local-authority/00FC),Chief Executive,Ad Environment,Grounds & Bereavement Services,Equip / Furniture / Materials,Equipment - Maintenance,LA104,29/01/2018,500807,11775.93,REVENUE,FACULTATIEVE TECHNOLOGIES LTD,101165
North East Lincolnshire Council,http://statistics.data.gov.uk/id/local-authority/00FC),Chief Executive,Ad Environment,Grounds & Bereavement Services,Equip / Furniture / Materials,Equipment - Purchase,LA101,31/01/2018,500805,495,REVENUE,S P DAVIS MEMORIALS LIMITED,130000
North East Lincolnshire Council,http://statistics.data.gov.uk/id/local-authority/00FC),Chief Executive,Ad Environment,Grounds & Bereavement Services,Grants And Subscriptions,Subscriptions,LJ101,15/01/2018,498900,850.2,REVENUE,FBCA,103945
North East Lincolnshire Council,http://statistics.data.gov.uk/id/local-authority/00FC),Chief Executive,Ad Environment,Grounds & Bereavement Services,Rep Alterations Maint Building,Buildings - Repairs And Maint,GA102,09/01/2018,496055,1660,REVENUE,ENGIE SERVICES LTD,133267
North East Lincolnshire Council,http://statistics.data.gov.uk/id/local-authority/00FC),Chief Executive,Ad Environment,Grounds & Bereavement Services,Rep Alterations Maint Building,Buildings - Repairs And Maint,GA102,25/01/2018,500521,740,REVENUE,BSB SERVICES,102305
North East Lincolnshire Council,http://statistics.data.gov.uk/id/local-authority/00FC),Chief Executive,Ad Environment,Grounds & Bereavement Services,Rep Alterations Maint Building,Buildings - Repairs And Maint,GA102,25/01/2018,500521,695,REVENUE,BSB SERVICES,102305
North East Lincolnshire Council,http://statistics.data.gov.uk/id/local-authority/00FC),Chief Executive,Ad Environment,Grounds & Bereavement Services,Rep Alterations Maint Building,Buildings - Repairs And Maint,GA102,25/01/2018,500521,650,REVENUE,BSB SERVICES,102305
North East Lincolnshire Council,http://statistics.data.gov.uk/id/local-authority/00FC),Chief Executive,Ad Environment,Grounds & Bereavement Services,Rep Alterations Maint Building,Buildings - Repairs And Maint,GA102,18/01/2018,499213,270,REVENUE,ENGIE SERVICES LTD,133267
North East Lincolnshire Council,http://statistics.data.gov.uk/id/local-authority/00FC),Chief Executive,Ad Environment,Grounds & Bereavement Services,Rep Alterations Maint Building,Buildings - Repairs And Maint,GA102,11/01/2018,497542,277,REVENUE,E K M LTD,101926
North East Lincolnshire Council,http://statistics.data.gov.uk/id/local-authority/00FC),Chief Executive,Ad Environment,Grounds & Bereavement Services,Rep Alterations Maint Building,Buildings - Repairs And Maint,GA102,11/01/2018,497551,480,REVENUE,E K M LTD,101926
North East Lincolnshire Council,http://statistics.data.gov.uk/id/local-authority/00FC),Chief Executive,Ad Environment,Grounds & Bereavement Services,Rep Alterations Maint Building,Buildings - Repairs And Maint,GA102,11/01/2018,497545,259,REVENUE,E K M LTD,101926
North East Lincolnshire Council,http://statistics.data.gov.uk/id/local-authority/00FC),Chief Executive,Ad Environment,Grounds & Bereavement Services,Rep Alterations Maint Building,Buildings - Repairs And Maint,GA102,11/01/2018,497549,385,REVENUE,E K M LTD,101926
North East Lincolnshire Council,http://statistics.data.gov.uk/id/local-authority/00FC),Chief Executive,Ad Environment,Grounds & Bereavement Services,Rep Alterations Maint Building,Buildings - Repairs And Maint,GA102,11/01/2018,497550,260,REVENUE,E K M LTD,101926
North East Lincolnshire Council,http://statistics.data.gov.uk/id/local-authority/00FC),Chief Executive,Ad Environment,Grounds & Bereavement Services,Equip / Furniture / Materials,Equipment - Maintenance,LA104,11/01/2018,497154,820,REVENUE,F G ADAMSON & SON,100752
North East Lincolnshire Council,http://statistics.data.gov.uk/id/local-authority/00FC),Chief Executive,Ad Environment,Grounds & Bereavement Services,Equip / Furniture / Materials,Equipment - Maintenance,LA104,11/01/2018,497154,960,REVENUE,F G ADAMSON & SON,100752
North East Lincolnshire Council,http://statistics.data.gov.uk/id/local-authority/00FC),Chief Executive,Ad Environment,Grounds & Bereavement Services,Equip / Furniture / Materials,Equipment - Purchase,LA101,04/01/2018,497654,1105.75,REVENUE,JAMES COLES & SONS LTD,100758
North East Lincolnshire Council,http://statistics.data.gov.uk/id/local-authority/00FC),Chief Executive,Ad Environment,Grounds & Bereavement Services,Equip / Furniture / Materials,Equipment - Purchase,LA101,08/01/2018,497873,364.98,REVENUE,GROUNDSMAN TOOLS & SUPPLIERS LLP,131754
North East Lincolnshire Council,http://statistics.data.gov.uk/id/local-authority/00FC),Chief Executive,Ad Environment,Grounds & Bereavement Services,Equip / Furniture / Materials,Equipment - Purchase,LA101,25/01/2018,500319,1356.05,REVENUE,GROUNDSMAN TOOLS & SUPPLIERS LLP,131754
North East Lincolnshire Council,http://statistics.data.gov.uk/id/local-authority/00FC),Chief Executive,Ad Environment,Grounds & Bereavement Services,Communications And Computing,Telephones,LF112,16/01/2018,499165,324,REVENUE,RADPHONE LTD,101671
North East Lincolnshire Council,http://statistics.data.gov.uk/id/local-authority/00FC),Chief Executive,Ad Environment,Grounds & Bereavement Services,Private Contractors,Contract Payments,PH105,31/01/2018,501234,12500,REVENUE,IMMINGHAM TOWN COUNCIL,101597
North East Lincolnshire Council,http://statistics.data.gov.uk/id/local-authority/00FC),Chief Executive,Ad Environment,Grounds & Bereavement Services,Private Contractors,Third Party Prov - Private,PH101,11/01/2018,498671,850,REVENUE,SRP TOILET HIRE LTD,104341
North East Lincolnshire Council,http://statistics.data.gov.uk/id/local-authority/00FC),Chief Executive,Ad Environment,Grounds & Bereavement Services,Private Contractors,Third Party Prov - Private,PH101,22/01/2018,499176,-15,REVENUE,SRP TOILET HIRE LTD,104341
North East Lincolnshire Council,http://statistics.data.gov.uk/id/local-authority/00FC),Chief Executive,Ad Environment,Grounds & Bereavement Services,Rep Alterations Maint Building,Buildings - Repairs And Maint,GA102,30/01/2018,500661,13503.86,REVENUE,J MCCANN & CO LTD,100841
North East Lincolnshire Council,http://statistics.data.gov.uk/id/local-authority/00FC),Chief Executive,Ad Environment,Grounds & Bereavement Services,Rents,Rent,GC101,11/01/2018,498598,804.5,REVENUE,ASSOCIATED BRITISH PORTS,100834
North East Lincolnshire Council,http://statistics.data.gov.uk/id/local-authority/00FC),Chief Executive,Ad Environment,Grounds & Bereavement Services,Rep Alterations Maint Building,Buildings - Repairs And Maint,GA102,22/01/2018,499212,280,REVENUE,ENGIE SERVICES LTD,133267
North East Lincolnshire Council,http://statistics.data.gov.uk/id/local-authority/00FC),Chief Executive,Ad Environment,Garage & Fleet Strategy,Direct Transport Costs,Vehicles - Repairs And Maint,JA105,18/01/2018,499554,2228,REVENUE,DELTA ENGINEERING GROUP LTD,120523
North East Lincolnshire Council,http://statistics.data.gov.uk/id/local-authority/00FC),Chief Executive,Ad Environment,Garage & Fleet Strategy,Direct Transport Costs,Vehicles - Repairs And Maint,JA105,04/01/2018,497482,430,REVENUE,B A BUSH & SON LTD,101828
North East Lincolnshire Council,http://statistics.data.gov.uk/id/local-authority/00FC),Chief Executive,Ad Environment,Garage & Fleet Strategy,Direct Transport Costs,Vehicles - Repairs And Maint,JA105,15/01/2018,498895,282,REVENUE,DELTA ENGINEERING GROUP LTD,120523
North East Lincolnshire Council,http://statistics.data.gov.uk/id/local-authority/00FC),Chief Executive,Ad Environment,Garage & Fleet Strategy,Direct Transport Costs,Vehicles - Repairs And Maint,JA105,18/01/2018,499540,416.73,REVENUE,B A BUSH & SON LTD,101828
North East Lincolnshire Council,http://statistics.data.gov.uk/id/local-authority/00FC),Chief Executive,Ad Environment,Garage & Fleet Strategy,Direct Transport Costs,Vehicles - Repairs And Maint,JA105,16/01/2018,498873,325.6,REVENUE,FLEET FACTORS LTD,100886
North East Lincolnshire Council,http://statistics.data.gov.uk/id/local-authority/00FC),Chief Executive,Ad Environment,Garage & Fleet Strategy,Direct Transport Costs,Vehicles - Repairs And Maint,JA105,16/01/2018,498874,3617.05,REVENUE,FLEET FACTORS LTD,100886
North East Lincolnshire Council,http://statistics.data.gov.uk/id/local-authority/00FC),Chief Executive,Ad Environment,Garage & Fleet Strategy,Direct Transport Costs,Vehicles - Repairs And Maint,JA105,18/01/2018,499538,302.27,REVENUE,P A DE STE CROIX & SON,103824
North East Lincolnshire Council,http://statistics.data.gov.uk/id/local-authority/00FC),Chief Executive,Ad Environment,Garage & Fleet Strategy,Direct Transport Costs,Vehicles - Repairs And Maint,JA105,22/01/2018,499546,300,REVENUE,P A DE STE CROIX & SON,103824
North East Lincolnshire Council,http://statistics.data.gov.uk/id/local-authority/00FC),Chief Executive,Ad Environment,Garage & Fleet Strategy,Direct Transport Costs,Vehicles - Repairs And Maint,JA105,22/01/2018,499548,1928.14,REVENUE,TERBERG MATEC UK LTD,101293
North East Lincolnshire Council,http://statistics.data.gov.uk/id/local-authority/00FC),Chief Executive,Ad Environment,Garage & Fleet Strategy,Direct Transport Costs,Vehicles - Repairs And Maint,JA105,18/01/2018,499518,2790.58,REVENUE,FLEET FACTORS LTD,100886
North East Lincolnshire Council,http://statistics.data.gov.uk/id/local-authority/00FC),Chief Executive,Ad Environment,Garage & Fleet Strategy,Direct Transport Costs,Vehicles - Repairs And Maint,JA105,18/01/2018,499519,4392.84,REVENUE,FLEET FACTORS LTD,100886
North East Lincolnshire Council,http://statistics.data.gov.uk/id/local-authority/00FC),Chief Executive,Ad Environment,Garage & Fleet Strategy,Direct Transport Costs,Vehicles - Repairs And Maint,JA105,18/01/2018,499520,1015.68,REVENUE,FLEET FACTORS LTD,100886
North East Lincolnshire Council,http://statistics.data.gov.uk/id/local-authority/00FC),Chief Executive,Ad Environment,Garage & Fleet Strategy,Direct Transport Costs,Vehicles - Repairs And Maint,JA105,22/01/2018,499545,524.29,REVENUE,FLEET FACTORS LTD,100886
North East Lincolnshire Council,http://statistics.data.gov.uk/id/local-authority/00FC),Chief Executive,Ad Environment,Garage & Fleet Strategy,Direct Transport Costs,Vehicles - Repairs And Maint,JA105,25/01/2018,500547,250,REVENUE,MOTORWAY WINDSCREENS LTD,102660
North East Lincolnshire Council,http://statistics.data.gov.uk/id/local-authority/00FC),Chief Executive,Ad Environment,Garage & Fleet Strategy,Direct Transport Costs,Vehicles - Repairs And Maint,JA105,25/01/2018,500552,1945.04,REVENUE,FLEET FACTORS LTD,100886
North East Lincolnshire Council,http://statistics.data.gov.uk/id/local-authority/00FC),Chief Executive,Ad Environment,Garage & Fleet Strategy,Direct Transport Costs,Vehicles - Repairs And Maint,JA105,25/01/2018,500553,2727.73,REVENUE,FLEET FACTORS LTD,100886
North East Lincolnshire Council,http://statistics.data.gov.uk/id/local-authority/00FC),Chief Executive,Ad Environment,Garage & Fleet Strategy,Direct Transport Costs,Vehicles - Repairs And Maint,JA105,25/01/2018,500544,898.52,REVENUE,FLEET FACTORS LTD,100886
North East Lincolnshire Council,http://statistics.data.gov.uk/id/local-authority/00FC),Chief Executive,Ad Environment,Garage & Fleet Strategy,Direct Transport Costs,Vehicles - Repairs And Maint,JA105,29/01/2018,500884,289.57,REVENUE,B A BUSH & SON LTD,101828
North East Lincolnshire Council,http://statistics.data.gov.uk/id/local-authority/00FC),Chief Executive,Ad Environment,Garage & Fleet Strategy,Equip / Furniture / Materials,Equipment - Maintenance,LA104,15/01/2018,498841,1950,REVENUE,WEIGHTRON BILANCIAI LTD,108729
North East Lincolnshire Council,http://statistics.data.gov.uk/id/local-authority/00FC),Chief Executive,Ad Environment,Garage & Fleet Strategy,Clothes Uniforms And Laundry,Laundry,LC103,29/01/2018,500613,347.84,REVENUE,JOHNSONS APPARELMASTER,100810
North East Lincolnshire Council,http://statistics.data.gov.uk/id/local-authority/00FC),Chief Executive,Ad Environment,Street Cleansing,Direct Transport Costs,Vehicles - Running Costs,JA104,15/01/2018,498843,328.27,REVENUE,ALLSTAR BUSINESS SOLUTIONS LTD,108278
North East Lincolnshire Council,http://statistics.data.gov.uk/id/local-authority/00FC),Chief Executive,Ad Environment,Street Cleansing,Private Contractors,Contract Payments,PH105,31/01/2018,501234,7000,REVENUE,IMMINGHAM TOWN COUNCIL,101597
North East Lincolnshire Council,http://statistics.data.gov.uk/id/local-authority/00FC),Chief Executive,Ad Environment,Street Cleansing,Private Contractors,Third Party Prov - Private,PH101,23/01/2018,499650,458.78,REVENUE,HEALTHCARE ENVIRONMENTAL SERVICES LTD,137118
North East Lincolnshire Council,http://statistics.data.gov.uk/id/local-authority/00FC),Chief Executive,Ad Environment,Waste Services,Contract Hire-Operating Leases,Vehicles - Contract Hire,JC101,23/01/2018,499951,1930,REVENUE,PRIORITY HIRE LIMITED,138593
North East Lincolnshire Council,http://statistics.data.gov.uk/id/local-authority/00FC),Chief Executive,Ad Environment,Waste Services,Contract Hire-Operating Leases,Vehicles - Contract Hire,JC101,25/01/2018,500325,1190,REVENUE,PRIORITY HIRE LIMITED,138593
North East Lincolnshire Council,http://statistics.data.gov.uk/id/local-authority/00FC),Chief Executive,Ad Environment,Waste Services,Contract Hire-Operating Leases,Vehicles - Contract Hire,JC101,16/01/2018,497722,1060,REVENUE,COLLETT TRANSPORT SERVICES LTD,103105
North East Lincolnshire Council,http://statistics.data.gov.uk/id/local-authority/00FC),Chief Executive,Ad Environment,Waste Services,Contract Hire-Operating Leases,Vehicles - Contract Hire,JC101,23/01/2018,499550,900,REVENUE,COLLETT TRANSPORT SERVICES LTD,103105
North East Lincolnshire Council,http://statistics.data.gov.uk/id/local-authority/00FC),Chief Executive,Ad Environment,Waste Services,Clothes Uniforms And Laundry,Protective Clothing,LC101,11/01/2018,496063,291,REVENUE,WESTBURY INDUSTRIAL SUPPLIES LTD,102378
North East Lincolnshire Council,http://statistics.data.gov.uk/id/local-authority/00FC),Chief Executive,Ad Environment,Waste Services,Clothes Uniforms And Laundry,Protective Clothing,LC101,15/01/2018,497348,2364.2,REVENUE,SMI,134794
North East Lincolnshire Council,http://statistics.data.gov.uk/id/local-authority/00FC),Chief Executive,Ad Environment,Waste Services,Clothes Uniforms And Laundry,Protective Clothing,LC101,16/01/2018,498147,653.55,REVENUE,SMI,134794
North East Lincolnshire Council,http://statistics.data.gov.uk/id/local-authority/00FC),Chief Executive,Ad Environment,Waste Services,Private Contractors,Third Party Prov - Private,PH101,15/01/2018,497361,1500,REVENUE,FOREFRONT TRAINING LTD,105501
North East Lincolnshire Council,http://statistics.data.gov.uk/id/local-authority/00FC),Chief Executive,Ad Environment,Waste Disposal And Strategy,Private Contractors,Contract Payments,PH105,04/01/2018,497538,REDACTED COMMERCIALLY SENSITIVE,REVENUE,NEWLINCS DEVELOPMENT LTD,101125
North East Lincolnshire Council,http://statistics.data.gov.uk/id/local-authority/00FC),Chief Executive,Ad Environment,Waste Disposal And Strategy,Private Contractors,Contract Payments,PH105,25/01/2018,500529,REDACTED COMMERCIALLY SENSITIVE,REVENUE,NEWLINCS DEVELOPMENT LTD,101125
North East Lincolnshire Council,http://statistics.data.gov.uk/id/local-authority/00FC),Chief Executive,Ad Environment,Waste Disposal And Strategy,Private Contractors,Contract Payments Landfill Tax,PH106,04/01/2018,497538,REDACTED COMMERCIALLY SENSITIVE,REVENUE,NEWLINCS DEVELOPMENT LTD,101125
North East Lincolnshire Council,http://statistics.data.gov.uk/id/local-authority/00FC),Chief Executive,Ad Environment,Waste Disposal And Strategy,Private Contractors,Contract Payments Landfill Tax,PH106,25/01/2018,500529,REDACTED COMMERCIALLY SENSITIVE,REVENUE,NEWLINCS DEVELOPMENT LTD,101125
North East Lincolnshire Council,http://statistics.data.gov.uk/id/local-authority/00FC),Chief Executive,Ad Environment,Community Protection,Private Contractors,Third Party Prov - Private,PH101,09/01/2018,498304,3468.9,REVENUE,SANGREAT KENNELS,103270
North East Lincolnshire Council,http://statistics.data.gov.uk/id/local-authority/00FC),Chief Executive,Ad Environment,Community Protection,Miscellaneous Expenses,Environmental/Health Analysis,LL120,09/01/2018,498113,393.1,REVENUE,EUROFINS UK 2016 LTD,134666
North East Lincolnshire Council,http://statistics.data.gov.uk/id/local-authority/00FC),Chief Executive,Ad Environment,Community Protection,Miscellaneous Expenses,Environmental/Health Analysis,LL120,09/01/2018,495866,810,REVENUE,FERA SCIENCE LTD,131671
North East Lincolnshire Council,http://statistics.data.gov.uk/id/local-authority/00FC),Chief Executive,Ad Environment,Community Protection,Private Contractors,Third Party Prov - Private,PH101,25/01/2018,500430,811.7,REVENUE,INTERNATIONAL ZOO VETERINARY GROUP,138030
North East Lincolnshire Council,http://statistics.data.gov.uk/id/local-authority/00FC),Chief Executive,Ad Environment,Community Protection,Miscellaneous Expenses,Environmental/Health Analysis,LL120,15/01/2018,498462,357.26,REVENUE,ALS ENVIRONMENTAL LTD,138114
North East Lincolnshire Council,http://statistics.data.gov.uk/id/local-authority/00FC),Chief Executive,Ad Environment,Community Protection,Miscellaneous Expenses,Environmental/Health Analysis,LL120,15/01/2018,498295,357.26,REVENUE,ALS ENVIRONMENTAL LTD,138114
North East Lincolnshire Council,http://statistics.data.gov.uk/id/local-authority/00FC),Chief Executive,Ad Environment,Community Protection,Miscellaneous Expenses,Environmental/Health Analysis,LL120,25/01/2018,500379,308.51,REVENUE,ALS ENVIRONMENTAL LTD,138114
North East Lincolnshire Council,http://statistics.data.gov.uk/id/local-authority/00FC),Chief Executive,Ad Environment,Community Protection,Miscellaneous Expenses,Environmental/Health Analysis,LL120,09/01/2018,495606,1264.8,REVENUE,SOCOTEC UK LIMITED,102685
North East Lincolnshire Council,http://statistics.data.gov.uk/id/local-authority/00FC),Chief Executive,Director Of Finance,Chief Finance Officer,Consultancy,Consultancy,PL101,11/01/2018,498747,937.5,REVENUE,SARAH BRATTAN,134910
North East Lincolnshire Council,http://statistics.data.gov.uk/id/local-authority/00FC),Chief Executive,Director Of Finance,Chief Finance Officer,Consultancy,Consultancy,PL101,11/01/2018,498750,662.5,REVENUE,ANTHONY P WINN ACIB,134636
North East Lincolnshire Council,http://statistics.data.gov.uk/id/local-authority/00FC),Chief Executive,Director Of Finance,Chief Finance Officer,Consultancy,Consultancy,PL101,11/01/2018,498749,1350,REVENUE,IAN GIRDLEY,137191
North East Lincolnshire Council,http://statistics.data.gov.uk/id/local-authority/00FC),Chief Executive,Director Of Finance,Chief Finance Officer,Consultancy,Consultancy,PL101,11/01/2018,498751,543,REVENUE,HEIDI DODSON,134908
North East Lincolnshire Council,http://statistics.data.gov.uk/id/local-authority/00FC),Chief Executive,Director Of Finance,Chief Exec & Support,Car Allowances,Travel - Employees,JF101,08/01/2018,498269,-208,REVENUE,CLICK TRAVEL,127476
North East Lincolnshire Council,http://statistics.data.gov.uk/id/local-authority/00FC),Chief Executive,Director Of Finance,Cfs Assets & Pc Programme,Print Stationery / Gen Off Exp,Advertising,LD104,15/01/2018,499181,1437.5,REVENUE,SCOTTS PROPERTY LLP,103513
North East Lincolnshire Council,http://statistics.data.gov.uk/id/local-authority/00FC),Chief Executive,Director Of Finance,Cfs Assets & Pc Programme,Print Stationery / Gen Off Exp,Advertising,LD104,15/01/2018,499182,2777.78,REVENUE,SCOTTS PROPERTY LLP,103513
North East Lincolnshire Council,http://statistics.data.gov.uk/id/local-authority/00FC),Chief Executive,Director Of Finance,Facilities Management,Energy Costs,Electricity,GB102,08/01/2018,497680,879.02,REVENUE,NPOWER LIMITED,101414
North East Lincolnshire Council,http://statistics.data.gov.uk/id/local-authority/00FC),Chief Executive,Director Of Finance,Facilities Management,Water Services,Water,GE101,15/01/2018,499156,567.12,REVENUE,ANGLIAN WATER BUSINESS,136587
North East Lincolnshire Council,http://statistics.data.gov.uk/id/local-authority/00FC),Chief Executive,Director Of Finance,Facilities Management,Energy Costs,Gas,GB101,16/01/2018,499368,-51.6,REVENUE,CORONA ENERGY,133493
North East Lincolnshire Council,http://statistics.data.gov.uk/id/local-authority/00FC),Chief Executive,Director Of Finance,Facilities Management,Water Services,Water,GE101,04/01/2018,497648,308.42,REVENUE,ANGLIAN WATER BUSINESS,136587
North East Lincolnshire Council,http://statistics.data.gov.uk/id/local-authority/00FC),Chief Executive,Director Of Finance,Facilities Management,Cleaning And Domestic Supplies,Cleaning - Services,GH102,22/01/2018,499536,524,REVENUE,FIRST STEPS GRIMSBY LIMITED,101411
North East Lincolnshire Council,http://statistics.data.gov.uk/id/local-authority/00FC),Chief Executive,Director Of Finance,Facilities Management,Cleaning And Domestic Supplies,Refuse Collection,GH104,18/01/2018,499492,481.6,REVENUE,BIFFA WASTE SERVICES LTD,100515
North East Lincolnshire Council,http://statistics.data.gov.uk/id/local-authority/00FC),Chief Executive,Director Of Finance,Facilities Management,Cleaning And Domestic Supplies,Refuse Collection,GH104,18/01/2018,499493,527.2,REVENUE,BIFFA WASTE SERVICES LTD,100515
North East Lincolnshire Council,http://statistics.data.gov.uk/id/local-authority/00FC),Chief Executive,Director Of Finance,Facilities Management,Rep Alterations Maint Building,Buildings - Repairs And Maint,GA102,02/01/2018,497140,350,REVENUE,ENGIE SERVICES LTD,133267
North East Lincolnshire Council,http://statistics.data.gov.uk/id/local-authority/00FC),Chief Executive,Director Of Finance,Facilities Management,Energy Costs,Electricity,GB102,08/01/2018,497681,283.59,REVENUE,NPOWER LIMITED,101414
North East Lincolnshire Council,http://statistics.data.gov.uk/id/local-authority/00FC),Chief Executive,Director Of Finance,Facilities Management,Cleaning And Domestic Supplies,Cleaning - Services,GH102,22/01/2018,499657,648.08,REVENUE,FOR UNDER FIVES LTD,100647
North East Lincolnshire Council,http://statistics.data.gov.uk/id/local-authority/00FC),Chief Executive,Director Of Finance,Facilities Management,Energy Costs,Electricity,GB102,04/01/2018,497650,319.76,REVENUE,NPOWER LIMITED,101414
North East Lincolnshire Council,http://statistics.data.gov.uk/id/local-authority/00FC),Chief Executive,Director Of Finance,Facilities Management,Rep Alterations Maint Building,Buildings - Repairs And Maint,GA102,04/01/2018,496457,350,REVENUE,ENGIE SERVICES LTD,133267
North East Lincolnshire Council,http://statistics.data.gov.uk/id/local-authority/00FC),Chief Executive,Director Of Finance,Facilities Management,Energy Costs,Electricity,GB102,15/01/2018,499150,516.26,REVENUE,EASTFIELD PRIMARY ACADEMY,121907
North East Lincolnshire Council,http://statistics.data.gov.uk/id/local-authority/00FC),Chief Executive,Director Of Finance,Facilities Management,Energy Costs,Heating Fuel,GB103,15/01/2018,499151,776,REVENUE,EASTFIELD PRIMARY ACADEMY,121907
North East Lincolnshire Council,http://statistics.data.gov.uk/id/local-authority/00FC),Chief Executive,Director Of Finance,Facilities Management,Energy Costs,Electricity,GB102,02/01/2018,497138,508.68,REVENUE,THRUNSCOE PRIMARY AND NURSERY ACADEMY,118749
North East Lincolnshire Council,http://statistics.data.gov.uk/id/local-authority/00FC),Chief Executive,Director Of Finance,Facilities Management,Cleaning And Domestic Supplies,Cleaning - Services,GH102,02/01/2018,497138,1244.02,REVENUE,THRUNSCOE PRIMARY AND NURSERY ACADEMY,118749
North East Lincolnshire Council,http://statistics.data.gov.uk/id/local-authority/00FC),Chief Executive,Director Of Finance,Facilities Management,Rep Alterations Maint Building,Buildings - Repairs And Maint,GA102,04/01/2018,496467,350,REVENUE,ENGIE SERVICES LTD,133267
North East Lincolnshire Council,http://statistics.data.gov.uk/id/local-authority/00FC),Chief Executive,Director Of Finance,Facilities Management,Energy Costs,Electricity,GB102,04/01/2018,497672,665.17,REVENUE,WILLOWS PRIMARY ACADEMY,120478
North East Lincolnshire Council,http://statistics.data.gov.uk/id/local-authority/00FC),Chief Executive,Director Of Finance,Facilities Management,Energy Costs,Electricity,GB102,11/01/2018,498793,347.51,REVENUE,WILLOWS PRIMARY ACADEMY,120478
North East Lincolnshire Council,http://statistics.data.gov.uk/id/local-authority/00FC),Chief Executive,Director Of Finance,Facilities Management,Energy Costs,Electricity,GB102,11/01/2018,498794,553.1,REVENUE,WILLOWS PRIMARY ACADEMY,120478
North East Lincolnshire Council,http://statistics.data.gov.uk/id/local-authority/00FC),Chief Executive,Director Of Finance,Facilities Management,Energy Costs,Gas,GB101,11/01/2018,498791,321.74,REVENUE,WILLOWS PRIMARY ACADEMY,120478
North East Lincolnshire Council,http://statistics.data.gov.uk/id/local-authority/00FC),Chief Executive,Director Of Finance,Facilities Management,Cleaning And Domestic Supplies,Cleaning - Services,GH102,18/01/2018,499510,820.06,REVENUE,FUTURE CARPET CLEANING SERVICES LTD,109864
North East Lincolnshire Council,http://statistics.data.gov.uk/id/local-authority/00FC),Chief Executive,Director Of Finance,Facilities Management,Energy Costs,Electricity,GB102,18/01/2018,497410,474.34,REVENUE,YARBOROUGH ACADEMY,112852
North East Lincolnshire Council,http://statistics.data.gov.uk/id/local-authority/00FC),Chief Executive,Director Of Finance,Facilities Management,Energy Costs,Electricity,GB102,11/01/2018,498857,407.35,REVENUE,YARBOROUGH ACADEMY,112852
North East Lincolnshire Council,http://statistics.data.gov.uk/id/local-authority/00FC),Chief Executive,Director Of Finance,Facilities Management,Cleaning And Domestic Supplies,Cleaning - Services,GH102,18/01/2018,499487,1021.08,REVENUE,FUTURE CLEANING SERVICES LTD,102557
North East Lincolnshire Council,http://statistics.data.gov.uk/id/local-authority/00FC),Chief Executive,Director Of Finance,Facilities Management,Cleaning And Domestic Supplies,Cleaning - Services,GH102,18/01/2018,499488,582.75,REVENUE,FUTURE CLEANING SERVICES LTD,102557
North East Lincolnshire Council,http://statistics.data.gov.uk/id/local-authority/00FC),Chief Executive,Director Of Finance,Facilities Management,Rep Alterations Maint Building,Buildings - Repairs And Maint,GA102,22/01/2018,499353,1565.6,REVENUE,VERITAS PROPERTY MANAGEMENT,138462
North East Lincolnshire Council,http://statistics.data.gov.uk/id/local-authority/00FC),Chief Executive,Director Of Finance,Facilities Management,Cleaning And Domestic Supplies,Cleaning - Services,GH102,23/01/2018,499145,1971.31,REVENUE,CANNON HYGIENE LIMITED,139198
North East Lincolnshire Council,http://statistics.data.gov.uk/id/local-authority/00FC),Chief Executive,Director Of Finance,Facilities Management,Water Services,Water,GE101,23/01/2018,500261,272.99,REVENUE,ANGLIAN WATER,100508
North East Lincolnshire Council,http://statistics.data.gov.uk/id/local-authority/00FC),Chief Executive,Director Of Finance,Facilities Management,Energy Costs,Gas,GB101,16/01/2018,499367,-129.71,REVENUE,CORONA ENERGY,133493
North East Lincolnshire Council,http://statistics.data.gov.uk/id/local-authority/00FC),Chief Executive,Director Of Finance,Facilities Management,Energy Costs,Gas,GB101,16/01/2018,499370,-27.25,REVENUE,CORONA ENERGY,133493
North East Lincolnshire Council,http://statistics.data.gov.uk/id/local-authority/00FC),Chief Executive,Director Of Finance,Facilities Management,Energy Costs,Gas,GB101,16/01/2018,499371,-38.68,REVENUE,CORONA ENERGY,133493
North East Lincolnshire Council,http://statistics.data.gov.uk/id/local-authority/00FC),Chief Executive,Director Of Finance,Facilities Management,Rents,Rent,GC101,08/01/2018,498272,-371.67,REVENUE,MARCUS KING & CO,101446
North East Lincolnshire Council,http://statistics.data.gov.uk/id/local-authority/00FC),Chief Executive,Director Of Finance,Facilities Management,Rents,Rent,GC101,08/01/2018,498273,-26.71,REVENUE,MARCUS KING & CO,101446
North East Lincolnshire Council,http://statistics.data.gov.uk/id/local-authority/00FC),Chief Executive,Director Of Finance,Facilities Management,Rents,Service Charge,GC102,08/01/2018,498272,-68.32,REVENUE,MARCUS KING & CO,101446
North East Lincolnshire Council,http://statistics.data.gov.uk/id/local-authority/00FC),Chief Executive,Director Of Finance,Facilities Management,Rents,Service Charge,GC102,08/01/2018,498273,-11.53,REVENUE,MARCUS KING & CO,101446
North East Lincolnshire Council,http://statistics.data.gov.uk/id/local-authority/00FC),Chief Executive,Director Of Finance,Facilities Management,Premises Insurance,Premises Insurance - Premiums,GK101,08/01/2018,498274,-1206.65,REVENUE,MARCUS KING & CO,101446
North East Lincolnshire Council,http://statistics.data.gov.uk/id/local-authority/00FC),Chief Executive,Director Of Finance,Facilities Management,Energy Costs,Electricity,GB102,04/01/2018,497669,476.59,REVENUE,ASSOCIATED BRITISH PORTS,100834
North East Lincolnshire Council,http://statistics.data.gov.uk/id/local-authority/00FC),Chief Executive,Director Of Finance,Facilities Management,Energy Costs,Electricity,GB102,02/01/2018,497384,583.63,REVENUE,ASSOCIATED BRITISH PORTS,100834
North East Lincolnshire Council,http://statistics.data.gov.uk/id/local-authority/00FC),Chief Executive,Director Of Finance,Facilities Management,Energy Costs,Electricity,GB102,04/01/2018,497139,330,REVENUE,NPOWER,101368
North East Lincolnshire Council,http://statistics.data.gov.uk/id/local-authority/00FC),Chief Executive,Director Of Finance,Facilities Management,Energy Costs,Heating Fuel,GB103,11/01/2018,498693,502.2,REVENUE,OIL NRG,138198
North East Lincolnshire Council,http://statistics.data.gov.uk/id/local-authority/00FC),Chief Executive,Director Of Finance,Facilities Management,Energy Costs,Heating Fuel,GB103,11/01/2018,498694,502.2,REVENUE,OIL NRG,138198
North East Lincolnshire Council,http://statistics.data.gov.uk/id/local-authority/00FC),Chief Executive,Director Of Finance,Facilities Management,Energy Costs,Heating Fuel,GB103,31/01/2018,501401,542.04,REVENUE,OIL NRG,138198
North East Lincolnshire Council,http://statistics.data.gov.uk/id/local-authority/00FC),Chief Executive,Director Of Finance,Facilities Management,Energy Costs,Heating Fuel,GB103,31/01/2018,501387,1045.4,REVENUE,OIL NRG,138198
North East Lincolnshire Council,http://statistics.data.gov.uk/id/local-authority/00FC),Chief Executive,Director Of Finance,Facilities Management,Rents,Rent,GC101,04/01/2018,496873,36270,REVENUE,WYKELAND GROUP LTD,101729
North East Lincolnshire Council,http://statistics.data.gov.uk/id/local-authority/00FC),Chief Executive,Director Of Finance,Facilities Management,Rents,Rent,GC101,22/01/2018,499193,36270,REVENUE,WYKELAND GROUP LTD,101729
North East Lincolnshire Council,http://statistics.data.gov.uk/id/local-authority/00FC),Chief Executive,Director Of Finance,Facilities Management,Rents,Rent,GC101,22/01/2018,500142,-36270,REVENUE,WYKELAND GROUP LTD,101729
North East Lincolnshire Council,http://statistics.data.gov.uk/id/local-authority/00FC),Chief Executive,Director Of Finance,Facilities Management,Energy Costs,Gas,GB101,16/01/2018,499370,-18.17,REVENUE,CORONA ENERGY,133493
North East Lincolnshire Council,http://statistics.data.gov.uk/id/local-authority/00FC),Chief Executive,Director Of Finance,Facilities Management,Energy Costs,Gas,GB101,16/01/2018,499371,-25.78,REVENUE,CORONA ENERGY,133493
North East Lincolnshire Council,http://statistics.data.gov.uk/id/local-authority/00FC),Chief Executive,Director Of Finance,Facilities Management,Public Transport,Public Transport - Employees,JD101,08/01/2018,498267,-149,REVENUE,CLICK TRAVEL,127476
North East Lincolnshire Council,http://statistics.data.gov.uk/id/local-authority/00FC),Chief Executive,Director Of Finance,Facilities Management,Public Transport,Public Transport - Employees,JD101,08/01/2018,498268,-2.3,REVENUE,CLICK TRAVEL,127476
North East Lincolnshire Council,http://statistics.data.gov.uk/id/local-authority/00FC),Chief Executive,Director Of Finance,Facilities Management,Energy Costs,Electricity,GB102,15/01/2018,499061,421.09,REVENUE,OLD CLEE PRIMARY ACADEMY,119822
North East Lincolnshire Council,http://statistics.data.gov.uk/id/local-authority/00FC),Chief Executive,Director Of Finance,Facilities Management,Energy Costs,Gas,GB101,04/01/2018,496871,688.11,REVENUE,OLD CLEE PRIMARY ACADEMY,119822
North East Lincolnshire Council,http://statistics.data.gov.uk/id/local-authority/00FC),Chief Executive,Director Of Finance,Facilities Management,Water Services,Water,GE101,04/01/2018,496872,281.49,REVENUE,OLD CLEE PRIMARY ACADEMY,119822
North East Lincolnshire Council,http://statistics.data.gov.uk/id/local-authority/00FC),Chief Executive,Director Of Finance,Facilities Management,Rents,Rent,GC101,15/01/2018,499146,1250,REVENUE,THE GRIMSBY INSTITUTE OF FURTHER,102742
North East Lincolnshire Council,http://statistics.data.gov.uk/id/local-authority/00FC),Chief Executive,Director Of Finance,Facilities Management,Rents,Service Charge,GC102,15/01/2018,499146,1100,REVENUE,THE GRIMSBY INSTITUTE OF FURTHER,102742
North East Lincolnshire Council,http://statistics.data.gov.uk/id/local-authority/00FC),Chief Executive,Director Of Finance,Security,Rep Alterations Maint Building,Security Alarms And Cctv,GA101,02/01/2018,497135,550.28,REVENUE,ENGIE SERVICES LTD,133267
North East Lincolnshire Council,http://statistics.data.gov.uk/id/local-authority/00FC),Chief Executive,Director Of Finance,Commercial Estate,Cleaning And Domestic Supplies,Refuse Collection,GH104,15/01/2018,499126,257.6,REVENUE,ELLGIA LIMITED,101433
North East Lincolnshire Council,http://statistics.data.gov.uk/id/local-authority/00FC),Chief Executive,Director Of Finance,Commercial Estate,Cleaning And Domestic Supplies,Refuse Collection,GH104,15/01/2018,499127,317.8,REVENUE,ELLGIA LIMITED,101433
North East Lincolnshire Council,http://statistics.data.gov.uk/id/local-authority/00FC),Chief Executive,Director Of Finance,Commercial Estate,Cleaning And Domestic Supplies,Refuse Collection,GH104,15/01/2018,499140,291.2,REVENUE,ELLGIA LIMITED,101433
North East Lincolnshire Council,http://statistics.data.gov.uk/id/local-authority/00FC),Chief Executive,Director Of Finance,Commercial Estate,Rents,Rent,GC101,15/01/2018,499062,1468.75,REVENUE,ASSOCIATED BRITISH PORTS,100834
North East Lincolnshire Council,http://statistics.data.gov.uk/id/local-authority/00FC),Chief Executive,Director Of Finance,Commercial Estate,Energy Costs,Gas,GB101,29/01/2018,500972,303.19,REVENUE,BRITISH GAS TRADING LTD,101507
North East Lincolnshire Council,http://statistics.data.gov.uk/id/local-authority/00FC),Chief Executive,Director Of Finance,Commercial Estate,Cleaning And Domestic Supplies,Cleaning - Consumables,GH103,15/01/2018,499125,354.97,REVENUE,PETER HOGARTH & SONS LTD,100815
North East Lincolnshire Council,http://statistics.data.gov.uk/id/local-authority/00FC),Chief Executive,Director Of Finance,Commercial Estate,Rents,Rent,GC101,04/01/2018,496875,2562.5,REVENUE,ASSOCIATED BRITISH PORTS,100834
North East Lincolnshire Council,http://statistics.data.gov.uk/id/local-authority/00FC),Chief Executive,Director Of Finance,Commercial Estate,Water Services,Water,GE101,04/01/2018,497670,1952.31,REVENUE,ASSOCIATED BRITISH PORTS,100834
North East Lincolnshire Council,http://statistics.data.gov.uk/id/local-authority/00FC),Chief Executive,Director Of Finance,Commercial Estate,Energy Costs,Electricity,GB102,18/01/2018,499205,3353.98,REVENUE,BRITISH GAS TRADING LTD,101507
North East Lincolnshire Council,http://statistics.data.gov.uk/id/local-authority/00FC),Chief Executive,Director Of Finance,Commercial Estate,Energy Costs,Electricity,GB102,16/01/2018,499203,632.98,REVENUE,BRITISH GAS TRADING LTD,101507
North East Lincolnshire Council,http://statistics.data.gov.uk/id/local-authority/00FC),Chief Executive,Director Of Finance,Bus Support & Customer Serv,Miscellaneous Expenses,Other Expenses General,LL119,08/01/2018,497883,285.69,REVENUE,STOR-A-FILE LTD,124466
North East Lincolnshire Council,http://statistics.data.gov.uk/id/local-authority/00FC),Chief Executive,Director Of Finance,Bus Support & Customer Serv,Miscellaneous Expenses,Other Expenses General,LL119,16/01/2018,499094,3035.16,REVENUE,STOR-A-FILE LTD,124466
North East Lincolnshire Council,http://statistics.data.gov.uk/id/local-authority/00FC),Chief Executive,Director Of Finance,Bus Support & Customer Serv,Miscellaneous Expenses,Other Expenses General,LL119,16/01/2018,499093,715.53,REVENUE,STOR-A-FILE LTD,124466
North East Lincolnshire Council,http://statistics.data.gov.uk/id/local-authority/00FC),Chief Executive,Director Of Finance,Bus Support & Customer Serv,Equip / Furniture / Materials,Goods For Resale,LA123,09/01/2018,497843,523.8,REVENUE,NORTHGATE PUBLIC SERVICES (UK) LTD,101841
North East Lincolnshire Council,http://statistics.data.gov.uk/id/local-authority/00FC),Chief Executive,Director Of Finance,Bus Support & Customer Serv,Private Contractors,External Security Services,PH103,25/01/2018,500257,487.97,REVENUE,G4S CASH SERVICES (UK) LIMITED,100952
North East Lincolnshire Council,http://statistics.data.gov.uk/id/local-authority/00FC),Chief Executive,Director Of Finance,Bus Support & Customer Serv,Communications And Computing,Postage,LF111,04/01/2018,497519,305.83,REVENUE,ROYAL MAIL GROUP PLC,101082
North East Lincolnshire Council,http://statistics.data.gov.uk/id/local-authority/00FC),Chief Executive,Director Of Finance,Bus Support & Customer Serv,Communications And Computing,Postage,LF111,25/01/2018,500378,305.83,REVENUE,ROYAL MAIL GROUP PLC,101082
North East Lincolnshire Council,http://statistics.data.gov.uk/id/local-authority/00FC),Chief Executive,Director Of Finance,Bus Support & Customer Serv,Communications And Computing,Postage,LF111,04/01/2018,497655,273.68,REVENUE,WHISTL UK LTD,135925
North East Lincolnshire Council,http://statistics.data.gov.uk/id/local-authority/00FC),Chief Executive,Director Of Finance,Bus Support & Customer Serv,Communications And Computing,Postage,LF111,08/01/2018,497624,1777.27,REVENUE,WHISTL UK LTD,135925
North East Lincolnshire Council,http://statistics.data.gov.uk/id/local-authority/00FC),Chief Executive,Director Of Finance,Bus Support & Customer Serv,Communications And Computing,Postage,LF111,08/01/2018,497625,-148.35,REVENUE,WHISTL UK LTD,135925
North East Lincolnshire Council,http://statistics.data.gov.uk/id/local-authority/00FC),Chief Executive,Director Of Finance,Bus Support & Customer Serv,Communications And Computing,Postage,LF111,22/01/2018,499781,436.33,REVENUE,WHISTL UK LTD,135925
North East Lincolnshire Council,http://statistics.data.gov.uk/id/local-authority/00FC),Chief Executive,Director Of Finance,Bus Support & Customer Serv,Communications And Computing,Postage,LF111,22/01/2018,499584,1144.08,REVENUE,WHISTL UK LTD,135925
North East Lincolnshire Council,http://statistics.data.gov.uk/id/local-authority/00FC),Chief Executive,Director Of Finance,Bus Support & Customer Serv,Communications And Computing,Postage,LF111,29/01/2018,499934,1327.35,REVENUE,WHISTL UK LTD,135925
North East Lincolnshire Council,http://statistics.data.gov.uk/id/local-authority/00FC),Chief Executive,Director Of Finance,Bus Support & Customer Serv,Communications And Computing,Postage,LF111,29/01/2018,500866,895.86,REVENUE,WHISTL UK LTD,135925
North East Lincolnshire Council,http://statistics.data.gov.uk/id/local-authority/00FC),Chief Executive,Director Of Finance,Bus Support & Customer Serv,Communications And Computing,Postage,LF111,04/01/2018,497539,268.76,REVENUE,ROYAL MAIL GROUP PLC,101082
North East Lincolnshire Council,http://statistics.data.gov.uk/id/local-authority/00FC),Chief Executive,Director Of Finance,Bus Support & Customer Serv,Communications And Computing,Postage,LF111,25/01/2018,499893,293.56,REVENUE,ROYAL MAIL GROUP PLC,101082
North East Lincolnshire Council,http://statistics.data.gov.uk/id/local-authority/00FC),Chief Executive,Director Of Finance,Digital Transformation,Equip / Furniture / Materials,Promotions,LA124,09/01/2018,498129,460,REVENUE,OPEN FORUM EVENTS LTD,127752
North East Lincolnshire Council,http://statistics.data.gov.uk/id/local-authority/00FC),Chief Executive,Director Of Economy & Growth,Beach Safety,Indirect Employee Expenses,Redundancy,EB109,25/01/2018,500340,REDACTED PERSONAL INFORMATION,REVENUE,EAST RIDING OF YORKSHIRE,100377
North East Lincolnshire Council,http://statistics.data.gov.uk/id/local-authority/00FC),Chief Executive,Director Of Economy & Growth,Beach Safety,Equip / Furniture / Materials,Equipment - Purchase,LA101,31/01/2018,501376,285,REVENUE,SRP TOILET HIRE LTD,104341
North East Lincolnshire Council,http://statistics.data.gov.uk/id/local-authority/00FC),Chief Executive,Director Of Economy & Growth,Discovery Centre,Equip / Furniture / Materials,Goods For Resale,LA123,04/01/2018,497652,403.99,REVENUE,GAINSBOROUGH GIFTWARE LTD,105432
North East Lincolnshire Council,http://statistics.data.gov.uk/id/local-authority/00FC),Chief Executive,Director Of Economy & Growth,Discovery Centre,Equip / Furniture / Materials,Goods For Resale,LA123,15/01/2018,498523,-7,REVENUE,GAINSBOROUGH GIFTWARE LTD,105432
North East Lincolnshire Council,http://statistics.data.gov.uk/id/local-authority/00FC),Chief Executive,Director Of Economy & Growth,Discovery Centre,Equip / Furniture / Materials,Goods For Resale,LA123,16/01/2018,498521,-13,REVENUE,GAINSBOROUGH GIFTWARE LTD,105432
North East Lincolnshire Council,http://statistics.data.gov.uk/id/local-authority/00FC),Chief Executive,Director Of Economy & Growth,Discovery Centre,Equip / Furniture / Materials,Goods For Resale,LA123,16/01/2018,498522,-12.05,REVENUE,GAINSBOROUGH GIFTWARE LTD,105432
North East Lincolnshire Council,http://statistics.data.gov.uk/id/local-authority/00FC),Chief Executive,Director Of Economy & Growth,Discovery Centre,Equip / Furniture / Materials,Goods For Resale,LA123,16/01/2018,498524,-8.8,REVENUE,GAINSBOROUGH GIFTWARE LTD,105432
North East Lincolnshire Council,http://statistics.data.gov.uk/id/local-authority/00FC),Chief Executive,Director Of Economy & Growth,Discovery Centre,Equip / Furniture / Materials,Goods For Resale,LA123,22/01/2018,499812,490.46,REVENUE,GAINSBOROUGH GIFTWARE LTD,105432
North East Lincolnshire Council,http://statistics.data.gov.uk/id/local-authority/00FC),Chief Executive,Director Of Economy & Growth,Discovery Centre,Equip / Furniture / Materials,Goods For Resale,LA123,25/01/2018,500540,327.78,REVENUE,KEYCRAFT,106556
North East Lincolnshire Council,http://statistics.data.gov.uk/id/local-authority/00FC),Chief Executive,Director Of Economy & Growth,Discovery Centre,Private Contractors,Third Party Prov - Private,PH101,04/01/2018,497676,373,REVENUE,MRS TRACEY L WALSH T/A SILVERBOO,132567
North East Lincolnshire Council,http://statistics.data.gov.uk/id/local-authority/00FC),Chief Executive,Director Of Economy & Growth,Discovery Centre,Equip / Furniture / Materials,Goods For Resale,LA123,04/01/2018,497603,438.83,REVENUE,JOHN TURNER,100921
North East Lincolnshire Council,http://statistics.data.gov.uk/id/local-authority/00FC),Chief Executive,Director Of Economy & Growth,Discovery Centre,Equip / Furniture / Materials,Goods For Resale,LA123,23/01/2018,499950,-11.78,REVENUE,JOHN TURNER,100921
North East Lincolnshire Council,http://statistics.data.gov.uk/id/local-authority/00FC),Chief Executive,Director Of Economy & Growth,Discovery Centre,Equip / Furniture / Materials,Goods For Resale,LA123,23/01/2018,499947,-5.85,REVENUE,HOLDSWORTH LTD,121021
North East Lincolnshire Council,http://statistics.data.gov.uk/id/local-authority/00FC),Chief Executive,Director Of Economy & Growth,Discovery Centre,Equip / Furniture / Materials,Goods For Resale,LA123,23/01/2018,499942,-11.99,REVENUE,HOLDSWORTH LTD,121021
North East Lincolnshire Council,http://statistics.data.gov.uk/id/local-authority/00FC),Chief Executive,Director Of Economy & Growth,Discovery Centre,Equip / Furniture / Materials,Goods For Resale,LA123,23/01/2018,499943,-6.4,REVENUE,HOLDSWORTH LTD,121021
North East Lincolnshire Council,http://statistics.data.gov.uk/id/local-authority/00FC),Chief Executive,Director Of Economy & Growth,Discovery Centre,Equip / Furniture / Materials,Goods For Resale,LA123,23/01/2018,499944,-10.99,REVENUE,HOLDSWORTH LTD,121021
North East Lincolnshire Council,http://statistics.data.gov.uk/id/local-authority/00FC),Chief Executive,Director Of Economy & Growth,Discovery Centre,Equip / Furniture / Materials,Goods For Resale,LA123,29/01/2018,499949,-12.3,REVENUE,HOLDSWORTH LTD,121021
North East Lincolnshire Council,http://statistics.data.gov.uk/id/local-authority/00FC),Chief Executive,Director Of Economy & Growth,Discovery Centre,Equip / Furniture / Materials,Goods For Resale,LA123,23/01/2018,499946,-8.99,REVENUE,HOLDSWORTH LTD,121021
North East Lincolnshire Council,http://statistics.data.gov.uk/id/local-authority/00FC),Chief Executive,Director Of Economy & Growth,Discovery Centre,Equip / Furniture / Materials,Goods For Resale,LA123,23/01/2018,499948,-11.15,REVENUE,HOLDSWORTH LTD,121021
North East Lincolnshire Council,http://statistics.data.gov.uk/id/local-authority/00FC),Chief Executive,Director Of Economy & Growth,Discovery Centre,Equip / Furniture / Materials,Goods For Resale,LA123,23/01/2018,500007,427.3,REVENUE,R W STOKES & SONS LTD,123706
North East Lincolnshire Council,http://statistics.data.gov.uk/id/local-authority/00FC),Chief Executive,Director Of Economy & Growth,Discovery Centre,Equip / Furniture / Materials,Goods For Resale,LA123,29/01/2018,499997,306.55,REVENUE,TURNER BROS LTD,112906
North East Lincolnshire Council,http://statistics.data.gov.uk/id/local-authority/00FC),Chief Executive,Director Of Economy & Growth,Events,Rep Alterations Maint Building,Buildings - Repairs And Maint,GA102,11/01/2018,498681,4387.35,REVENUE,ENGIE SERVICES LTD,133267
North East Lincolnshire Council,http://statistics.data.gov.uk/id/local-authority/00FC),Chief Executive,Director Of Economy & Growth,Events,Miscellaneous Expenses,Licences,LL116,15/01/2018,498455,4214.04,REVENUE,PRS FOR MUSIC,100946
North East Lincolnshire Council,http://statistics.data.gov.uk/id/local-authority/00FC),Chief Executive,Director Of Economy & Growth,Events,Customer And Client Receipts,Fees/Chrgs-O/Side Scope Vat 4,VC125,23/01/2018,500086,1200,REVENUE,THE HEALTH TREE FOUNDATION,134756
North East Lincolnshire Council,http://statistics.data.gov.uk/id/local-authority/00FC),Chief Executive,Director Of Economy & Growth,Marketing And Promotion,Equip / Furniture / Materials,Promotions,LA124,04/01/2018,497639,2000,REVENUE,ENGIE SERVICES LTD,133267
North East Lincolnshire Council,http://statistics.data.gov.uk/id/local-authority/00FC),Chief Executive,Director Of Economy & Growth,Marketing And Promotion,Equip / Furniture / Materials,Promotions,LA124,15/01/2018,498715,420,REVENUE,ONEWAY TM LIMITED,128602
North East Lincolnshire Council,http://statistics.data.gov.uk/id/local-authority/00FC),Chief Executive,Director Of Economy & Growth,Marketing And Promotion,Equip / Furniture / Materials,Promotions,LA124,04/01/2018,497612,400,REVENUE,WEST LINDSEY DISTRICT COUNCIL,107702
North East Lincolnshire Council,http://statistics.data.gov.uk/id/local-authority/00FC),Chief Executive,Director Of Economy & Growth,Marketing And Promotion,Equip / Furniture / Materials,Promotions,LA124,04/01/2018,497621,600,REVENUE,HERITAGE TRUST OF LINCOLNSHIRE,110652
North East Lincolnshire Council,http://statistics.data.gov.uk/id/local-authority/00FC),Chief Executive,Director Of Economy & Growth,Marketing And Promotion,Equip / Furniture / Materials,Promotions,LA124,16/01/2018,499078,2000,REVENUE,LINCOLNSHIRE CHAMBER OF COMMERCE & INDUSTRY,138451
North East Lincolnshire Council,http://statistics.data.gov.uk/id/local-authority/00FC),Chief Executive,Director Of Economy & Growth,Marketing And Promotion,Equip / Furniture / Materials,Promotions,LA124,22/01/2018,499234,900,REVENUE,PURPLE SWIRL,135176
North East Lincolnshire Council,http://statistics.data.gov.uk/id/local-authority/00FC),Chief Executive,Director Of Economy & Growth,Marketing And Promotion,Equip / Furniture / Materials,Promotions,LA124,22/01/2018,499233,900,REVENUE,PURPLE SWIRL,135176
North East Lincolnshire Council,http://statistics.data.gov.uk/id/local-authority/00FC),Chief Executive,Director Of Economy & Growth,Museums & N F Heritage Centre,Equip / Furniture / Materials,Equipment - Purchase,LA101,25/01/2018,500541,345,REVENUE,ENGIE SERVICES LTD,133267
North East Lincolnshire Council,http://statistics.data.gov.uk/id/local-authority/00FC),Chief Executive,Director Of Economy & Growth,Museums & N F Heritage Centre,Contributions To Provisions,Contributions - Third Sector,LK102,11/01/2018,498164,4350,REVENUE,NORTH LINCOLNSHIRE COUNCIL,101186
North East Lincolnshire Council,http://statistics.data.gov.uk/id/local-authority/00FC),Chief Executive,Director Of Economy & Growth,Museums & N F Heritage Centre,Equip / Furniture / Materials,Goods For Resale,LA123,23/01/2018,499937,-5.4,REVENUE,HOLDSWORTH LTD,121021
North East Lincolnshire Council,http://statistics.data.gov.uk/id/local-authority/00FC),Chief Executive,Director Of Economy & Growth,Museums & N F Heritage Centre,Equip / Furniture / Materials,Goods For Resale,LA123,23/01/2018,499941,-24.3,REVENUE,HOLDSWORTH LTD,121021
North East Lincolnshire Council,http://statistics.data.gov.uk/id/local-authority/00FC),Chief Executive,Director Of Economy & Growth,Museums & N F Heritage Centre,Equip / Furniture / Materials,Goods For Resale,LA123,23/01/2018,499938,-5.4,REVENUE,HOLDSWORTH LTD,121021
North East Lincolnshire Council,http://statistics.data.gov.uk/id/local-authority/00FC),Chief Executive,Director Of Economy & Growth,Museums & N F Heritage Centre,Equip / Furniture / Materials,Goods For Resale,LA123,04/01/2018,497540,-8.1,REVENUE,JOHN TURNER,100921
North East Lincolnshire Council,http://statistics.data.gov.uk/id/local-authority/00FC),Chief Executive,Director Of Economy & Growth,Museums & N F Heritage Centre,Equip / Furniture / Materials,Goods For Resale,LA123,25/01/2018,500429,293.64,REVENUE,KEYCRAFT,106556
North East Lincolnshire Council,http://statistics.data.gov.uk/id/local-authority/00FC),Chief Executive,Director Of Economy & Growth,Museums & N F Heritage Centre,Equip / Furniture / Materials,Equipment - Purchase,LA101,11/01/2018,496938,756.17,REVENUE,PRINT & COPY CENTRE,101409
North East Lincolnshire Council,http://statistics.data.gov.uk/id/local-authority/00FC),Chief Executive,Director Of Economy & Growth,Tourist Information Centre,Private Contractors,Third Party Prov - Private,PH101,11/01/2018,498527,350.25,REVENUE,CLEETHORPES CRICKET CLUB,116011
North East Lincolnshire Council,http://statistics.data.gov.uk/id/local-authority/00FC),Chief Executive,Director Of Economy & Growth,Tourist Information Centre,Private Contractors,Third Party Prov - Private,PH101,22/01/2018,499785,472.1,REVENUE,NATIONAL EXPRESS LTD,100835
North East Lincolnshire Council,http://statistics.data.gov.uk/id/local-authority/00FC),Chief Executive,Director Of Economy & Growth,Tourist Information Centre,Private Contractors,Third Party Prov - Private,PH101,09/01/2018,498511,499.9,REVENUE,NATIONAL EXPRESS LTD,100835
North East Lincolnshire Council,http://statistics.data.gov.uk/id/local-authority/00FC),Chief Executive,Director Of Economy & Growth,Tourist Information Centre,Private Contractors,Third Party Prov - Private,PH101,08/01/2018,498303,966.6,REVENUE,NATIONAL EXPRESS LTD,100835
North East Lincolnshire Council,http://statistics.data.gov.uk/id/local-authority/00FC),Chief Executive,Director Of Economy & Growth,Tourist Information Centre,Private Contractors,Third Party Prov - Private,PH101,04/01/2018,497388,430,REVENUE,GRIMSBY AUDITORIUM,128160
North East Lincolnshire Council,http://statistics.data.gov.uk/id/local-authority/00FC),Chief Executive,Director Of Economy & Growth,Community Investment Team,Private Contractors,Third Party Prov - Private,PH101,25/01/2018,500259,1130.35,REVENUE,BIRD AND GOODWIN LTD,100603
North East Lincolnshire Council,http://statistics.data.gov.uk/id/local-authority/00FC),Chief Executive,Director Of Economy & Growth,Community Investment Team,Private Contractors,Third Party Prov - Private,PH101,25/01/2018,500524,1443,REVENUE,CENTRAL INSULATIONS LTD,116570
North East Lincolnshire Council,http://statistics.data.gov.uk/id/local-authority/00FC),Chief Executive,Director Of Economy & Growth,Community Investment Team,Private Contractors,Third Party Prov - Private,PH101,15/01/2018,498853,1347.5,REVENUE,DAVID WISE MOTORS LTD,136196
North East Lincolnshire Council,http://statistics.data.gov.uk/id/local-authority/00FC),Chief Executive,Director Of Economy & Growth,Community Investment Team,Private Contractors,Third Party Prov - Private,PH101,23/01/2018,500058,608.01,REVENUE,TOMMY SANT CAR CARE LTD,136281
North East Lincolnshire Council,http://statistics.data.gov.uk/id/local-authority/00FC),Chief Executive,Director Of Economy & Growth,Community Investment Team,Private Contractors,Third Party Prov - Private,PH101,23/01/2018,500034,984.75,REVENUE,LINCS DOORS LTD,136701
North East Lincolnshire Council,http://statistics.data.gov.uk/id/local-authority/00FC),Chief Executive,Director Of Economy & Growth,Community Investment Team,Private Contractors,Third Party Prov - Private,PH101,15/01/2018,498842,1092,REVENUE,BIKE FIX,136836
North East Lincolnshire Council,http://statistics.data.gov.uk/id/local-authority/00FC),Chief Executive,Director Of Economy & Growth,Community Investment Team,Other Agencies,Grants Pd Over To Third Party,PJ138,09/01/2018,498096,9243.28,REVENUE,FOX CORRUGATED MACHINERY (UK) LTD,137833
North East Lincolnshire Council,http://statistics.data.gov.uk/id/local-authority/00FC),Chief Executive,Director Of Economy & Growth,Community Investment Team,Other Agencies,Grants Pd Over To Third Party,PJ138,18/01/2018,499382,7399.5,REVENUE,RRADAR LTD,137124
North East Lincolnshire Council,http://statistics.data.gov.uk/id/local-authority/00FC),Chief Executive,Director Of Economy & Growth,Community Investment Team,Other Agencies,Grants Pd Over To Third Party,PJ138,23/01/2018,500096,11832.55,REVENUE,TRUCK LINKS LTD,113402
North East Lincolnshire Council,http://statistics.data.gov.uk/id/local-authority/00FC),Chief Executive,Director Of Economy & Growth,Community Investment Team,Other Agencies,Grants Pd Over To Third Party,PJ138,23/01/2018,500063,681.16,REVENUE,INTEGRA BUILDINGS LTD,137168
North East Lincolnshire Council,http://statistics.data.gov.uk/id/local-authority/00FC),Chief Executive,Director Of Economy & Growth,Community Investment Team,Other Agencies,Grants Pd Over To Third Party,PJ138,22/01/2018,499762,446.48,REVENUE,NETOPIAN LTD,128540
North East Lincolnshire Council,http://statistics.data.gov.uk/id/local-authority/00FC),Chief Executive,Director Of Economy & Growth,Community Investment Team,Other Agencies,Grants Pd Over To Third Party,PJ138,04/01/2018,497585,10000,REVENUE,HELIX PRECISION MACHINING LTD,122365
North East Lincolnshire Council,http://statistics.data.gov.uk/id/local-authority/00FC),Chief Executive,Director Of Economy & Growth,Community Investment Team,Other Agencies,Grants Pd Over To Third Party,PJ138,16/01/2018,499384,8056.58,REVENUE,SWEETING BROS LTD,128061
North East Lincolnshire Council,http://statistics.data.gov.uk/id/local-authority/00FC),Chief Executive,Director Of Economy & Growth,Community Investment Team,Other Agencies,Grants Pd Over To Third Party,PJ138,09/01/2018,498549,9000,REVENUE,CAT-TECH EUROPE LIMITED,138456
North East Lincolnshire Council,http://statistics.data.gov.uk/id/local-authority/00FC),Chief Executive,Director Of Economy & Growth,Community Investment Team,Other Agencies,Grants Pd Over To Third Party,PJ138,22/01/2018,499811,27037.31,REVENUE,PLANTAVI LTD,127880
North East Lincolnshire Council,http://statistics.data.gov.uk/id/local-authority/00FC),Chief Executive,Director Of Economy & Growth,Community Investment Team,Contributions To Provisions,Contributions - Other,LK103,22/01/2018,499645,42250,REVENUE,KINGSTON UPON HULL CITY COUNCIL,100541
North East Lincolnshire Council,http://statistics.data.gov.uk/id/local-authority/00FC),Chief Executive,Director Of Economy & Growth,Community Investment Team,Private Contractors,Third Party Prov - Private,PH101,15/01/2018,498357,750,REVENUE,ACCESS REGENERATION LTD,119929
North East Lincolnshire Council,http://statistics.data.gov.uk/id/local-authority/00FC),Chief Executive,Director Of Economy & Growth,Retained Function,Indirect Employee Expenses,Staff Advertising,EB113,22/01/2018,499551,405,REVENUE,IHBC ENTERPRISES LTD,139043
North East Lincolnshire Council,http://statistics.data.gov.uk/id/local-authority/00FC),Chief Executive,Director Of Economy & Growth,Retained Function,Car Allowances,Travel - Employees,JF101,08/01/2018,498271,-87.1,REVENUE,CLICK TRAVEL,127476
North East Lincolnshire Council,http://statistics.data.gov.uk/id/local-authority/00FC),Chief Executive,Director Of Economy & Growth,Retained Function,Print Stationery / Gen Off Exp,Publicity,LD105,29/01/2018,500590,1800,REVENUE,LINCOLNSHIRE COUNTY COUNCIL,130779
North East Lincolnshire Council,http://statistics.data.gov.uk/id/local-authority/00FC),Chief Executive,Director Of Economy & Growth,Retained Function,Grants And Subscriptions,Subscriptions,LJ101,08/01/2018,496428,441.48,REVENUE,RAIL NORTH,132644
North East Lincolnshire Council,http://statistics.data.gov.uk/id/local-authority/00FC),Chief Executive,Director Of Economy & Growth,Retained Function,Contributions To Provisions,Contributions - Other,LK103,09/01/2018,498543,1000,REVENUE,GRIMSBY RENEWABLES PARTNERSHIP LTD,130733
North East Lincolnshire Council,http://statistics.data.gov.uk/id/local-authority/00FC),Chief Executive,Director Of Economy & Growth,Retained Function,Miscellaneous Expenses,Other Expenses General,LL119,29/01/2018,500663,300,REVENUE,COMPANIES HOUSE,109985
North East Lincolnshire Council,http://statistics.data.gov.uk/id/local-authority/00FC),Chief Executive,Director Of Economy & Growth,Retained Function,Miscellaneous Expenses,Other Expenses General,LL119,08/01/2018,496515,16516.79,REVENUE,NETWORK RAIL,103407
North East Lincolnshire Council,http://statistics.data.gov.uk/id/local-authority/00FC),Chief Executive,Director Of Economy & Growth,Retained Function,Private Contractors,Third Party Prov - Private,PH101,15/01/2018,499108,49277.02,REVENUE,LOCAL PARTNERSHIPS LLP,135377
North East Lincolnshire Council,http://statistics.data.gov.uk/id/local-authority/00FC),Chief Executive,Director Of Economy & Growth,Retained Function,Private Contractors,Third Party Prov - Private,PH101,29/01/2018,499962,805,REVENUE,ONEWAY TM LIMITED,128602
North East Lincolnshire Council,http://statistics.data.gov.uk/id/local-authority/00FC),Chief Executive,Director Of Economy & Growth,Retained Function,Private Contractors,Third Party Prov - Private,PH101,29/01/2018,500626,747.45,REVENUE,BRINK MEDIA LTD,136378
North East Lincolnshire Council,http://statistics.data.gov.uk/id/local-authority/00FC),Chief Executive,Director Of Economy & Growth,Retained Function,Miscellaneous Expenses,Other Expenses General,LL119,09/01/2018,497884,2500,REVENUE,CLUGSTON SURVEY SERVICES,105668
North East Lincolnshire Council,http://statistics.data.gov.uk/id/local-authority/00FC),Chief Executive,Director Of Economy & Growth,In Scope Contract,Private Contractors,Contract Payments,PH105,04/01/2018,497636,89717.44,REVENUE,ENGIE SERVICES LTD,133267
North East Lincolnshire Council,http://statistics.data.gov.uk/id/local-authority/00FC),Chief Executive,Director Of Economy & Growth,In Scope Contract,Private Contractors,Contract Payments,PH105,23/01/2018,499933,89717.44,REVENUE,ENGIE SERVICES LTD,133267
North East Lincolnshire Council,http://statistics.data.gov.uk/id/local-authority/00FC),Chief Executive,Director Of Economy & Growth,In Scope Contract,Private Contractors,Contract Payments,PH105,04/01/2018,497636,297711.24,REVENUE,ENGIE SERVICES LTD,133267
North East Lincolnshire Council,http://statistics.data.gov.uk/id/local-authority/00FC),Chief Executive,Director Of Economy & Growth,In Scope Contract,Private Contractors,Contract Payments,PH105,23/01/2018,499933,297711.24,REVENUE,ENGIE SERVICES LTD,133267
North East Lincolnshire Council,http://statistics.data.gov.uk/id/local-authority/00FC),Chief Executive,Director Of Economy & Growth,In Scope Contract,Private Contractors,Contract Payments,PH105,04/01/2018,497636,14061.43,REVENUE,ENGIE SERVICES LTD,133267
North East Lincolnshire Council,http://statistics.data.gov.uk/id/local-authority/00FC),Chief Executive,Director Of Economy & Growth,In Scope Contract,Private Contractors,Contract Payments,PH105,23/01/2018,499933,14061.43,REVENUE,ENGIE SERVICES LTD,133267
North East Lincolnshire Council,http://statistics.data.gov.uk/id/local-authority/00FC),Chief Executive,Director Of Economy & Growth,In Scope Contract,Private Contractors,Contract Payments,PH105,04/01/2018,497636,474051.55,REVENUE,ENGIE SERVICES LTD,133267
North East Lincolnshire Council,http://statistics.data.gov.uk/id/local-authority/00FC),Chief Executive,Director Of Economy & Growth,In Scope Contract,Private Contractors,Contract Payments,PH105,23/01/2018,499933,272569.05,REVENUE,ENGIE SERVICES LTD,133267
North East Lincolnshire Council,http://statistics.data.gov.uk/id/local-authority/00FC),Chief Executive,Director Of Economy & Growth,In Scope Contract,Private Contractors,Contract Payments,PH105,04/01/2018,497636,5495.91,REVENUE,ENGIE SERVICES LTD,133267
North East Lincolnshire Council,http://statistics.data.gov.uk/id/local-authority/00FC),Chief Executive,Director Of Economy & Growth,In Scope Contract,Private Contractors,Contract Payments,PH105,23/01/2018,499933,5495.91,REVENUE,ENGIE SERVICES LTD,133267
North East Lincolnshire Council,http://statistics.data.gov.uk/id/local-authority/00FC),Chief Executive,Director Of Economy & Growth,In Scope Contract,Private Contractors,Contract Payments,PH105,04/01/2018,497636,72139.57,REVENUE,ENGIE SERVICES LTD,133267
North East Lincolnshire Council,http://statistics.data.gov.uk/id/local-authority/00FC),Chief Executive,Director Of Economy & Growth,In Scope Contract,Private Contractors,Contract Payments,PH105,23/01/2018,499933,72139.57,REVENUE,ENGIE SERVICES LTD,133267
North East Lincolnshire Council,http://statistics.data.gov.uk/id/local-authority/00FC),Chief Executive,Director Of Economy & Growth,In Scope Contract,Private Contractors,Contract Payments,PH105,04/01/2018,497636,35511.81,REVENUE,ENGIE SERVICES LTD,133267
North East Lincolnshire Council,http://statistics.data.gov.uk/id/local-authority/00FC),Chief Executive,Director Of Economy & Growth,In Scope Contract,Private Contractors,Contract Payments,PH105,23/01/2018,499933,35511.81,REVENUE,ENGIE SERVICES LTD,133267
North East Lincolnshire Council,http://statistics.data.gov.uk/id/local-authority/00FC),Chief Executive,Director Of Economy & Growth,Car Parks,Miscellaneous Expenses,Other Expenses General,LL119,23/01/2018,499965,675,REVENUE,PARKEON LTD,134124
North East Lincolnshire Council,http://statistics.data.gov.uk/id/local-authority/00FC),Chief Executive,Director Of Economy & Growth,Car Parks,Miscellaneous Expenses,Other Expenses General,LL119,23/01/2018,499965,1100,REVENUE,PARKEON LTD,134124
North East Lincolnshire Council,http://statistics.data.gov.uk/id/local-authority/00FC),Chief Executive,Director Of Economy & Growth,Car Parks,Customer And Client Receipts,Season Tickets - Std Vat 7,VC135,11/01/2018,497828,507.09,REVENUE,BRIDGE MCFARLAND SOLICITORS,107070
North East Lincolnshire Council,http://statistics.data.gov.uk/id/local-authority/00FC),Chief Executive,Director Of Economy & Growth,Car Parks,Private Contractors,Third Party Prov - Private,PH101,04/01/2018,497522,5000,REVENUE,TRAFFIC ENFORCEMENT CENTRE,109443
North East Lincolnshire Council,http://statistics.data.gov.uk/id/local-authority/00FC),Chief Executive,Director Of Economy & Growth,Car Parks,Customer And Client Receipts,Penalty Charge Income - Vat 4,VC138,30/01/2018,565335,422,REVENUE,REDACTED PERSONAL INFORMATION,REDACTED PERSONAL INFORMATION
North East Lincolnshire Council,http://statistics.data.gov.uk/id/local-authority/00FC),Chief Executive,Director Of Economy & Growth,Planning,Private Contractors,Third Party Prov - Private,PH101,25/01/2018,500410,1134,REVENUE,ENGIE SERVICES LTD,133267
North East Lincolnshire Council,http://statistics.data.gov.uk/id/local-authority/00FC),Chief Executive,Director Of Economy & Growth,Highways Dso,Dlo Holding,Depot Fuel Holding Account,LM101,11/01/2018,498698,17365.29,REVENUE,OIL NRG,138198
North East Lincolnshire Council,http://statistics.data.gov.uk/id/local-authority/00FC),Chief Executive,Director Of Economy & Growth,Highways Dso,Dlo Holding,Depot Fuel Holding Account,LM101,11/01/2018,498696,1004.4,REVENUE,OIL NRG,138198
North East Lincolnshire Council,http://statistics.data.gov.uk/id/local-authority/00FC),Chief Executive,Director Of Economy & Growth,Street Lighting,Private Contractors,Third Party Prov - Private,PH101,29/01/2018,500813,427.2,REVENUE,J MCCANN & CO LTD,100841
North East Lincolnshire Council,http://statistics.data.gov.uk/id/local-authority/00FC),Chief Executive,Director Of Economy & Growth,Street Lighting,Private Contractors,Third Party Prov - Private,PH101,25/01/2018,499982,483.28,REVENUE,SYMOLOGY LTD,100609
North East Lincolnshire Council,http://statistics.data.gov.uk/id/local-authority/00FC),Chief Executive,Director Of Economy & Growth,Street Lighting,Rep Alterations Maint Building,Street Lighting - Energy,GA110,15/01/2018,498818,3109.65,REVENUE,NPOWER LIMITED,101414
North East Lincolnshire Council,http://statistics.data.gov.uk/id/local-authority/00FC),Chief Executive,Director Of Economy & Growth,Street Lighting,Rep Alterations Maint Building,Street Lighting-General Maint,GA111,30/01/2018,500661,573.1,REVENUE,J MCCANN & CO LTD,100841
North East Lincolnshire Council,http://statistics.data.gov.uk/id/local-authority/00FC),Chief Executive,Director Of Economy & Growth,Street Lighting,Energy Costs,Electricity,GB102,04/01/2018,496845,3138.94,REVENUE,NPOWER LIMITED,101414
North East Lincolnshire Council,http://statistics.data.gov.uk/id/local-authority/00FC),Chief Executive,Director Of Economy & Growth,Street Lighting,Energy Costs,Electricity,GB102,04/01/2018,496846,3037.69,REVENUE,NPOWER LIMITED,101414
North East Lincolnshire Council,http://statistics.data.gov.uk/id/local-authority/00FC),Chief Executive,Director Of Economy & Growth,Street Lighting,Rep Alterations Maint Building,Street Lighting - Energy,GA110,04/01/2018,496845,9024.44,REVENUE,NPOWER LIMITED,101414
North East Lincolnshire Council,http://statistics.data.gov.uk/id/local-authority/00FC),Chief Executive,Director Of Economy & Growth,Street Lighting,Rep Alterations Maint Building,Street Lighting - Energy,GA110,04/01/2018,496846,8733.36,REVENUE,NPOWER LIMITED,101414
North East Lincolnshire Council,http://statistics.data.gov.uk/id/local-authority/00FC),Chief Executive,Director Of Economy & Growth,Street Lighting,Rep Alterations Maint Building,Street Lighting - Energy,GA110,04/01/2018,496847,514.79,REVENUE,NPOWER LIMITED,101414
North East Lincolnshire Council,http://statistics.data.gov.uk/id/local-authority/00FC),Chief Executive,Director Of Economy & Growth,Street Lighting,Rep Alterations Maint Building,Street Lighting - Energy,GA110,04/01/2018,496848,538.94,REVENUE,NPOWER LIMITED,101414
North East Lincolnshire Council,http://statistics.data.gov.uk/id/local-authority/00FC),Chief Executive,Director Of Economy & Growth,Street Lighting,Rep Alterations Maint Building,Street Lighting - Energy,GA110,04/01/2018,496852,525.71,REVENUE,NPOWER LIMITED,101414
North East Lincolnshire Council,http://statistics.data.gov.uk/id/local-authority/00FC),Chief Executive,Director Of Economy & Growth,Street Lighting,Rep Alterations Maint Building,Street Lighting - Energy,GA110,04/01/2018,496854,524.35,REVENUE,NPOWER LIMITED,101414
North East Lincolnshire Council,http://statistics.data.gov.uk/id/local-authority/00FC),Chief Executive,Director Of Economy & Growth,Street Lighting,Rep Alterations Maint Building,Street Lighting - Energy,GA110,15/01/2018,498817,507.29,REVENUE,NPOWER LIMITED,101414
North East Lincolnshire Council,http://statistics.data.gov.uk/id/local-authority/00FC),Chief Executive,Director Of Economy & Growth,Street Lighting,Rep Alterations Maint Building,Street Lighting - Energy,GA110,15/01/2018,498818,8940.25,REVENUE,NPOWER LIMITED,101414
North East Lincolnshire Council,http://statistics.data.gov.uk/id/local-authority/00FC),Chief Executive,Director Of Economy & Growth,Street Lighting,Rep Alterations Maint Building,Street Lighting-General Maint,GA111,30/01/2018,500661,301.42,REVENUE,J MCCANN & CO LTD,100841
North East Lincolnshire Council,http://statistics.data.gov.uk/id/local-authority/00FC),Chief Executive,Director Of Economy & Growth,Street Lighting,Rep Alterations Maint Building,Traffic Signs / Signals,GA113,30/01/2018,500661,812.4,REVENUE,J MCCANN & CO LTD,100841
North East Lincolnshire Council,http://statistics.data.gov.uk/id/local-authority/00FC),Chief Executive,Director Of Economy & Growth,Street Lighting,Rep Alterations Maint Building,Street Lighting - Energy,GA110,04/01/2018,497826,1370.89,REVENUE,NPOWER LIMITED,101414
North East Lincolnshire Council,http://statistics.data.gov.uk/id/local-authority/00FC),Chief Executive,Director Of Economy & Growth,Street Lighting,Rep Alterations Maint Building,Street Lighting - Energy,GA110,04/01/2018,497825,1326.68,REVENUE,NPOWER LIMITED,101414
North East Lincolnshire Council,http://statistics.data.gov.uk/id/local-authority/00FC),Chief Executive,Director Of Economy & Growth,Street Lighting,Rep Alterations Maint Building,Street Lighting - Energy,GA110,04/01/2018,496845,27073.32,REVENUE,NPOWER LIMITED,101414
North East Lincolnshire Council,http://statistics.data.gov.uk/id/local-authority/00FC),Chief Executive,Director Of Economy & Growth,Street Lighting,Rep Alterations Maint Building,Street Lighting - Energy,GA110,04/01/2018,496846,26200.08,REVENUE,NPOWER LIMITED,101414
North East Lincolnshire Council,http://statistics.data.gov.uk/id/local-authority/00FC),Chief Executive,Director Of Economy & Growth,Street Lighting,Rep Alterations Maint Building,Street Lighting - Energy,GA110,04/01/2018,496847,1544.36,REVENUE,NPOWER LIMITED,101414
North East Lincolnshire Council,http://statistics.data.gov.uk/id/local-authority/00FC),Chief Executive,Director Of Economy & Growth,Street Lighting,Rep Alterations Maint Building,Street Lighting - Energy,GA110,04/01/2018,496848,1616.82,REVENUE,NPOWER LIMITED,101414
North East Lincolnshire Council,http://statistics.data.gov.uk/id/local-authority/00FC),Chief Executive,Director Of Economy & Growth,Street Lighting,Rep Alterations Maint Building,Street Lighting - Energy,GA110,04/01/2018,496852,1577.15,REVENUE,NPOWER LIMITED,101414
North East Lincolnshire Council,http://statistics.data.gov.uk/id/local-authority/00FC),Chief Executive,Director Of Economy & Growth,Street Lighting,Rep Alterations Maint Building,Street Lighting - Energy,GA110,04/01/2018,496854,1573.05,REVENUE,NPOWER LIMITED,101414
North East Lincolnshire Council,http://statistics.data.gov.uk/id/local-authority/00FC),Chief Executive,Director Of Economy & Growth,Street Lighting,Rep Alterations Maint Building,Street Lighting - Energy,GA110,15/01/2018,498817,1521.88,REVENUE,NPOWER LIMITED,101414
North East Lincolnshire Council,http://statistics.data.gov.uk/id/local-authority/00FC),Chief Executive,Director Of Economy & Growth,Street Lighting,Rep Alterations Maint Building,Street Lighting - Energy,GA110,15/01/2018,498818,26820.74,REVENUE,NPOWER LIMITED,101414
North East Lincolnshire Council,http://statistics.data.gov.uk/id/local-authority/00FC),Chief Executive,Director Of Economy & Growth,Street Lighting,Rep Alterations Maint Building,Street Lighting - Energy,GA110,15/01/2018,499149,1370.46,REVENUE,NPOWER LIMITED,101414
North East Lincolnshire Council,http://statistics.data.gov.uk/id/local-authority/00FC),Chief Executive,Director Of Economy & Growth,Street Lighting,Rep Alterations Maint Building,Street Lighting-General Maint,GA111,30/01/2018,500661,5246.6,REVENUE,J MCCANN & CO LTD,100841
North East Lincolnshire Council,http://statistics.data.gov.uk/id/local-authority/00FC),Chief Executive,Director Of Economy & Growth,Street Lighting,Rep Alterations Maint Building,Street Lighting-General Maint,GA111,30/01/2018,500661,841.43,REVENUE,J MCCANN & CO LTD,100841
North East Lincolnshire Council,http://statistics.data.gov.uk/id/local-authority/00FC),Chief Executive,Director Of Economy & Growth,Street Lighting,Rep Alterations Maint Building,Street Lighting-General Maint,GA111,22/01/2018,499922,340,REVENUE,NEWBURN POWER RENTAL LTD,134135
North East Lincolnshire Council,http://statistics.data.gov.uk/id/local-authority/00FC),Chief Executive,Director Of Economy & Growth,Street Lighting,Rep Alterations Maint Building,Street Lighting-General Maint,GA111,22/01/2018,499892,277.95,REVENUE,NEWBURN POWER RENTAL LTD,134135
North East Lincolnshire Council,http://statistics.data.gov.uk/id/local-authority/00FC),Chief Executive,Director Of Economy & Growth,Street Lighting,Rep Alterations Maint Building,Street Lighting-General Maint,GA111,22/01/2018,499894,634.2,REVENUE,NEWBURN POWER RENTAL LTD,134135
North East Lincolnshire Council,http://statistics.data.gov.uk/id/local-authority/00FC),Chief Executive,Director Of Economy & Growth,Street Lighting,Rep Alterations Maint Building,Street Light-Irrecoverable Dam,GA112,30/01/2018,500661,438.13,REVENUE,J MCCANN & CO LTD,100841
North East Lincolnshire Council,http://statistics.data.gov.uk/id/local-authority/00FC),Chief Executive,Director Of Economy & Growth,Street Lighting,Rep Alterations Maint Building,Traffic Mgmt-Irrecoverable Dam,GA115,30/01/2018,500661,1391.69,REVENUE,J MCCANN & CO LTD,100841
North East Lincolnshire Council,http://statistics.data.gov.uk/id/local-authority/00FC),Chief Executive,Director Of Economy & Growth,Street Lighting,Rep Alterations Maint Building,Traffic Mgmt-Irrecoverable Dam,GA115,29/01/2018,500813,659.88,REVENUE,J MCCANN & CO LTD,100841
North East Lincolnshire Council,http://statistics.data.gov.uk/id/local-authority/00FC),Chief Executive,Director Of Economy & Growth,Street Lighting,Rep Alterations Maint Building,Traffic Signs / Signals,GA113,30/01/2018,500661,276.13,REVENUE,J MCCANN & CO LTD,100841
North East Lincolnshire Council,http://statistics.data.gov.uk/id/local-authority/00FC),Chief Executive,Director Of Economy & Growth,Street Lighting,Rep Alterations Maint Building,Traffic Signs / Signals,GA113,30/01/2018,500661,1589.19,REVENUE,J MCCANN & CO LTD,100841
North East Lincolnshire Council,http://statistics.data.gov.uk/id/local-authority/00FC),Chief Executive,Director Of Economy & Growth,Street Lighting,Private Contractors,Third Party Prov - Private,PH101,08/01/2018,498107,636.02,REVENUE,NORTHERN POWERGRID (YORKSHIRE) PLC,108328
North East Lincolnshire Council,http://statistics.data.gov.uk/id/local-authority/00FC),Chief Executive,Director Of Economy & Growth,Street Lighting,Private Contractors,Third Party Prov - Private,PH101,30/01/2018,500661,696.7,REVENUE,J MCCANN & CO LTD,100841
North East Lincolnshire Council,http://statistics.data.gov.uk/id/local-authority/00FC),Chief Executive,Director Of Economy & Growth,Street Lighting,Rep Alterations Maint Building,Buildings - Repairs And Maint,GA102,30/01/2018,500661,23054.94,REVENUE,J MCCANN & CO LTD,100841
North East Lincolnshire Council,http://statistics.data.gov.uk/id/local-authority/00FC),Chief Executive,Director Of Economy & Growth,Traffic Management,Private Contractors,Contract Payments,PH105,18/01/2018,499535,7133,REVENUE,3M UNITED KINGDOM PLC,112724
North East Lincolnshire Council,http://statistics.data.gov.uk/id/local-authority/00FC),Chief Executive,Director Of Economy & Growth,Traffic Management,Private Contractors,Third Party Prov - Private,PH101,09/01/2018,496345,385,REVENUE,J MCCANN & CO LTD,100841
North East Lincolnshire Council,http://statistics.data.gov.uk/id/local-authority/00FC),Chief Executive,Director Of Economy & Growth,Traffic Management,Private Contractors,Third Party Prov - Private,PH101,09/01/2018,496345,255,REVENUE,J MCCANN & CO LTD,100841
North East Lincolnshire Council,http://statistics.data.gov.uk/id/local-authority/00FC),Chief Executive,Director Of Economy & Growth,Transport Policy,Private Contractors,Concessionary Fares,PH104,11/01/2018,498772,REDACTED COMMERCIALLY SENSITIVE,REVENUE,GY CLPS & DISTRICT DIAL A RIDE,100980
North East Lincolnshire Council,http://statistics.data.gov.uk/id/local-authority/00FC),Chief Executive,Director Of Economy & Growth,Transport Policy,Private Contractors,Concessionary Fares,PH104,23/01/2018,500023,REDACTED COMMERCIALLY SENSITIVE,REVENUE,GY CLPS & DISTRICT DIAL A RIDE,100980
North East Lincolnshire Council,http://statistics.data.gov.uk/id/local-authority/00FC),Chief Executive,Director Of Economy & Growth,Transport Policy,Private Contractors,Concessionary Fares,PH104,15/01/2018,498883,REDACTED COMMERCIALLY SENSITIVE,REVENUE,STAGECOACH SERVICES,101404
North East Lincolnshire Council,http://statistics.data.gov.uk/id/local-authority/00FC),Chief Executive,Director Of Economy & Growth,Transport Policy,Private Contractors,Subsidies,PH102,22/01/2018,499590,REDACTED COMMERCIALLY SENSITIVE,REVENUE,STAGECOACH SERVICES,101404
North East Lincolnshire Council,http://statistics.data.gov.uk/id/local-authority/00FC),Chief Executive,Director Of Economy & Growth,Transport Policy,Private Contractors,Contract Payments,PH105,15/01/2018,498851,320.7,REVENUE,REVELLS TAXIS (ED/SOC SERV),100559
North East Lincolnshire Council,http://statistics.data.gov.uk/id/local-authority/00FC),Chief Executive,Director Of Economy & Growth,Transport Policy,Private Contractors,Contract Payments,PH105,04/01/2018,497548,20214.03,REVENUE,ESSENTIAL FLEET SERVICES LTD,101159
North East Lincolnshire Council,http://statistics.data.gov.uk/id/local-authority/00FC),Chief Executive,Director Of Economy & Growth,Transport Policy,Communications And Computing,Computer H/Ware - Purchases,LF105,18/01/2018,499489,11025.41,REVENUE,TRAPEZE GROUP UK LTD,101970
North East Lincolnshire Council,http://statistics.data.gov.uk/id/local-authority/00FC),Chief Executive,Director Of Economy & Growth,Transport Policy,Communications And Computing,Computer H/Ware - Purchases,LF105,18/01/2018,499490,5915,REVENUE,TRAPEZE GROUP UK LTD,101970
North East Lincolnshire Council,http://statistics.data.gov.uk/id/local-authority/00FC),Chief Executive,Director Of Economy & Growth,Transport Policy,Consultancy,Consultancy,PL101,18/01/2018,483545,4960,REVENUE,HUMBER AND WOLDS RURAL COMMUNITY COUNCIL,134026
North East Lincolnshire Council,http://statistics.data.gov.uk/id/local-authority/00FC),Chief Executive,Director Of Economy & Growth,Transport Policy,Private Contractors,Contract Payments,PH105,31/01/2018,501362,2520,REVENUE,GRIMSBY CYCLE HUB,119476
North East Lincolnshire Council,http://statistics.data.gov.uk/id/local-authority/00FC),Chief Executive,Director Of Economy & Growth,Transport Policy,Private Contractors,Subsidies,PH102,29/01/2018,500813,329.94,REVENUE,J MCCANN & CO LTD,100841
North East Lincolnshire Council,http://statistics.data.gov.uk/id/local-authority/00FC),Chief Executive,Director Of Economy & Growth,Transport Policy,Private Contractors,Subsidies,PH102,30/01/2018,500661,2059.63,REVENUE,J MCCANN & CO LTD,100841
North East Lincolnshire Council,http://statistics.data.gov.uk/id/local-authority/00FC),Chief Executive,Director Of Economy & Growth,Transport Policy,Private Contractors,Subsidies,PH102,04/01/2018,496907,2500,REVENUE,ENGIE SERVICES LTD,133267
North East Lincolnshire Council,http://statistics.data.gov.uk/id/local-authority/00FC),Chief Executive,Director Of Economy & Growth,Transport Policy,Private Contractors,Subsidies,PH102,25/01/2018,499582,64875.72,REVENUE,SPECIALIST SURFACING LIMITED,100579
North East Lincolnshire Council,http://statistics.data.gov.uk/id/local-authority/00FC),Chief Executive,Director Of Economy & Growth,Transport Policy,Consultancy,Consultancy,PL101,25/01/2018,500392,1999,REVENUE,MODESHIFT,119471
North East Lincolnshire Council,http://statistics.data.gov.uk/id/local-authority/00FC),Chief Executive,Director Of Economy & Growth,Transport Policy,Consultancy,Consultancy,PL101,25/01/2018,500392,499,REVENUE,MODESHIFT,119471
North East Lincolnshire Council,http://statistics.data.gov.uk/id/local-authority/00FC),Chief Executive,Shared Services,Accountancy,Government Departments,Third Party Prov - Govt Depts,PE101,04/01/2018,497583,3179,REVENUE,KPMG FEES ACCOUNT,101071
North East Lincolnshire Council,http://statistics.data.gov.uk/id/local-authority/00FC),Chief Executive,Shared Services,Accountancy,Government Departments,Third Party Prov - Govt Depts,PE101,04/01/2018,497584,29826.38,REVENUE,KPMG FEES ACCOUNT,101071
North East Lincolnshire Council,http://statistics.data.gov.uk/id/local-authority/00FC),Chief Executive,Shared Services,Benefit Payments & Subsidy,Housing Benefit,Rent Allow General,QC101,04/01/2018,496858,305.9,REVENUE,SOUTH HOLLAND DISTRICT COUNCIL,138950
North East Lincolnshire Council,http://statistics.data.gov.uk/id/local-authority/00FC),Chief Executive,Shared Services,Benefit Payments & Subsidy,Miscellaneous Income,Exp Recov - O/Side Scope Vat 4,VG107,18/01/2018,562702,-53.74,REVENUE,REDACTED PERSONAL INFORMATION,REDACTED PERSONAL INFORMATION
North East Lincolnshire Council,http://statistics.data.gov.uk/id/local-authority/00FC),Chief Executive,Shared Services,Local Taxation & Benefits,Communications And Computing,Computer S/Ware - Maintenance,LF102,11/01/2018,496252,2200,REVENUE,NORTHGATE PUBLIC SERVICES (UK) LTD,101841
North East Lincolnshire Council,http://statistics.data.gov.uk/id/local-authority/00FC),Chief Executive,Shared Services,Local Taxation & Benefits,Communications And Computing,Postage,LF111,04/01/2018,497645,2820.06,REVENUE,CAPITA BUSINESS SERVICES LTD,102314
North East Lincolnshire Council,http://statistics.data.gov.uk/id/local-authority/00FC),Chief Executive,Shared Services,Local Taxation & Benefits,Private Contractors,External Security Services,PH103,22/01/2018,499739,3737.62,REVENUE,ALLPAY LIMITED,112919
North East Lincolnshire Council,http://statistics.data.gov.uk/id/local-authority/00FC),Chief Executive,Shared Services,Local Taxation & Benefits,Miscellaneous Expenses,Debt Recovery Costs,LL111,18/01/2018,499526,1554,REVENUE,WILKIN CHAPMAN LLP,110675
North East Lincolnshire Council,http://statistics.data.gov.uk/id/local-authority/00FC),Chief Executive,Shared Services,Local Taxation & Benefits,Miscellaneous Expenses,Other Supplies & Services,LL110,09/01/2018,498319,6000,REVENUE,INFORM CPI,124803
North East Lincolnshire Council,http://statistics.data.gov.uk/id/local-authority/00FC),Chief Executive,Shared Services,I.T Shared Service,Communications And Computing,Telephones,LF112,08/01/2018,497677,7577.32,REVENUE,VIRGIN MEDIA,107612
North East Lincolnshire Council,http://statistics.data.gov.uk/id/local-authority/00FC),Chief Executive,Shared Services,I.T Shared Service,Communications And Computing,Telephones,LF112,30/01/2018,501235,7729.93,REVENUE,VIRGIN MEDIA,107612
North East Lincolnshire Council,http://statistics.data.gov.uk/id/local-authority/00FC),Chief Executive,Shared Services,I.T Shared Service,Communications And Computing,Computer H/Ware - Purchases,LF105,11/01/2018,498291,2085.75,REVENUE,VODAFONE LIMITED,101324
North East Lincolnshire Council,http://statistics.data.gov.uk/id/local-authority/00FC),Chief Executive,Shared Services,I.T Shared Service,Communications And Computing,Computer H/Ware - Purchases,LF105,11/01/2018,498291,931.98,REVENUE,VODAFONE LIMITED,101324
North East Lincolnshire Council,http://statistics.data.gov.uk/id/local-authority/00FC),Chief Executive,Shared Services,I.T Shared Service,Communications And Computing,Computer H/Ware - Purchases,LF105,15/01/2018,498292,24950,REVENUE,VIRGIN MEDIA,107612
North East Lincolnshire Council,http://statistics.data.gov.uk/id/local-authority/00FC),Chief Executive,Shared Services,I.T Shared Service,Communications And Computing,Computer H/Ware - Purchases,LF105,15/01/2018,498296,3995,REVENUE,VIRGIN MEDIA,107612
North East Lincolnshire Council,http://statistics.data.gov.uk/id/local-authority/00FC),Chief Executive,Shared Services,I.T Shared Service,Communications And Computing,Computer S/Ware - Maintenance,LF102,04/01/2018,497580,2877,REVENUE,MIDLAND SOFTWARE LTD,102633
North East Lincolnshire Council,http://statistics.data.gov.uk/id/local-authority/00FC),Chief Executive,Shared Services,I.T Shared Service,Communications And Computing,Computer S/Ware - Maintenance,LF102,04/01/2018,497580,480,REVENUE,MIDLAND SOFTWARE LTD,102633
North East Lincolnshire Council,http://statistics.data.gov.uk/id/local-authority/00FC),Chief Executive,Shared Services,I.T Shared Service,Communications And Computing,Internet Connection,LF110,09/01/2018,498293,10956.34,REVENUE,VIRGIN MEDIA,107612
North East Lincolnshire Council,http://statistics.data.gov.uk/id/local-authority/00FC),Chief Executive,Shared Services,I.T Shared Service,Communications And Computing,Internet Connection,LF110,09/01/2018,498516,-7410.56,REVENUE,VIRGIN MEDIA,107612
North East Lincolnshire Council,http://statistics.data.gov.uk/id/local-authority/00FC),Chief Executive,Shared Services,I.T Shared Service,Communications And Computing,Internet Connection,LF110,11/01/2018,498290,1753.38,REVENUE,VIRGIN MEDIA,107612
North East Lincolnshire Council,http://statistics.data.gov.uk/id/local-authority/00FC),Chief Executive,Shared Services,I.T Shared Service,Communications And Computing,Computer H/Ware - Purchases,LF105,26/01/2018,500844,-120,REVENUE,VIRGIN MEDIA,107612
North East Lincolnshire Council,http://statistics.data.gov.uk/id/local-authority/00FC),Chief Executive,Shared Services,I.T Shared Service,Communications And Computing,Computer H/Ware - Purchases,LF105,29/01/2018,500843,315,REVENUE,VIRGIN MEDIA,107612
North East Lincolnshire Council,http://statistics.data.gov.uk/id/local-authority/00FC),Chief Executive,Shared Services,Human Resources,Miscellaneous Expenses,Legal Fees - General,LL103,22/01/2018,499236,720,REVENUE,JAMIE MORGAN,139047
North East Lincolnshire Council,http://statistics.data.gov.uk/id/local-authority/00FC),Chief Executive,Shared Services,Human Resources,Miscellaneous Expenses,Legal Fees - General,LL103,18/01/2018,499237,1000,REVENUE,TRINITY CHAMBERS - RICHARD STUBBS,136224
North East Lincolnshire Council,http://statistics.data.gov.uk/id/local-authority/00FC),Chief Executive,Shared Services,Human Resources,Direct Employee Expenses,Agency Staff,EA105,09/01/2018,498102,1334.78,REVENUE,MATRIX SCM LTD,108117
North East Lincolnshire Council,http://statistics.data.gov.uk/id/local-authority/00FC),Chief Executive,Shared Services,Human Resources,Direct Employee Expenses,Agency Staff,EA105,15/01/2018,498492,25953.49,REVENUE,MATRIX SCM LTD,108117
North East Lincolnshire Council,http://statistics.data.gov.uk/id/local-authority/00FC),Chief Executive,Shared Services,Human Resources,Direct Employee Expenses,Agency Staff,EA105,15/01/2018,498491,17060.76,REVENUE,MATRIX SCM LTD,108117
North East Lincolnshire Council,http://statistics.data.gov.uk/id/local-authority/00FC),Chief Executive,Shared Services,Human Resources,Direct Employee Expenses,Agency Staff,EA105,29/01/2018,500003,20566.67,REVENUE,MATRIX SCM LTD,108117
North East Lincolnshire Council,http://statistics.data.gov.uk/id/local-authority/00FC),Chief Executive,Shared Services,Human Resources,Indirect Employee Expenses,Disclosure Checks,EB124,22/01/2018,499208,3481,REVENUE,DISCLOSURE & BARRING SERVICE,119180
North East Lincolnshire Council,http://statistics.data.gov.uk/id/local-authority/00FC),Chief Executive,Shared Services,Human Resources,Indirect Employee Expenses,Staff Training,EB122,18/01/2018,499607,303,REVENUE,CHARTERED INSTITUTE OF,100641
North East Lincolnshire Council,http://statistics.data.gov.uk/id/local-authority/00FC),Chief Executive,Shared Services,Human Resources,Indirect Employee Expenses,Staff Training,EB122,23/01/2018,500055,250,REVENUE,OCCUPATIONAL HEALTH SERVICES LTD,112584
North East Lincolnshire Council,http://statistics.data.gov.uk/id/local-authority/00FC),Chief Executive,Shared Services,Human Resources,Indirect Employee Expenses,Staff Training,EB122,29/01/2018,500846,1416.64,REVENUE,REDACTED PERSONAL INFORMATION,REDACTED PERSONAL INFORMATION
North East Lincolnshire Council,http://statistics.data.gov.uk/id/local-authority/00FC),Chief Executive,Shared Services,Human Resources,Indirect Employee Expenses,Staff Training,EB122,29/01/2018,500845,1416.64,REVENUE,REDACTED PERSONAL INFORMATION,REDACTED PERSONAL INFORMATION
North East Lincolnshire Council,http://statistics.data.gov.uk/id/local-authority/00FC),Chief Executive,Shared Services,Human Resources,Indirect Employee Expenses,Staff Training,EB122,29/01/2018,500847,1416.64,REVENUE,REDACTED PERSONAL INFORMATION,REDACTED PERSONAL INFORMATION
North East Lincolnshire Council,http://statistics.data.gov.uk/id/local-authority/00FC),Chief Executive,Shared Services,Human Resources,Indirect Employee Expenses,Staff Training,EB122,11/01/2018,498512,250,REVENUE,ACS BEHAVIOUR CONSULTANCY & TRAINING LTD,138608
North East Lincolnshire Council,http://statistics.data.gov.uk/id/local-authority/00FC),Chief Executive,Shared Services,Human Resources,Indirect Employee Expenses,Staff Training,EB122,15/01/2018,497353,1050,REVENUE,PETER HIRD & SONS LTD,104825
North East Lincolnshire Council,http://statistics.data.gov.uk/id/local-authority/00FC),Chief Executive,Shared Services,Human Resources,Indirect Employee Expenses,Staff Training,EB122,04/01/2018,496266,2050,REVENUE,TEAM TEACH LTD,103320
North East Lincolnshire Council,http://statistics.data.gov.uk/id/local-authority/00FC),Chief Executive,Shared Services,Human Resources,Indirect Employee Expenses,Medical Expenses - Employees,EB112,22/01/2018,499217,500,REVENUE,MANOR OCCUPATIONAL HEALTH LTD,130544
North East Lincolnshire Council,http://statistics.data.gov.uk/id/local-authority/00FC),Chief Executive,Shared Services,Human Resources,Indirect Employee Expenses,Medical Expenses - Employees,EB112,22/01/2018,499214,250,REVENUE,DR A SALAWU,139060
North East Lincolnshire Council,http://statistics.data.gov.uk/id/local-authority/00FC),Chief Executive,Shared Services,Human Resources,Indirect Employee Expenses,Medical Expenses - Employees,EB112,22/01/2018,499215,495,REVENUE,PBC MEDICAL SERVICES LTD,134740
North East Lincolnshire Council,http://statistics.data.gov.uk/id/local-authority/00FC),Chief Executive,Shared Services,Human Resources,Other Local Authorities,Third Pp - Other Local Auth,PC101,11/01/2018,498350,5490,REVENUE,NORTH LINCOLNSHIRE COUNCIL,101186
North East Lincolnshire Council,http://statistics.data.gov.uk/id/local-authority/00FC),Chief Executive,Shared Services,Human Resources,Indirect Employee Expenses,Staff Training,EB122,04/01/2018,495783,349.5,REVENUE,LEEDS SAFEGUARDING CHILDREN BOARD,128517
North East Lincolnshire Council,http://statistics.data.gov.uk/id/local-authority/00FC),Chief Executive,Shared Services,Audit Shared Service,Services,Alternative Provision,LE103,25/01/2018,500437,7500,REVENUE,EAST RIDING OF YORKSHIRE,100377
North East Lincolnshire Council,http://statistics.data.gov.uk/id/local-authority/00FC),Chief Executive,Shared Services,Audit Shared Service,Services,Alternative Provision,LE103,25/01/2018,500437,355.5,REVENUE,EAST RIDING OF YORKSHIRE,100377
North East Lincolnshire Council,http://statistics.data.gov.uk/id/local-authority/00FC),Chief Executive,Shared Services,Shared Print Hub,Equip / Furniture / Materials,Equipment - Purchase,LA101,04/01/2018,495831,652.33,REVENUE,DONCASTER METROPOLITAN BOROUGH COUNCIL,103098
North East Lincolnshire Council,http://statistics.data.gov.uk/id/local-authority/00FC),Chief Executive,Shared Services,Shared Print Hub,Equip / Furniture / Materials,Equipment - Purchase,LA101,30/01/2018,500623,680,REVENUE,FREELANCE OFFSET SERVICES,100689
North East Lincolnshire Council,http://statistics.data.gov.uk/id/local-authority/00FC),Chief Executive,Shared Services,Shared Print Hub,Equip / Furniture / Materials,Equipment - Purchase,LA101,04/01/2018,496032,364,REVENUE,ELLIOTT BAXTER & COMPANY LIMITED,101996
North East Lincolnshire Council,http://statistics.data.gov.uk/id/local-authority/00FC),Chief Executive,Shared Services,Shared Print Hub,Equip / Furniture / Materials,Equipment - Purchase,LA101,04/01/2018,496086,364,REVENUE,ELLIOTT BAXTER & COMPANY LIMITED,101996
North East Lincolnshire Council,http://statistics.data.gov.uk/id/local-authority/00FC),Chief Executive,Shared Services,Shared Print Hub,Equip / Furniture / Materials,Equipment - Purchase,LA101,25/01/2018,499939,-35.95,REVENUE,ELLIOTT BAXTER & COMPANY LIMITED,101996
North East Lincolnshire Council,http://statistics.data.gov.uk/id/local-authority/00FC),Chief Executive,Shared Services,Shared Print Hub,Private Contractors,Third Party Prov - Private,PH101,09/01/2018,497611,5243.56,REVENUE,DONCASTER METROPOLITAN BOROUGH COUNCIL,103098
North East Lincolnshire Council,http://statistics.data.gov.uk/id/local-authority/00FC),Chief Executive,Shared Services,Shared Print Hub,Private Contractors,Third Party Prov - Private,PH101,04/01/2018,496917,980,REVENUE,SYSTEMATIC PRINT MANAGEMENT LTD,101147
North East Lincolnshire Council,http://statistics.data.gov.uk/id/local-authority/00FC),Chief Executive,Shared Services,Shared Print Hub,Private Contractors,Third Party Prov - Private,PH101,04/01/2018,493593,350,REVENUE,ANTALIS LTD,124930
North East Lincolnshire Council,http://statistics.data.gov.uk/id/local-authority/00FC),Chief Executive,Shared Services,Shared Print Hub,Private Contractors,Third Party Prov - Private,PH101,09/01/2018,497610,3998,REVENUE,DONCASTER METROPOLITAN BOROUGH COUNCIL,103098
North East Lincolnshire Council,http://statistics.data.gov.uk/id/local-authority/00FC),Chief Executive,Shared Services,Shared Print Hub,Private Contractors,Third Party Prov - Private,PH101,04/01/2018,496792,350,REVENUE,AR PRINTING LTD,100596
North East Lincolnshire Council,http://statistics.data.gov.uk/id/local-authority/00FC),Chief Executive,Shared Services,Shared Print Hub,Private Contractors,Third Party Prov - Private,PH101,22/01/2018,498889,395,REVENUE,SYSTEMATIC PRINT MANAGEMENT LTD,101147
North East Lincolnshire Council,http://statistics.data.gov.uk/id/local-authority/00FC),Chief Executive,Shared Services,Shared Print Hub,Private Contractors,Third Party Prov - Private,PH101,31/01/2018,500785,900,REVENUE,CCM PRINT & MEDIA SOLUTIONS,134586
North East Lincolnshire Council,http://statistics.data.gov.uk/id/local-authority/00FC),Chief Executive,Shared Services,Shared Print Hub,Print Stationery / Gen Off Exp,Photocopier - Running Costs,LD102,09/01/2018,498097,300.47,REVENUE,UNITED CARLTON OFFICE SYSTEMS LTD,101652
North East Lincolnshire Council,http://statistics.data.gov.uk/id/local-authority/00FC),Chief Executive,Shared Services,Shared Print Hub,Print Stationery / Gen Off Exp,Photocopier - Running Costs,LD102,09/01/2018,498122,1436.48,REVENUE,XEROX FINANCE,100572
North East Lincolnshire Council,http://statistics.data.gov.uk/id/local-authority/00FC),Chief Executive,Shared Services,Shared Print Hub,Print Stationery / Gen Off Exp,Photocopier - Running Costs,LD102,22/01/2018,499619,947.33,REVENUE,UNITED CARLTON OFFICE SYSTEMS LTD,101652
North East Lincolnshire Council,http://statistics.data.gov.uk/id/local-authority/00FC),Chief Executive,Shared Services,Shared Print Hub,Print Stationery / Gen Off Exp,Photocopier - Running Costs,LD102,29/01/2018,500648,274.69,REVENUE,UNITED CARLTON OFFICE SYSTEMS LTD,101652
North East Lincolnshire Council,http://statistics.data.gov.uk/id/local-authority/00FC),Chief Executive,Shared Services,Shared Print Hub,Print Stationery / Gen Off Exp,Photocopier - Running Costs,LD102,29/01/2018,500649,453.37,REVENUE,UNITED CARLTON OFFICE SYSTEMS LTD,101652
North East Lincolnshire Council,http://statistics.data.gov.uk/id/local-authority/00FC),Chief Executive,Shared Services,Shared Print Hub,Print Stationery / Gen Off Exp,Photocopier - Running Costs,LD102,29/01/2018,500650,360.23,REVENUE,UNITED CARLTON OFFICE SYSTEMS LTD,101652
North East Lincolnshire Council,http://statistics.data.gov.uk/id/local-authority/00FC),Chief Executive,Shared Services,Shared Print Hub,Print Stationery / Gen Off Exp,Photocopier - Running Costs,LD102,29/01/2018,500652,280.98,REVENUE,UNITED CARLTON OFFICE SYSTEMS LTD,101652
North East Lincolnshire Council,http://statistics.data.gov.uk/id/local-authority/00FC),Chief Executive,Shared Services,Shared Print Hub,Print Stationery / Gen Off Exp,Photocopier - Running Costs,LD102,29/01/2018,500642,279.14,REVENUE,UNITED CARLTON OFFICE SYSTEMS LTD,101652
North East Lincolnshire Council,http://statistics.data.gov.uk/id/local-authority/00FC),Chief Executive,Shared Services,Shared Print Hub,Print Stationery / Gen Off Exp,Photocopier - Running Costs,LD102,29/01/2018,500647,760,REVENUE,UNITED CARLTON OFFICE SYSTEMS LTD,101652
North East Lincolnshire Council,http://statistics.data.gov.uk/id/local-authority/00FC),Chief Executive,Shared Services,Shared Print Hub,Print Stationery / Gen Off Exp,Photocopier - Running Costs,LD102,31/01/2018,501378,1250.4,REVENUE,XEROX FINANCE,100572
North East Lincolnshire Council,http://statistics.data.gov.uk/id/local-authority/00FC),Chief Executive,Shared Services,Shared Print Hub,Print Stationery / Gen Off Exp,Printing And Stationery,LD103,04/01/2018,494789,728,REVENUE,ELLIOTT BAXTER & COMPANY LIMITED,101996
North East Lincolnshire Council,http://statistics.data.gov.uk/id/local-authority/00FC),Chief Executive,Shared Services,Shared Print Hub,Print Stationery / Gen Off Exp,Printing And Stationery,LD103,11/01/2018,498342,728,REVENUE,ELLIOTT BAXTER & COMPANY LIMITED,101996
North East Lincolnshire Council,http://statistics.data.gov.uk/id/local-authority/00FC),Chief Executive,Shared Services,Shared Print Hub,Print Stationery / Gen Off Exp,Printing And Stationery,LD103,09/01/2018,498097,621.5,REVENUE,UNITED CARLTON OFFICE SYSTEMS LTD,101652
North East Lincolnshire Council,http://statistics.data.gov.uk/id/local-authority/00FC),Chief Executive,Shared Services,Shared Print Hub,Print Stationery / Gen Off Exp,Printing And Stationery,LD103,11/01/2018,498568,364,REVENUE,ELLIOTT BAXTER & COMPANY LIMITED,101996
North East Lincolnshire Council,http://statistics.data.gov.uk/id/local-authority/00FC),Chief Executive,Shared Services,Shared Print Hub,Print Stationery / Gen Off Exp,Printing And Stationery,LD103,29/01/2018,500648,266.33,REVENUE,UNITED CARLTON OFFICE SYSTEMS LTD,101652
North East Lincolnshire Council,http://statistics.data.gov.uk/id/local-authority/00FC),Chief Executive,Shared Services,Shared Print Hub,Print Stationery / Gen Off Exp,Printing And Stationery,LD103,29/01/2018,500642,516.65,REVENUE,UNITED CARLTON OFFICE SYSTEMS LTD,101652
North East Lincolnshire Council,http://statistics.data.gov.uk/id/local-authority/00FC),Chief Executive,Shared Services,Shared Print Hub,Print Stationery / Gen Off Exp,Printing And Stationery,LD103,29/01/2018,500647,343.18,REVENUE,UNITED CARLTON OFFICE SYSTEMS LTD,101652
North East Lincolnshire Council,http://statistics.data.gov.uk/id/local-authority/00FC),Chief Executive,Ad Governance And Democracy,Democratic Services & Scrutiny,Communications And Computing,Computer S/Ware - Purchases,LF101,04/01/2018,497615,421.02,REVENUE,TRUSTMARQUE SOLUTIONS LTD,101275
North East Lincolnshire Council,http://statistics.data.gov.uk/id/local-authority/00FC),Chief Executive,Ad Governance And Democracy,Registrars & Civic Services,Miscellaneous Expenses,Hospitality,LL112,11/01/2018,498720,370.92,REVENUE,KINGSWAY HOTEL,100818
North East Lincolnshire Council,http://statistics.data.gov.uk/id/local-authority/00FC),Chief Executive,Ad Governance And Democracy,Registrars & Civic Services,Rents,Rent,GC101,23/01/2018,499872,1300,REVENUE,CLEETHORPES CHARTER TRUSTEES,101604
North East Lincolnshire Council,http://statistics.data.gov.uk/id/local-authority/00FC),Chief Executive,Ad Governance And Democracy,Ad Governance & Democracy,Contributions To Provisions,Contributions - Third Sector,LK102,29/01/2018,500828,12500,REVENUE,NHS NORTH EAST LINCOLNSHIRE,121549
North East Lincolnshire Council,http://statistics.data.gov.uk/id/local-authority/00FC),Chief Executive,Ad Governance And Democracy,Communications And Marketing,Print Stationery / Gen Off Exp,Printing And Stationery,LD103,29/01/2018,500629,1900,REVENUE,THE GRIMSBY INSTITUTE OF FURTHER,102742
North East Lincolnshire Council,http://statistics.data.gov.uk/id/local-authority/00FC),Chief Executive,Ad Governance And Democracy,Elections & Complaints,Indirect Employee Expenses,Staff Training,EB122,08/01/2018,497837,675,REVENUE,GLOUCESTER CITY COUNCIL,138930
North East Lincolnshire Council,http://statistics.data.gov.uk/id/local-authority/00FC),Chief Executive,Ad Governance And Democracy,Elections & Complaints,Energy Costs,Electricity,GB102,03/01/2018,497658,-6.89,REVENUE,NPOWER,101368
North East Lincolnshire Council,http://statistics.data.gov.uk/id/local-authority/00FC),Chief Executive,Ad Governance And Democracy,Elections & Complaints,Energy Costs,Electricity,GB102,03/01/2018,497658,-6.66,REVENUE,NPOWER,101368
North East Lincolnshire Council,http://statistics.data.gov.uk/id/local-authority/00FC),Chief Executive,Ad Law,Coroners,Rents,Room Hire,GC103,25/01/2018,500583,1217.5,REVENUE,CLEETHORPES CHARTER TRUSTEES,101604
North East Lincolnshire Council,http://statistics.data.gov.uk/id/local-authority/00FC),Chief Executive,Ad Law,Coroners,Services,Alternative Provision,LE103,25/01/2018,500578,1336.19,REVENUE,WILKIN CHAPMAN LLP,110675
North East Lincolnshire Council,http://statistics.data.gov.uk/id/local-authority/00FC),Chief Executive,Ad Law,Coroners,Other Agencies,Mortuary Storage Charges,PJ156,29/01/2018,500614,1210,REVENUE,SHEFFIELD CHILDREN'S NHS TRUST,100955
North East Lincolnshire Council,http://statistics.data.gov.uk/id/local-authority/00FC),Chief Executive,Ad Law,Coroners,Other Agencies,Mortuary Storage Charges,PJ156,04/01/2018,497528,3861,REVENUE,N LINCS & GOOLE HOSPITALS NHS,111074
North East Lincolnshire Council,http://statistics.data.gov.uk/id/local-authority/00FC),Chief Executive,Ad Law,Coroners,Other Agencies,Mortuary Storage Charges,PJ156,25/01/2018,500377,4189,REVENUE,N LINCS & GOOLE HOSPITALS NHS,111074
North East Lincolnshire Council,http://statistics.data.gov.uk/id/local-authority/00FC),Chief Executive,Ad Law,Coroners,Other Agencies,Post Mortems,PJ148,31/01/2018,501348,916.54,REVENUE,REDACTED PERSONAL INFORMATION,REDACTED PERSONAL INFORMATION
North East Lincolnshire Council,http://statistics.data.gov.uk/id/local-authority/00FC),Chief Executive,Ad Law,Coroners,Other Agencies,Post Mortems,PJ148,25/01/2018,500329,521.9,REVENUE,REDACTED PERSONAL INFORMATION,REDACTED PERSONAL INFORMATION
North East Lincolnshire Council,http://statistics.data.gov.uk/id/local-authority/00FC),Chief Executive,Ad Law,Coroners,Other Agencies,Post Mortems,PJ148,08/01/2018,497844,2603.36,REVENUE,UNIVERSITY HOSPITALS OF LEICESTER NHS TRUST,107238
North East Lincolnshire Council,http://statistics.data.gov.uk/id/local-authority/00FC),Chief Executive,Ad Law,Coroners,Other Agencies,Post Mortems,PJ148,25/01/2018,499529,1828.8,REVENUE,REDACTED PERSONAL INFORMATION,REDACTED PERSONAL INFORMATION
North East Lincolnshire Council,http://statistics.data.gov.uk/id/local-authority/00FC),Chief Executive,Ad Law,Coroners,Other Agencies,Post Mortems,PJ148,25/01/2018,500311,348.6,REVENUE,REDACTED PERSONAL INFORMATION,REDACTED PERSONAL INFORMATION
North East Lincolnshire Council,http://statistics.data.gov.uk/id/local-authority/00FC),Chief Executive,Ad Law,Coroners,Other Agencies,Post Mortems,PJ148,25/01/2018,500427,430.4,REVENUE,REDACTED PERSONAL INFORMATION,REDACTED PERSONAL INFORMATION
North East Lincolnshire Council,http://statistics.data.gov.uk/id/local-authority/00FC),Chief Executive,Ad Law,Coroners,Other Agencies,Post Mortems,PJ148,08/01/2018,497845,556.9,REVENUE,REDACTED PERSONAL INFORMATION,REDACTED PERSONAL INFORMATION
North East Lincolnshire Council,http://statistics.data.gov.uk/id/local-authority/00FC),Chief Executive,Ad Law,Coroners,Other Agencies,Post Mortems,PJ148,04/01/2018,497570,298.6,REVENUE,REDACTED PERSONAL INFORMATION,REDACTED PERSONAL INFORMATION
North East Lincolnshire Council,http://statistics.data.gov.uk/id/local-authority/00FC),Chief Executive,Ad Law,Coroners,Other Agencies,Post Mortems,PJ148,16/01/2018,499081,276.9,REVENUE,REDACTED PERSONAL INFORMATION,REDACTED PERSONAL INFORMATION
North East Lincolnshire Council,http://statistics.data.gov.uk/id/local-authority/00FC),Chief Executive,Ad Law,Coroners,Other Agencies,Post Mortems,PJ148,25/01/2018,500312,276.9,REVENUE,REDACTED PERSONAL INFORMATION,REDACTED PERSONAL INFORMATION
North East Lincolnshire Council,http://statistics.data.gov.uk/id/local-authority/00FC),Chief Executive,Ad Law,Coroners,Other Agencies,Post Mortems,PJ148,08/01/2018,497839,2092,REVENUE,REDACTED PERSONAL INFORMATION,REDACTED PERSONAL INFORMATION
North East Lincolnshire Council,http://statistics.data.gov.uk/id/local-authority/00FC),Chief Executive,Ad Law,Coroners,Other Agencies,Post Mortems,PJ148,04/01/2018,497571,404.62,REVENUE,SHEFFIELD TEACHING HOSPITALS NHS TRUST,101211
North East Lincolnshire Council,http://statistics.data.gov.uk/id/local-authority/00FC),Chief Executive,Ad Law,Coroners,Other Agencies,Post Mortems,PJ148,25/01/2018,500361,997.11,REVENUE,SHEFFIELD TEACHING HOSPITALS NHS TRUST,101211
North East Lincolnshire Council,http://statistics.data.gov.uk/id/local-authority/00FC),Chief Executive,Ad Law,Coroners,Other Agencies,Post Mortems,PJ148,22/01/2018,499167,506.1,REVENUE,REDACTED PERSONAL INFORMATION,REDACTED PERSONAL INFORMATION
North East Lincolnshire Council,http://statistics.data.gov.uk/id/local-authority/00FC),Chief Executive,Ad Law,Legal Services,Miscellaneous Expenses,Legal Fees - General,LL103,29/01/2018,500830,525,REVENUE,ELLA ANDERSON,135195
North East Lincolnshire Council,http://statistics.data.gov.uk/id/local-authority/00FC),Chief Executive,Ad Law,Legal Services,Miscellaneous Expenses,Legal Fees - General,LL103,29/01/2018,500812,14564.75,REVENUE,MR DAVID LOCK,108427
North East Lincolnshire Council,http://statistics.data.gov.uk/id/local-authority/00FC),Chief Executive,Ad Law,Legal Services,Miscellaneous Expenses,Legal Fees - General,LL103,31/01/2018,501421,-14564.75,REVENUE,MR DAVID LOCK,108427
North East Lincolnshire Council,http://statistics.data.gov.uk/id/local-authority/00FC),Chief Executive,Ad Law,Legal Services,Consultancy,Consultancy,PL101,11/01/2018,498797,424,REVENUE,WOMBLE BOND DICKINSON (UK) LLP,121775
North East Lincolnshire Council,http://statistics.data.gov.uk/id/local-authority/00FC),Chief Executive,Ad Law,Legal Services,Miscellaneous Expenses,Legal Fees - General,LL103,25/01/2018,500533,684,REVENUE,MORTON LAW LTD,124752
North East Lincolnshire Council,http://statistics.data.gov.uk/id/local-authority/00FC),Chief Executive,Ad Law,Legal Services,Miscellaneous Expenses,Legal Fees - General,LL103,25/01/2018,500534,648,REVENUE,MORTON LAW LTD,124752
North East Lincolnshire Council,http://statistics.data.gov.uk/id/local-authority/00FC),Chief Executive,Ad Law,Legal Services,Miscellaneous Expenses,Legal Fees - General,LL103,15/01/2018,498465,450,REVENUE,MR MARK WATTERSON,109973
North East Lincolnshire Council,http://statistics.data.gov.uk/id/local-authority/00FC),Chief Executive,Ad Law,Legal Services,Miscellaneous Expenses,Legal Fees - General,LL103,09/01/2018,498140,848.63,REVENUE,AZTEC TRANSLATIONS,106512
North East Lincolnshire Council,http://statistics.data.gov.uk/id/local-authority/00FC),Chief Executive,Ad Law,Legal Services,Miscellaneous Expenses,Legal Fees - General,LL103,15/01/2018,498806,9195.5,REVENUE,MISS JACQUI THOMAS,129005
North East Lincolnshire Council,http://statistics.data.gov.uk/id/local-authority/00FC),Chief Executive,Ad Law,Legal Services,Miscellaneous Expenses,Legal Fees - General,LL103,25/01/2018,500439,570,REVENUE,MR MICHAEL S BURDON,104432
North East Lincolnshire Council,http://statistics.data.gov.uk/id/local-authority/00FC),Chief Executive,Ad Law,Legal Services,Miscellaneous Expenses,Legal Fees - General,LL103,22/01/2018,499756,878,REVENUE,MR JONATHAN C WILSON,123960
North East Lincolnshire Council,http://statistics.data.gov.uk/id/local-authority/00FC),Chief Executive,Ad Law,Legal Services,Miscellaneous Expenses,Legal Fees - General,LL103,22/01/2018,499755,581.4,REVENUE,HARPHAMS MEDIA TRANSCRIBERS,112780
North East Lincolnshire Council,http://statistics.data.gov.uk/id/local-authority/00FC),Chief Executive,Ad Law,Legal Services,Miscellaneous Expenses,Legal Fees - General,LL103,25/01/2018,500440,300,REVENUE,MR JAMES A GOODWIN,123497
North East Lincolnshire Council,http://statistics.data.gov.uk/id/local-authority/00FC),Chief Executive,Ad Law,Legal Services,Miscellaneous Expenses,Legal Fees - General,LL103,22/01/2018,499621,398,REVENUE,LEXTOX DRUG & ALCOHOL TESTING,125634
North East Lincolnshire Council,http://statistics.data.gov.uk/id/local-authority/00FC),Chief Executive,Ad Law,Legal Services,Miscellaneous Expenses,Legal Fees - General,LL103,22/01/2018,499620,398,REVENUE,LEXTOX DRUG & ALCOHOL TESTING,125634
North East Lincolnshire Council,http://statistics.data.gov.uk/id/local-authority/00FC),Chief Executive,Ad Law,Legal Services,Miscellaneous Expenses,Legal Fees - General,LL103,22/01/2018,499759,260,REVENUE,BG SOLICITORS LLP,100514
North East Lincolnshire Council,http://statistics.data.gov.uk/id/local-authority/00FC),Chief Executive,Ad Law,Legal Services,Miscellaneous Expenses,Legal Fees - General,LL103,18/01/2018,499528,806.25,REVENUE,WILLIAMSONS SOLICITORS,139008
North East Lincolnshire Council,http://statistics.data.gov.uk/id/local-authority/00FC),Chief Executive,Ad Law,Legal Services,Miscellaneous Expenses,Legal Fees - General,LL103,29/01/2018,500810,250,REVENUE,MR MARK WATTERSON,109973
North East Lincolnshire Council,http://statistics.data.gov.uk/id/local-authority/00FC),Chief Executive,Ad Law,Legal Services,Miscellaneous Expenses,Legal Fees - General,LL103,29/01/2018,500829,250,REVENUE,MR MARK WATTERSON,109973
North East Lincolnshire Council,http://statistics.data.gov.uk/id/local-authority/00FC),Chief Executive,Ad Law,Legal Services,Miscellaneous Expenses,Legal Fees - General,LL103,23/01/2018,500089,490,REVENUE,LAURA TWIST,139045
North East Lincolnshire Council,http://statistics.data.gov.uk/id/local-authority/00FC),Chief Executive,Ad Law,Legal Services,Miscellaneous Expenses,Legal Fees - General,LL103,29/01/2018,499945,295,REVENUE,BG SOLICITORS LLP,100514
North East Lincolnshire Council,http://statistics.data.gov.uk/id/local-authority/00FC),Chief Executive,Ad Law,Legal Services,Miscellaneous Expenses,Legal Fees - General,LL103,23/01/2018,499970,1030.94,REVENUE,BG SOLICITORS LLP,100514
North East Lincolnshire Council,http://statistics.data.gov.uk/id/local-authority/00FC),Chief Executive,Ad Law,Legal Services,Miscellaneous Expenses,Legal Fees - General,LL103,29/01/2018,500069,1840.76,REVENUE,BG SOLICITORS LLP,100514
North East Lincolnshire Council,http://statistics.data.gov.uk/id/local-authority/00FC),Chief Executive,Ad Law,Legal Services,Miscellaneous Expenses,Legal Fees - General,LL103,29/01/2018,500067,613.33,REVENUE,DR ELLIS MOSLEY,104893
North East Lincolnshire Council,http://statistics.data.gov.uk/id/local-authority/00FC),Chief Executive,Ad Law,Legal Services,Miscellaneous Expenses,Legal Fees - General,LL103,31/01/2018,501419,420,REVENUE,GAVIN BUTTON,136396
North East Lincolnshire Council,http://statistics.data.gov.uk/id/local-authority/00FC),Chief Executive,Ad Law,Legal Services,Miscellaneous Expenses,Legal Fees - General,LL103,31/01/2018,500982,1000,REVENUE,JOHN BARKERS SOLICITORS,100928
North East Lincolnshire Council,http://statistics.data.gov.uk/id/local-authority/00FC),Deputy Chief Executive,Director Of Early Help,Prevention And Early Help,Private Contractors,Third Party Prov - Private,PH101,08/01/2018,498276,445.2,REVENUE,SCARTHO INFANTS SCHOOL,120365
North East Lincolnshire Council,http://statistics.data.gov.uk/id/local-authority/00FC),Deputy Chief Executive,Director Of Early Help,Prevention And Early Help,Other Agencies,Section 17,PJ125,22/01/2018,498574,304,REVENUE,JACQUELINE BRACEY,101200
North East Lincolnshire Council,http://statistics.data.gov.uk/id/local-authority/00FC),Deputy Chief Executive,Director Of Early Help,Prevention And Early Help,Indirect Employee Expenses,Redundancy,EB109,25/01/2018,500518,REDACTED PERSONAL INFORMATION,REVENUE,EAST RIDING OF YORKSHIRE,100377
North East Lincolnshire Council,http://statistics.data.gov.uk/id/local-authority/00FC),Deputy Chief Executive,Director Of Early Help,Prevention And Early Help,Car Allowances,Travel - Employees,JF101,08/01/2018,498270,-45.5,REVENUE,CLICK TRAVEL,127476
North East Lincolnshire Council,http://statistics.data.gov.uk/id/local-authority/00FC),Deputy Chief Executive,Director Of Early Help,Prevention And Early Help,Miscellaneous Expenses,Other Supplies & Services,LL110,04/01/2018,496511,-114.98,REVENUE,TRADE UK ACCOUNT,104939
North East Lincolnshire Council,http://statistics.data.gov.uk/id/local-authority/00FC),Deputy Chief Executive,Director Of Early Help,Prevention And Early Help,Miscellaneous Expenses,Other Supplies & Services,LL110,04/01/2018,496512,-83.32,REVENUE,TRADE UK ACCOUNT,104939
North East Lincolnshire Council,http://statistics.data.gov.uk/id/local-authority/00FC),Deputy Chief Executive,Director Of Early Help,Prevention And Early Help,Indirect Employee Expenses,Staff Training,EB122,29/01/2018,500031,420,REVENUE,MADDY E VERNAU,105774
North East Lincolnshire Council,http://statistics.data.gov.uk/id/local-authority/00FC),Deputy Chief Executive,Director Of Early Help,Childrens Health,Rents,Rent,GC101,23/01/2018,500301,20000,REVENUE,PHP INVESTMENTS NO. 1 LTD,121299
North East Lincolnshire Council,http://statistics.data.gov.uk/id/local-authority/00FC),Deputy Chief Executive,Director Of Early Help,Childrens Health,Equip / Furniture / Materials,Equipment - Maintenance,LA104,25/01/2018,500596,1057.37,REVENUE,TWOFOLD MAILING LTD,105163
North East Lincolnshire Council,http://statistics.data.gov.uk/id/local-authority/00FC),Deputy Chief Executive,Director Of Early Help,Childrens Health,Print Stationery / Gen Off Exp,Printing And Stationery,LD103,18/01/2018,489065,-36.72,REVENUE,LYRECO UK LIMITED,101120
North East Lincolnshire Council,http://statistics.data.gov.uk/id/local-authority/00FC),Deputy Chief Executive,Director Of Early Help,Childrens Health,Indirect Employee Expenses,Staff Training,EB122,23/01/2018,499901,850,REVENUE,UNIVERSITY OF HUDDERSFIELD,126382
North East Lincolnshire Council,http://statistics.data.gov.uk/id/local-authority/00FC),Deputy Chief Executive,Director Of Early Help,Childrens Health,Miscellaneous Expenses,Licences,LL116,16/01/2018,499164,1867,REVENUE,CARE QUALITY COMMISSION,108586
North East Lincolnshire Council,http://statistics.data.gov.uk/id/local-authority/00FC),Deputy Chief Executive,Director Of Early Help,Childrens Health,Miscellaneous Expenses,Licences,LL116,16/01/2018,499164,2192,REVENUE,CARE QUALITY COMMISSION,108586
North East Lincolnshire Council,http://statistics.data.gov.uk/id/local-authority/00FC),Deputy Chief Executive,Director Of Early Help,Childrens Health,Private Contractors,Contract Payments,PH105,11/01/2018,498346,1057,REVENUE,N LINCS & GOOLE HOSPITALS NHS,111074
North East Lincolnshire Council,http://statistics.data.gov.uk/id/local-authority/00FC),Deputy Chief Executive,Director Of Early Help,Childrens Health,Other Agencies,Health Charges,PJ131,31/01/2018,500926,10000,REVENUE,BIRKWOOD SURGERY,105074
North East Lincolnshire Council,http://statistics.data.gov.uk/id/local-authority/00FC),Deputy Chief Executive,Director Of Early Help,Family Hubs,Other Agencies,Other,PJ121,11/01/2018,498688,8230,REVENUE,N LINCS & GOOLE HOSPITALS NHS,111074
North East Lincolnshire Council,http://statistics.data.gov.uk/id/local-authority/00FC),Deputy Chief Executive,Director Of Early Help,Family Hubs,Equip / Furniture / Materials,Non-Teaching Resources,LA118,09/01/2018,497870,425,REVENUE,MILLMAN COACHES,100700
North East Lincolnshire Council,http://statistics.data.gov.uk/id/local-authority/00FC),Deputy Chief Executive,Director Of Early Help,Family Hubs,Print Stationery / Gen Off Exp,Printing And Stationery,LD103,09/01/2018,493892,-129.6,REVENUE,LYRECO UK LIMITED,101120
North East Lincolnshire Council,http://statistics.data.gov.uk/id/local-authority/00FC),Deputy Chief Executive,Director Of Early Help,Family Hubs,Communications And Computing,Computer Consumables,LF109,09/01/2018,493871,420.8,REVENUE,COMPUTACENTER UK LTD,101303
North East Lincolnshire Council,http://statistics.data.gov.uk/id/local-authority/00FC),Deputy Chief Executive,Director Of Early Help,Family Hubs,Catering,Provisions,LB101,15/01/2018,499218,1500,REVENUE,TESCO STORES LIMITED,102576
North East Lincolnshire Council,http://statistics.data.gov.uk/id/local-authority/00FC),Deputy Chief Executive,Director Of Early Help,Family Hubs,Other Agencies,Child Care Payments,PJ104,23/01/2018,499967,705,REVENUE,CENTRE4 LIMITED,126893
North East Lincolnshire Council,http://statistics.data.gov.uk/id/local-authority/00FC),Deputy Chief Executive,Director Of Early Help,Family Hubs,Other Agencies,Educational Visits,PJ152,31/01/2018,499877,1020.52,REVENUE,PINK PIG FARM,137639
North East Lincolnshire Council,http://statistics.data.gov.uk/id/local-authority/00FC),Deputy Chief Executive,Director Of Early Help,Community Learning Services,Voluntary Associations,Third Pp - Third Sector,PF101,04/01/2018,497360,1046.96,REVENUE,VOLUNTARY ACTION NORTH EAST LINCOLNSHIRE,103631
North East Lincolnshire Council,http://statistics.data.gov.uk/id/local-authority/00FC),Deputy Chief Executive,Director Of Early Help,Community Learning Services,Voluntary Associations,Third Pp - Third Sector,PF101,22/01/2018,499174,1278.08,REVENUE,VOLUNTARY ACTION NORTH EAST LINCOLNSHIRE,103631
North East Lincolnshire Council,http://statistics.data.gov.uk/id/local-authority/00FC),Deputy Chief Executive,Director Of Early Help,Community Learning Services,Miscellaneous Expenses,Activities - Service Users,LL114,11/01/2018,498673,382.5,REVENUE,LINKAGE COMMUNITY TRUST LTD,104471
North East Lincolnshire Council,http://statistics.data.gov.uk/id/local-authority/00FC),Deputy Chief Executive,Director Of Early Help,Community Learning Services,Private Contractors,Third Party Prov - Private,PH101,15/01/2018,498360,450,REVENUE,STEVE JONES,138638
North East Lincolnshire Council,http://statistics.data.gov.uk/id/local-authority/00FC),Deputy Chief Executive,Director Of Early Help,Community Learning Services,Miscellaneous Expenses,Activities - Service Users,LL114,29/01/2018,500791,284.38,REVENUE,CENTRE4 LIMITED,126893
North East Lincolnshire Council,http://statistics.data.gov.uk/id/local-authority/00FC),Deputy Chief Executive,Director Of Early Help,Community Learning Services,Miscellaneous Expenses,Activities - Service Users,LL114,16/01/2018,498596,278.4,REVENUE,PRE-SCHOOL LEARNING ALLIANCE,107441
North East Lincolnshire Council,http://statistics.data.gov.uk/id/local-authority/00FC),Deputy Chief Executive,Director Of Early Help,Community Learning Services,Private Contractors,Third Party Prov - Private,PH101,15/01/2018,498359,270.93,REVENUE,MRS MARIA SWINDELL,136426
North East Lincolnshire Council,http://statistics.data.gov.uk/id/local-authority/00FC),Deputy Chief Executive,Director Of Early Help,Community Learning Services,Contributions To Provisions,Contributions - Other,LK103,16/01/2018,497559,1380,REVENUE,STAGECOACH SERVICES,101404
North East Lincolnshire Council,http://statistics.data.gov.uk/id/local-authority/00FC),Deputy Chief Executive,Director Of Early Help,Community Learning Services,Indirect Employee Expenses,Staff Training,EB122,11/01/2018,498669,870,REVENUE,TRIBAL EDUCATION LIMITED,103641
North East Lincolnshire Council,http://statistics.data.gov.uk/id/local-authority/00FC),Deputy Chief Executive,Director Of Early Help,Community Learning Services,Indirect Employee Expenses,Staff Training,EB122,15/01/2018,498284,1645,REVENUE,PIVOTAL EDUCATION LTD,138891
North East Lincolnshire Council,http://statistics.data.gov.uk/id/local-authority/00FC),Deputy Chief Executive,Director Of Early Help,Community Learning Services,Rep Alterations Maint Building,Removal Expenses - Offices,GA108,04/01/2018,497535,1625,REVENUE,LAKESIDE DEVELOPERS,136659
North East Lincolnshire Council,http://statistics.data.gov.uk/id/local-authority/00FC),Deputy Chief Executive,Director Of Early Help,Community Learning Services,Rents,Service Charge,GC102,25/01/2018,500432,49524.73,REVENUE,CARE PLUS GROUP,106467
North East Lincolnshire Council,http://statistics.data.gov.uk/id/local-authority/00FC),Deputy Chief Executive,Director Of Early Help,Community Learning Services,Rents,Service Charge,GC102,15/01/2018,498460,7555.23,REVENUE,CARE PLUS GROUP,106467
North East Lincolnshire Council,http://statistics.data.gov.uk/id/local-authority/00FC),Deputy Chief Executive,Director Of Early Help,Community Learning Services,Print Stationery / Gen Off Exp,Publicity,LD105,16/01/2018,498550,598,REVENUE,LOCAL WORLD LIMITED,118774
North East Lincolnshire Council,http://statistics.data.gov.uk/id/local-authority/00FC),Deputy Chief Executive,Director Of Early Help,Child Protection / Safeguardin,Communications And Computing,Computer S/Ware - Purchases,LF101,11/01/2018,498577,818.88,REVENUE,ERGO COMPUTING UK LTD,138347
North East Lincolnshire Council,http://statistics.data.gov.uk/id/local-authority/00FC),Deputy Chief Executive,Director Of Early Help,Child Protection / Safeguardin,Private Contractors,Translation & Interpreter Serv,PH113,11/01/2018,498736,285,REVENUE,HE WORDS,122711
North East Lincolnshire Council,http://statistics.data.gov.uk/id/local-authority/00FC),Deputy Chief Executive,Director Of Early Help,Child Protection / Safeguardin,Private Contractors,Third Party Prov - Private,PH101,31/01/2018,500980,500,REVENUE,DONCASTER METROPOLITAN BOROUGH COUNCIL,130138
North East Lincolnshire Council,http://statistics.data.gov.uk/id/local-authority/00FC),Deputy Chief Executive,Director Of Early Help,Child Protection / Safeguardin,Miscellaneous Expenses,Other Expenses General,LL119,09/01/2018,496262,1500,REVENUE,TABLETALK MEDIA LTD,138799
North East Lincolnshire Council,http://statistics.data.gov.uk/id/local-authority/00FC),Deputy Chief Executive,Director Of Early Help,Palliative / Complex Care,Private Contractors,Third Party Prov - Private,PH101,11/01/2018,498756,1920,REVENUE,THE ROWAN MANAGED ACCOUNT,127025
North East Lincolnshire Council,http://statistics.data.gov.uk/id/local-authority/00FC),Deputy Chief Executive,Director Of Early Help,Palliative / Complex Care,Private Contractors,Third Party Prov - Private,PH101,11/01/2018,498756,1920,REVENUE,THE ROWAN MANAGED ACCOUNT,127025
North East Lincolnshire Council,http://statistics.data.gov.uk/id/local-authority/00FC),Deputy Chief Executive,Director Of Early Help,Palliative / Complex Care,Private Contractors,Third Party Prov - Private,PH101,11/01/2018,498756,1920,REVENUE,THE ROWAN MANAGED ACCOUNT,127025
North East Lincolnshire Council,http://statistics.data.gov.uk/id/local-authority/00FC),Deputy Chief Executive,Director Of Early Help,Palliative / Complex Care,Private Contractors,Third Party Prov - Private,PH101,11/01/2018,498756,1920,REVENUE,THE ROWAN MANAGED ACCOUNT,127025
North East Lincolnshire Council,http://statistics.data.gov.uk/id/local-authority/00FC),Deputy Chief Executive,Director Of Early Help,Palliative / Complex Care,Private Contractors,Third Party Prov - Private,PH101,11/01/2018,498758,984.6,REVENUE,THE ROWAN MANAGED ACCOUNT,127025
North East Lincolnshire Council,http://statistics.data.gov.uk/id/local-authority/00FC),Deputy Chief Executive,Director Of Early Help,Palliative / Complex Care,Private Contractors,Third Party Prov - Private,PH101,11/01/2018,498759,3200,REVENUE,THE ROWAN MANAGED ACCOUNT,127025
North East Lincolnshire Council,http://statistics.data.gov.uk/id/local-authority/00FC),Deputy Chief Executive,Director Of Early Help,Palliative / Complex Care,Private Contractors,Third Party Prov - Private,PH101,11/01/2018,498760,3904,REVENUE,THE ROWAN MANAGED ACCOUNT,127025
North East Lincolnshire Council,http://statistics.data.gov.uk/id/local-authority/00FC),Deputy Chief Executive,Director Of Early Help,Palliative / Complex Care,Private Contractors,Third Party Prov - Private,PH101,23/01/2018,499899,1920,REVENUE,THE ROWAN MANAGED ACCOUNT,127025
North East Lincolnshire Council,http://statistics.data.gov.uk/id/local-authority/00FC),Deputy Chief Executive,Director Of Early Help,Palliative / Complex Care,Private Contractors,Third Party Prov - Private,PH101,23/01/2018,499897,1068.6,REVENUE,THE ROWAN MANAGED ACCOUNT,127025
North East Lincolnshire Council,http://statistics.data.gov.uk/id/local-authority/00FC),Deputy Chief Executive,Director Of Early Help,Palliative / Complex Care,Private Contractors,Third Party Prov - Private,PH101,23/01/2018,499897,587.15,REVENUE,THE ROWAN MANAGED ACCOUNT,127025
North East Lincolnshire Council,http://statistics.data.gov.uk/id/local-authority/00FC),Deputy Chief Executive,Director Of Early Help,Palliative / Complex Care,Private Contractors,Third Party Prov - Private,PH101,23/01/2018,499895,976,REVENUE,THE ROWAN MANAGED ACCOUNT,127025
North East Lincolnshire Council,http://statistics.data.gov.uk/id/local-authority/00FC),Deputy Chief Executive,Director Of Early Help,Palliative / Complex Care,Private Contractors,Third Party Prov - Private,PH101,23/01/2018,499900,800,REVENUE,THE ROWAN MANAGED ACCOUNT,127025
North East Lincolnshire Council,http://statistics.data.gov.uk/id/local-authority/00FC),Deputy Chief Executive,Director Of Early Help,Palliative / Complex Care,Private Contractors,Third Party Prov - Private,PH101,23/01/2018,499898,550,REVENUE,THE ROWAN MANAGED ACCOUNT,127025
North East Lincolnshire Council,http://statistics.data.gov.uk/id/local-authority/00FC),Deputy Chief Executive,Director Of Early Help,Palliative / Complex Care,Private Contractors,Third Party Prov - Private,PH101,23/01/2018,499898,1331,REVENUE,THE ROWAN MANAGED ACCOUNT,127025
North East Lincolnshire Council,http://statistics.data.gov.uk/id/local-authority/00FC),Deputy Chief Executive,Director Of Early Help,Palliative / Complex Care,Private Contractors,Third Party Prov - Private,PH101,23/01/2018,499896,896,REVENUE,THE ROWAN MANAGED ACCOUNT,127025
North East Lincolnshire Council,http://statistics.data.gov.uk/id/local-authority/00FC),Deputy Chief Executive,Director Of Early Help,Camhs Commissioned,Private Contractors,Contract Payments,PH105,11/01/2018,498731,8558.75,REVENUE,LINCOLNSHIRE PARTNERSHIP NHS FOUNDATION TRUST,105021
North East Lincolnshire Council,http://statistics.data.gov.uk/id/local-authority/00FC),Deputy Chief Executive,Director Of Childrens Services,Access And Education Services,Contract Hire-Operating Leases,Vehicles - Contract Hire,JC101,22/01/2018,499856,425,REVENUE,LINKS TAXIS,100546
North East Lincolnshire Council,http://statistics.data.gov.uk/id/local-authority/00FC),Deputy Chief Executive,Director Of Childrens Services,Access And Education Services,Contract Hire-Operating Leases,Vehicles - Contract Hire,JC101,22/01/2018,499744,660,REVENUE,LINKS TAXIS,100546
North East Lincolnshire Council,http://statistics.data.gov.uk/id/local-authority/00FC),Deputy Chief Executive,Director Of Childrens Services,Access And Education Services,Contract Hire-Operating Leases,Vehicles - Contract Hire,JC101,22/01/2018,499741,525,REVENUE,LINKS TAXIS,100546
North East Lincolnshire Council,http://statistics.data.gov.uk/id/local-authority/00FC),Deputy Chief Executive,Director Of Childrens Services,Access And Education Services,Contract Hire-Operating Leases,Vehicles - Contract Hire,JC101,22/01/2018,499742,390,REVENUE,LINKS TAXIS,100546
North East Lincolnshire Council,http://statistics.data.gov.uk/id/local-authority/00FC),Deputy Chief Executive,Director Of Childrens Services,Access And Education Services,Contract Hire-Operating Leases,Vehicles - Contract Hire,JC101,22/01/2018,499747,315,REVENUE,LINKS TAXIS,100546
North East Lincolnshire Council,http://statistics.data.gov.uk/id/local-authority/00FC),Deputy Chief Executive,Director Of Childrens Services,Access And Education Services,Contract Hire-Operating Leases,Vehicles - Contract Hire,JC101,22/01/2018,499816,550,REVENUE,MINICABS CLEETHORPES (LINCS) LTD,102124
North East Lincolnshire Council,http://statistics.data.gov.uk/id/local-authority/00FC),Deputy Chief Executive,Director Of Childrens Services,Access And Education Services,Contract Hire-Operating Leases,Vehicles - Contract Hire,JC101,22/01/2018,499750,505,REVENUE,LINKS TAXIS,100546
North East Lincolnshire Council,http://statistics.data.gov.uk/id/local-authority/00FC),Deputy Chief Executive,Director Of Childrens Services,Access And Education Services,Contract Hire-Operating Leases,Vehicles - Contract Hire,JC101,22/01/2018,499817,715,REVENUE,MINICABS CLEETHORPES (LINCS) LTD,102124
North East Lincolnshire Council,http://statistics.data.gov.uk/id/local-authority/00FC),Deputy Chief Executive,Director Of Childrens Services,Access And Education Services,Contract Hire-Operating Leases,Vehicles - Contract Hire,JC101,23/01/2018,499925,330,REVENUE,LINKS TAXIS,100546
North East Lincolnshire Council,http://statistics.data.gov.uk/id/local-authority/00FC),Deputy Chief Executive,Director Of Childrens Services,Access And Education Services,Contract Hire-Operating Leases,Vehicles - Contract Hire,JC101,11/01/2018,498733,408,REVENUE,REVELLS TAXIS (ED/SOC SERV),100559
North East Lincolnshire Council,http://statistics.data.gov.uk/id/local-authority/00FC),Deputy Chief Executive,Director Of Childrens Services,Access And Education Services,Contract Hire-Operating Leases,Vehicles - Contract Hire,JC101,11/01/2018,498711,396,REVENUE,REVELLS TAXIS (ED/SOC SERV),100559
North East Lincolnshire Council,http://statistics.data.gov.uk/id/local-authority/00FC),Deputy Chief Executive,Director Of Childrens Services,Access And Education Services,Contract Hire-Operating Leases,Vehicles - Contract Hire,JC101,23/01/2018,499924,252,REVENUE,REVELLS TAXIS (ED/SOC SERV),100559
North East Lincolnshire Council,http://statistics.data.gov.uk/id/local-authority/00FC),Deputy Chief Executive,Director Of Childrens Services,Access And Education Services,Contract Hire-Operating Leases,Vehicles - Contract Hire,JC101,22/01/2018,499796,392,REVENUE,LINKS TAXIS,100546
North East Lincolnshire Council,http://statistics.data.gov.uk/id/local-authority/00FC),Deputy Chief Executive,Director Of Childrens Services,Access And Education Services,Contract Hire-Operating Leases,Vehicles - Contract Hire,JC101,22/01/2018,499844,828,REVENUE,AA RADIO CARS LTD,101222
North East Lincolnshire Council,http://statistics.data.gov.uk/id/local-authority/00FC),Deputy Chief Executive,Director Of Childrens Services,Access And Education Services,Contract Hire-Operating Leases,Vehicles - Contract Hire,JC101,22/01/2018,499794,779,REVENUE,LINKS TAXIS,100546
North East Lincolnshire Council,http://statistics.data.gov.uk/id/local-authority/00FC),Deputy Chief Executive,Director Of Childrens Services,Access And Education Services,Contract Hire-Operating Leases,Vehicles - Contract Hire,JC101,25/01/2018,500292,607.5,REVENUE,COXONS CARS LIMITED,100578
North East Lincolnshire Council,http://statistics.data.gov.uk/id/local-authority/00FC),Deputy Chief Executive,Director Of Childrens Services,Access And Education Services,Contract Hire-Operating Leases,Vehicles - Contract Hire,JC101,22/01/2018,499806,576,REVENUE,LINKS TAXIS,100546
North East Lincolnshire Council,http://statistics.data.gov.uk/id/local-authority/00FC),Deputy Chief Executive,Director Of Childrens Services,Access And Education Services,Contract Hire-Operating Leases,Vehicles - Contract Hire,JC101,22/01/2018,499840,532,REVENUE,AA RADIO CARS LTD,101222
North East Lincolnshire Council,http://statistics.data.gov.uk/id/local-authority/00FC),Deputy Chief Executive,Director Of Childrens Services,Access And Education Services,Contract Hire-Operating Leases,Vehicles - Contract Hire,JC101,22/01/2018,499841,602,REVENUE,AA RADIO CARS LTD,101222
North East Lincolnshire Council,http://statistics.data.gov.uk/id/local-authority/00FC),Deputy Chief Executive,Director Of Childrens Services,Access And Education Services,Contract Hire-Operating Leases,Vehicles - Contract Hire,JC101,22/01/2018,499743,462,REVENUE,LINKS TAXIS,100546
North East Lincolnshire Council,http://statistics.data.gov.uk/id/local-authority/00FC),Deputy Chief Executive,Director Of Childrens Services,Access And Education Services,Contract Hire-Operating Leases,Vehicles - Contract Hire,JC101,22/01/2018,499749,479.05,REVENUE,LINKS TAXIS,100546
North East Lincolnshire Council,http://statistics.data.gov.uk/id/local-authority/00FC),Deputy Chief Executive,Director Of Childrens Services,Access And Education Services,Contract Hire-Operating Leases,Vehicles - Contract Hire,JC101,25/01/2018,500298,351,REVENUE,COXONS CARS LIMITED,100578
North East Lincolnshire Council,http://statistics.data.gov.uk/id/local-authority/00FC),Deputy Chief Executive,Director Of Childrens Services,Access And Education Services,Contract Hire-Operating Leases,Vehicles - Contract Hire,JC101,23/01/2018,499963,564,REVENUE,COUNTRY CABS,101999
North East Lincolnshire Council,http://statistics.data.gov.uk/id/local-authority/00FC),Deputy Chief Executive,Director Of Childrens Services,Access And Education Services,Contract Hire-Operating Leases,Vehicles - Contract Hire,JC101,11/01/2018,498710,592,REVENUE,REVELLS TAXIS (ED/SOC SERV),100559
North East Lincolnshire Council,http://statistics.data.gov.uk/id/local-authority/00FC),Deputy Chief Executive,Director Of Childrens Services,Access And Education Services,Contract Hire-Operating Leases,Vehicles - Contract Hire,JC101,23/01/2018,499921,255,REVENUE,REVELLS TAXIS (ED/SOC SERV),100559
North East Lincolnshire Council,http://statistics.data.gov.uk/id/local-authority/00FC),Deputy Chief Executive,Director Of Childrens Services,Access And Education Services,Contract Hire-Operating Leases,Vehicles - Contract Hire,JC101,23/01/2018,499911,805,REVENUE,NORTH LINCOLNSHIRE COUNCIL,101186
North East Lincolnshire Council,http://statistics.data.gov.uk/id/local-authority/00FC),Deputy Chief Executive,Director Of Childrens Services,Access And Education Services,Contract Hire-Operating Leases,Vehicles - Contract Hire,JC101,23/01/2018,499913,1240,REVENUE,BEST FUTURES COMMUNITY INTEREST COMPANY,128600
North East Lincolnshire Council,http://statistics.data.gov.uk/id/local-authority/00FC),Deputy Chief Executive,Director Of Childrens Services,Access And Education Services,Private Contractors,Concessionary Fares,PH104,25/01/2018,500342,3006.4,REVENUE,STAGECOACH SERVICES,101404
North East Lincolnshire Council,http://statistics.data.gov.uk/id/local-authority/00FC),Deputy Chief Executive,Director Of Childrens Services,Access And Education Services,Contract Hire-Operating Leases,Vehicles - Contract Hire,JC101,22/01/2018,499830,1638,REVENUE,AMVALE MEDICAL TRANSPORT LTD,130777
North East Lincolnshire Council,http://statistics.data.gov.uk/id/local-authority/00FC),Deputy Chief Executive,Director Of Childrens Services,Access And Education Services,Contract Hire-Operating Leases,Vehicles - Contract Hire,JC101,22/01/2018,499829,1666,REVENUE,AMVALE MEDICAL TRANSPORT LTD,130777
North East Lincolnshire Council,http://statistics.data.gov.uk/id/local-authority/00FC),Deputy Chief Executive,Director Of Childrens Services,Access And Education Services,Contract Hire-Operating Leases,Vehicles - Contract Hire,JC101,22/01/2018,499838,611,REVENUE,AA RADIO CARS LTD,101222
North East Lincolnshire Council,http://statistics.data.gov.uk/id/local-authority/00FC),Deputy Chief Executive,Director Of Childrens Services,Access And Education Services,Contract Hire-Operating Leases,Vehicles - Contract Hire,JC101,22/01/2018,499846,743.75,REVENUE,GRIMSBY MINIBUSES LTD,121524
North East Lincolnshire Council,http://statistics.data.gov.uk/id/local-authority/00FC),Deputy Chief Executive,Director Of Childrens Services,Access And Education Services,Contract Hire-Operating Leases,Vehicles - Contract Hire,JC101,23/01/2018,499920,2629.2,REVENUE,MILLMAN COACHES,100700
North East Lincolnshire Council,http://statistics.data.gov.uk/id/local-authority/00FC),Deputy Chief Executive,Director Of Childrens Services,Access And Education Services,Contract Hire-Operating Leases,Vehicles - Contract Hire,JC101,22/01/2018,499824,2310,REVENUE,AMVALE LIMITED,101030
North East Lincolnshire Council,http://statistics.data.gov.uk/id/local-authority/00FC),Deputy Chief Executive,Director Of Childrens Services,Access And Education Services,Contract Hire-Operating Leases,Vehicles - Contract Hire,JC101,23/01/2018,499907,2450,REVENUE,AMVALE LIMITED,101030
North East Lincolnshire Council,http://statistics.data.gov.uk/id/local-authority/00FC),Deputy Chief Executive,Director Of Childrens Services,Access And Education Services,Contract Hire-Operating Leases,Vehicles - Contract Hire,JC101,23/01/2018,499906,2310,REVENUE,AMVALE LIMITED,101030
North East Lincolnshire Council,http://statistics.data.gov.uk/id/local-authority/00FC),Deputy Chief Executive,Director Of Childrens Services,Access And Education Services,Contract Hire-Operating Leases,Vehicles - Contract Hire,JC101,22/01/2018,499825,2170,REVENUE,AMVALE LIMITED,101030
North East Lincolnshire Council,http://statistics.data.gov.uk/id/local-authority/00FC),Deputy Chief Executive,Director Of Childrens Services,Access And Education Services,Contract Hire-Operating Leases,Vehicles - Contract Hire,JC101,25/01/2018,500331,420,REVENUE,COXONS CARS LIMITED,100578
North East Lincolnshire Council,http://statistics.data.gov.uk/id/local-authority/00FC),Deputy Chief Executive,Director Of Childrens Services,Access And Education Services,Contract Hire-Operating Leases,Vehicles - Contract Hire,JC101,25/01/2018,500296,728,REVENUE,COXONS CARS LIMITED,100578
North East Lincolnshire Council,http://statistics.data.gov.uk/id/local-authority/00FC),Deputy Chief Executive,Director Of Childrens Services,Access And Education Services,Contract Hire-Operating Leases,Vehicles - Contract Hire,JC101,22/01/2018,499848,672,REVENUE,AA RADIO CARS LTD,101222
North East Lincolnshire Council,http://statistics.data.gov.uk/id/local-authority/00FC),Deputy Chief Executive,Director Of Childrens Services,Access And Education Services,Private Contractors,Concessionary Fares,PH104,25/01/2018,500342,1104,REVENUE,STAGECOACH SERVICES,101404
North East Lincolnshire Council,http://statistics.data.gov.uk/id/local-authority/00FC),Deputy Chief Executive,Director Of Childrens Services,Access And Education Services,Contract Hire-Operating Leases,Vehicles - Contract Hire,JC101,23/01/2018,500330,616,REVENUE,LINKS TAXIS,100546
North East Lincolnshire Council,http://statistics.data.gov.uk/id/local-authority/00FC),Deputy Chief Executive,Director Of Childrens Services,Access And Education Services,Contract Hire-Operating Leases,Vehicles - Contract Hire,JC101,22/01/2018,499798,744,REVENUE,LINKS TAXIS,100546
North East Lincolnshire Council,http://statistics.data.gov.uk/id/local-authority/00FC),Deputy Chief Executive,Director Of Childrens Services,Access And Education Services,Contract Hire-Operating Leases,Vehicles - Contract Hire,JC101,25/01/2018,500343,2130,REVENUE,REDACTED PERSONAL INFORMATION,REDACTED PERSONAL INFORMATION
North East Lincolnshire Council,http://statistics.data.gov.uk/id/local-authority/00FC),Deputy Chief Executive,Director Of Childrens Services,Access And Education Services,Contract Hire-Operating Leases,Vehicles - Contract Hire,JC101,25/01/2018,500360,504,REVENUE,COXONS CARS LIMITED,100578
North East Lincolnshire Council,http://statistics.data.gov.uk/id/local-authority/00FC),Deputy Chief Executive,Director Of Childrens Services,Access And Education Services,Contract Hire-Operating Leases,Vehicles - Contract Hire,JC101,22/01/2018,499827,1666,REVENUE,AMVALE MEDICAL TRANSPORT LTD,130777
North East Lincolnshire Council,http://statistics.data.gov.uk/id/local-authority/00FC),Deputy Chief Executive,Director Of Childrens Services,Access And Education Services,Contract Hire-Operating Leases,Vehicles - Contract Hire,JC101,23/01/2018,499915,1470,REVENUE,HANSONS AIRPORT EXPRESS,111879
North East Lincolnshire Council,http://statistics.data.gov.uk/id/local-authority/00FC),Deputy Chief Executive,Director Of Childrens Services,Access And Education Services,Contract Hire-Operating Leases,Vehicles - Contract Hire,JC101,22/01/2018,499828,1638,REVENUE,AMVALE MEDICAL TRANSPORT LTD,130777
North East Lincolnshire Council,http://statistics.data.gov.uk/id/local-authority/00FC),Deputy Chief Executive,Director Of Childrens Services,Access And Education Services,Contract Hire-Operating Leases,Vehicles - Contract Hire,JC101,22/01/2018,499823,963,REVENUE,MINICABS CLEETHORPES (LINCS) LTD,102124
North East Lincolnshire Council,http://statistics.data.gov.uk/id/local-authority/00FC),Deputy Chief Executive,Director Of Childrens Services,Access And Education Services,Contract Hire-Operating Leases,Vehicles - Contract Hire,JC101,11/01/2018,498716,1035,REVENUE,REVELLS TAXIS (ED/SOC SERV),100559
North East Lincolnshire Council,http://statistics.data.gov.uk/id/local-authority/00FC),Deputy Chief Executive,Director Of Childrens Services,Access And Education Services,Contract Hire-Operating Leases,Vehicles - Contract Hire,JC101,22/01/2018,499851,861,REVENUE,REVELLS TAXIS (ED/SOC SERV),100559
North East Lincolnshire Council,http://statistics.data.gov.uk/id/local-authority/00FC),Deputy Chief Executive,Director Of Childrens Services,Access And Education Services,Contract Hire-Operating Leases,Vehicles - Contract Hire,JC101,22/01/2018,499815,1008,REVENUE,MINICABS CLEETHORPES (LINCS) LTD,102124
North East Lincolnshire Council,http://statistics.data.gov.uk/id/local-authority/00FC),Deputy Chief Executive,Director Of Childrens Services,Access And Education Services,Contract Hire-Operating Leases,Vehicles - Contract Hire,JC101,22/01/2018,499814,1106,REVENUE,MINICABS CLEETHORPES (LINCS) LTD,102124
North East Lincolnshire Council,http://statistics.data.gov.uk/id/local-authority/00FC),Deputy Chief Executive,Director Of Childrens Services,Access And Education Services,Contract Hire-Operating Leases,Vehicles - Contract Hire,JC101,22/01/2018,499849,297,REVENUE,AA RADIO CARS LTD,101222
North East Lincolnshire Council,http://statistics.data.gov.uk/id/local-authority/00FC),Deputy Chief Executive,Director Of Childrens Services,Access And Education Services,Contract Hire-Operating Leases,Vehicles - Contract Hire,JC101,22/01/2018,499832,2310,REVENUE,AMVALE MEDICAL TRANSPORT LTD,130777
North East Lincolnshire Council,http://statistics.data.gov.uk/id/local-authority/00FC),Deputy Chief Executive,Director Of Childrens Services,Access And Education Services,Contract Hire-Operating Leases,Vehicles - Contract Hire,JC101,22/01/2018,499833,2030,REVENUE,AMVALE MEDICAL TRANSPORT LTD,130777
North East Lincolnshire Council,http://statistics.data.gov.uk/id/local-authority/00FC),Deputy Chief Executive,Director Of Childrens Services,Access And Education Services,Contract Hire-Operating Leases,Vehicles - Contract Hire,JC101,22/01/2018,499842,1971.2,REVENUE,GRIMSBY MINIBUSES LTD,121524
North East Lincolnshire Council,http://statistics.data.gov.uk/id/local-authority/00FC),Deputy Chief Executive,Director Of Childrens Services,Access And Education Services,Contract Hire-Operating Leases,Vehicles - Contract Hire,JC101,22/01/2018,499843,1964.2,REVENUE,GRIMSBY MINIBUSES LTD,121524
North East Lincolnshire Council,http://statistics.data.gov.uk/id/local-authority/00FC),Deputy Chief Executive,Director Of Childrens Services,Access And Education Services,Contract Hire-Operating Leases,Vehicles - Contract Hire,JC101,22/01/2018,499751,1106,REVENUE,LINKS TAXIS,100546
North East Lincolnshire Council,http://statistics.data.gov.uk/id/local-authority/00FC),Deputy Chief Executive,Director Of Childrens Services,Access And Education Services,Contract Hire-Operating Leases,Vehicles - Contract Hire,JC101,22/01/2018,499852,810,REVENUE,LINKS TAXIS,100546
North East Lincolnshire Council,http://statistics.data.gov.uk/id/local-authority/00FC),Deputy Chief Executive,Director Of Childrens Services,Access And Education Services,Contract Hire-Operating Leases,Vehicles - Contract Hire,JC101,22/01/2018,499826,2464,REVENUE,AMVALE MEDICAL TRANSPORT LTD,130777
North East Lincolnshire Council,http://statistics.data.gov.uk/id/local-authority/00FC),Deputy Chief Executive,Director Of Childrens Services,Access And Education Services,Contract Hire-Operating Leases,Vehicles - Contract Hire,JC101,22/01/2018,499821,420,REVENUE,MINICABS CLEETHORPES (LINCS) LTD,102124
North East Lincolnshire Council,http://statistics.data.gov.uk/id/local-authority/00FC),Deputy Chief Executive,Director Of Childrens Services,Access And Education Services,Contract Hire-Operating Leases,Vehicles - Contract Hire,JC101,23/01/2018,499919,1875,REVENUE,WHEELCHAIR FRIENDLY TAXI SERVICE,101915
North East Lincolnshire Council,http://statistics.data.gov.uk/id/local-authority/00FC),Deputy Chief Executive,Director Of Childrens Services,Access And Education Services,Contract Hire-Operating Leases,Vehicles - Contract Hire,JC101,22/01/2018,499847,1702.4,REVENUE,GRIMSBY MINIBUSES LTD,121524
North East Lincolnshire Council,http://statistics.data.gov.uk/id/local-authority/00FC),Deputy Chief Executive,Director Of Childrens Services,Access And Education Services,Contract Hire-Operating Leases,Vehicles - Contract Hire,JC101,22/01/2018,499803,546,REVENUE,LINKS TAXIS,100546
North East Lincolnshire Council,http://statistics.data.gov.uk/id/local-authority/00FC),Deputy Chief Executive,Director Of Childrens Services,Access And Education Services,Contract Hire-Operating Leases,Vehicles - Contract Hire,JC101,25/01/2018,500290,1001,REVENUE,LINKS TAXIS,100546
North East Lincolnshire Council,http://statistics.data.gov.uk/id/local-authority/00FC),Deputy Chief Executive,Director Of Childrens Services,Access And Education Services,Contract Hire-Operating Leases,Vehicles - Contract Hire,JC101,25/01/2018,500355,450,REVENUE,COXONS CARS LIMITED,100578
North East Lincolnshire Council,http://statistics.data.gov.uk/id/local-authority/00FC),Deputy Chief Executive,Director Of Childrens Services,Access And Education Services,Contract Hire-Operating Leases,Vehicles - Contract Hire,JC101,22/01/2018,499850,680.4,REVENUE,GRIMSBY MINIBUSES LTD,121524
North East Lincolnshire Council,http://statistics.data.gov.uk/id/local-authority/00FC),Deputy Chief Executive,Director Of Childrens Services,Access And Education Services,Contract Hire-Operating Leases,Vehicles - Contract Hire,JC101,23/01/2018,500141,812.5,REVENUE,LINKS TAXIS,100546
North East Lincolnshire Council,http://statistics.data.gov.uk/id/local-authority/00FC),Deputy Chief Executive,Director Of Childrens Services,Access And Education Services,Contract Hire-Operating Leases,Vehicles - Contract Hire,JC101,25/01/2018,500350,378,REVENUE,COXONS CARS LIMITED,100578
North East Lincolnshire Council,http://statistics.data.gov.uk/id/local-authority/00FC),Deputy Chief Executive,Director Of Childrens Services,Access And Education Services,Contract Hire-Operating Leases,Vehicles - Contract Hire,JC101,25/01/2018,500349,323,REVENUE,COXONS CARS LIMITED,100578
North East Lincolnshire Council,http://statistics.data.gov.uk/id/local-authority/00FC),Deputy Chief Executive,Director Of Childrens Services,Access And Education Services,Contract Hire-Operating Leases,Vehicles - Contract Hire,JC101,25/01/2018,500351,616,REVENUE,COXONS CARS LIMITED,100578
North East Lincolnshire Council,http://statistics.data.gov.uk/id/local-authority/00FC),Deputy Chief Executive,Director Of Childrens Services,Access And Education Services,Contract Hire-Operating Leases,Vehicles - Contract Hire,JC101,23/01/2018,500139,462,REVENUE,LINKS TAXIS,100546
North East Lincolnshire Council,http://statistics.data.gov.uk/id/local-authority/00FC),Deputy Chief Executive,Director Of Childrens Services,Access And Education Services,Contract Hire-Operating Leases,Vehicles - Contract Hire,JC101,25/01/2018,500356,364,REVENUE,COXONS CARS LIMITED,100578
North East Lincolnshire Council,http://statistics.data.gov.uk/id/local-authority/00FC),Deputy Chief Executive,Director Of Childrens Services,Access And Education Services,Contract Hire-Operating Leases,Vehicles - Contract Hire,JC101,25/01/2018,500357,612,REVENUE,COXONS CARS LIMITED,100578
North East Lincolnshire Council,http://statistics.data.gov.uk/id/local-authority/00FC),Deputy Chief Executive,Director Of Childrens Services,Access And Education Services,Contract Hire-Operating Leases,Vehicles - Contract Hire,JC101,22/01/2018,499808,532,REVENUE,LINKS TAXIS,100546
North East Lincolnshire Council,http://statistics.data.gov.uk/id/local-authority/00FC),Deputy Chief Executive,Director Of Childrens Services,Access And Education Services,Contract Hire-Operating Leases,Vehicles - Contract Hire,JC101,22/01/2018,499799,532,REVENUE,LINKS TAXIS,100546
North East Lincolnshire Council,http://statistics.data.gov.uk/id/local-authority/00FC),Deputy Chief Executive,Director Of Childrens Services,Access And Education Services,Contract Hire-Operating Leases,Vehicles - Contract Hire,JC101,22/01/2018,499746,688,REVENUE,LINKS TAXIS,100546
North East Lincolnshire Council,http://statistics.data.gov.uk/id/local-authority/00FC),Deputy Chief Executive,Director Of Childrens Services,Access And Education Services,Contract Hire-Operating Leases,Vehicles - Contract Hire,JC101,25/01/2018,500288,490,REVENUE,LINKS TAXIS,100546
North East Lincolnshire Council,http://statistics.data.gov.uk/id/local-authority/00FC),Deputy Chief Executive,Director Of Childrens Services,Access And Education Services,Contract Hire-Operating Leases,Vehicles - Contract Hire,JC101,25/01/2018,500348,540,REVENUE,MINICABS CLEETHORPES (LINCS) LTD,102124
North East Lincolnshire Council,http://statistics.data.gov.uk/id/local-authority/00FC),Deputy Chief Executive,Director Of Childrens Services,Access And Education Services,Contract Hire-Operating Leases,Vehicles - Contract Hire,JC101,25/01/2018,500289,602,REVENUE,LINKS TAXIS,100546
North East Lincolnshire Council,http://statistics.data.gov.uk/id/local-authority/00FC),Deputy Chief Executive,Director Of Childrens Services,Access And Education Services,Contract Hire-Operating Leases,Vehicles - Contract Hire,JC101,22/01/2018,499740,824,REVENUE,LINKS TAXIS,100546
North East Lincolnshire Council,http://statistics.data.gov.uk/id/local-authority/00FC),Deputy Chief Executive,Director Of Childrens Services,Access And Education Services,Contract Hire-Operating Leases,Vehicles - Contract Hire,JC101,22/01/2018,499822,840,REVENUE,MINICABS CLEETHORPES (LINCS) LTD,102124
North East Lincolnshire Council,http://statistics.data.gov.uk/id/local-authority/00FC),Deputy Chief Executive,Director Of Childrens Services,Access And Education Services,Contract Hire-Operating Leases,Vehicles - Contract Hire,JC101,22/01/2018,499836,820,REVENUE,AMVALE LIMITED,101030
North East Lincolnshire Council,http://statistics.data.gov.uk/id/local-authority/00FC),Deputy Chief Executive,Director Of Childrens Services,Access And Education Services,Contract Hire-Operating Leases,Vehicles - Contract Hire,JC101,22/01/2018,499854,820,REVENUE,AMVALE LIMITED,101030
North East Lincolnshire Council,http://statistics.data.gov.uk/id/local-authority/00FC),Deputy Chief Executive,Director Of Childrens Services,Access And Education Services,Contract Hire-Operating Leases,Vehicles - Contract Hire,JC101,25/01/2018,500295,700,REVENUE,COXONS CARS LIMITED,100578
North East Lincolnshire Council,http://statistics.data.gov.uk/id/local-authority/00FC),Deputy Chief Executive,Director Of Childrens Services,Access And Education Services,Contract Hire-Operating Leases,Vehicles - Contract Hire,JC101,22/01/2018,499802,660,REVENUE,LINKS TAXIS,100546
North East Lincolnshire Council,http://statistics.data.gov.uk/id/local-authority/00FC),Deputy Chief Executive,Director Of Childrens Services,Access And Education Services,Contract Hire-Operating Leases,Vehicles - Contract Hire,JC101,23/01/2018,499902,980,REVENUE,MINICABS CLEETHORPES (LINCS) LTD,102124
North East Lincolnshire Council,http://statistics.data.gov.uk/id/local-authority/00FC),Deputy Chief Executive,Director Of Childrens Services,Access And Education Services,Contract Hire-Operating Leases,Vehicles - Contract Hire,JC101,22/01/2018,499834,2240,REVENUE,AMVALE MEDICAL TRANSPORT LTD,130777
North East Lincolnshire Council,http://statistics.data.gov.uk/id/local-authority/00FC),Deputy Chief Executive,Director Of Childrens Services,Access And Education Services,Contract Hire-Operating Leases,Vehicles - Contract Hire,JC101,22/01/2018,499792,840,REVENUE,LINKS TAXIS,100546
North East Lincolnshire Council,http://statistics.data.gov.uk/id/local-authority/00FC),Deputy Chief Executive,Director Of Childrens Services,Access And Education Services,Contract Hire-Operating Leases,Vehicles - Contract Hire,JC101,22/01/2018,499818,1092,REVENUE,MINICABS CLEETHORPES (LINCS) LTD,102124
North East Lincolnshire Council,http://statistics.data.gov.uk/id/local-authority/00FC),Deputy Chief Executive,Director Of Childrens Services,Access And Education Services,Contract Hire-Operating Leases,Vehicles - Contract Hire,JC101,22/01/2018,499748,1372,REVENUE,LINKS TAXIS,100546
North East Lincolnshire Council,http://statistics.data.gov.uk/id/local-authority/00FC),Deputy Chief Executive,Director Of Childrens Services,Access And Education Services,Contract Hire-Operating Leases,Vehicles - Contract Hire,JC101,22/01/2018,499753,1092,REVENUE,LINKS TAXIS,100546
North East Lincolnshire Council,http://statistics.data.gov.uk/id/local-authority/00FC),Deputy Chief Executive,Director Of Childrens Services,Access And Education Services,Contract Hire-Operating Leases,Vehicles - Contract Hire,JC101,22/01/2018,499835,2961,REVENUE,AMVALE MEDICAL TRANSPORT LTD,130777
North East Lincolnshire Council,http://statistics.data.gov.uk/id/local-authority/00FC),Deputy Chief Executive,Director Of Childrens Services,Access And Education Services,Contract Hire-Operating Leases,Vehicles - Contract Hire,JC101,22/01/2018,499831,3440,REVENUE,AMVALE MEDICAL TRANSPORT LTD,130777
North East Lincolnshire Council,http://statistics.data.gov.uk/id/local-authority/00FC),Deputy Chief Executive,Director Of Childrens Services,Access And Education Services,Contract Hire-Operating Leases,Vehicles - Contract Hire,JC101,22/01/2018,499789,1312.5,REVENUE,LINKS TAXIS,100546
North East Lincolnshire Council,http://statistics.data.gov.uk/id/local-authority/00FC),Deputy Chief Executive,Director Of Childrens Services,Access And Education Services,Contract Hire-Operating Leases,Vehicles - Contract Hire,JC101,22/01/2018,499807,399,REVENUE,LINKS TAXIS,100546
North East Lincolnshire Council,http://statistics.data.gov.uk/id/local-authority/00FC),Deputy Chief Executive,Director Of Childrens Services,Access And Education Services,Contract Hire-Operating Leases,Vehicles - Contract Hire,JC101,22/01/2018,499805,602,REVENUE,LINKS TAXIS,100546
North East Lincolnshire Council,http://statistics.data.gov.uk/id/local-authority/00FC),Deputy Chief Executive,Director Of Childrens Services,Access And Education Services,Contract Hire-Operating Leases,Vehicles - Contract Hire,JC101,23/01/2018,499903,3038,REVENUE,AMVALE MEDICAL TRANSPORT LTD,130777
North East Lincolnshire Council,http://statistics.data.gov.uk/id/local-authority/00FC),Deputy Chief Executive,Director Of Childrens Services,Access And Education Services,Contract Hire-Operating Leases,Vehicles - Contract Hire,JC101,22/01/2018,499800,1190,REVENUE,LINKS TAXIS,100546
North East Lincolnshire Council,http://statistics.data.gov.uk/id/local-authority/00FC),Deputy Chief Executive,Director Of Childrens Services,Access And Education Services,Contract Hire-Operating Leases,Vehicles - Contract Hire,JC101,22/01/2018,499845,658,REVENUE,AA RADIO CARS LTD,101222
North East Lincolnshire Council,http://statistics.data.gov.uk/id/local-authority/00FC),Deputy Chief Executive,Director Of Childrens Services,Access And Education Services,Contract Hire-Operating Leases,Vehicles - Contract Hire,JC101,22/01/2018,499837,820,REVENUE,AMVALE LIMITED,101030
North East Lincolnshire Council,http://statistics.data.gov.uk/id/local-authority/00FC),Deputy Chief Executive,Director Of Childrens Services,Access And Education Services,Contract Hire-Operating Leases,Vehicles - Contract Hire,JC101,23/01/2018,499910,840,REVENUE,AIRPORT TRAVEL,131928
North East Lincolnshire Council,http://statistics.data.gov.uk/id/local-authority/00FC),Deputy Chief Executive,Director Of Childrens Services,Access And Education Services,Contract Hire-Operating Leases,Vehicles - Contract Hire,JC101,25/01/2018,500358,690,REVENUE,COXONS CARS LIMITED,100578
North East Lincolnshire Council,http://statistics.data.gov.uk/id/local-authority/00FC),Deputy Chief Executive,Director Of Childrens Services,Access And Education Services,Contract Hire-Operating Leases,Vehicles - Contract Hire,JC101,22/01/2018,499820,700,REVENUE,MINICABS CLEETHORPES (LINCS) LTD,102124
North East Lincolnshire Council,http://statistics.data.gov.uk/id/local-authority/00FC),Deputy Chief Executive,Director Of Childrens Services,Access And Education Services,Contract Hire-Operating Leases,Vehicles - Contract Hire,JC101,22/01/2018,499793,1014,REVENUE,LINKS TAXIS,100546
North East Lincolnshire Council,http://statistics.data.gov.uk/id/local-authority/00FC),Deputy Chief Executive,Director Of Childrens Services,Access And Education Services,Contract Hire-Operating Leases,Vehicles - Contract Hire,JC101,23/01/2018,499904,1400,REVENUE,AMVALE MEDICAL TRANSPORT LTD,130777
North East Lincolnshire Council,http://statistics.data.gov.uk/id/local-authority/00FC),Deputy Chief Executive,Director Of Childrens Services,Access And Education Services,Contract Hire-Operating Leases,Vehicles - Contract Hire,JC101,22/01/2018,499791,1162,REVENUE,LINKS TAXIS,100546
North East Lincolnshire Council,http://statistics.data.gov.uk/id/local-authority/00FC),Deputy Chief Executive,Director Of Childrens Services,Access And Education Services,Contract Hire-Operating Leases,Vehicles - Contract Hire,JC101,22/01/2018,499754,312.5,REVENUE,LINKS TAXIS,100546
North East Lincolnshire Council,http://statistics.data.gov.uk/id/local-authority/00FC),Deputy Chief Executive,Director Of Childrens Services,Access And Education Services,Contract Hire-Operating Leases,Vehicles - Contract Hire,JC101,29/01/2018,500770,288,REVENUE,COXONS CARS LIMITED,100578
North East Lincolnshire Council,http://statistics.data.gov.uk/id/local-authority/00FC),Deputy Chief Executive,Director Of Childrens Services,Access And Education Services,Contract Hire-Operating Leases,Vehicles - Contract Hire,JC101,25/01/2018,500354,392,REVENUE,COXONS CARS LIMITED,100578
North East Lincolnshire Council,http://statistics.data.gov.uk/id/local-authority/00FC),Deputy Chief Executive,Director Of Childrens Services,Access And Education Services,Contract Hire-Operating Leases,Vehicles - Contract Hire,JC101,22/01/2018,499819,910,REVENUE,MINICABS CLEETHORPES (LINCS) LTD,102124
North East Lincolnshire Council,http://statistics.data.gov.uk/id/local-authority/00FC),Deputy Chief Executive,Director Of Childrens Services,Access And Education Services,Contract Hire-Operating Leases,Vehicles - Contract Hire,JC101,22/01/2018,499752,1209,REVENUE,LINKS TAXIS,100546
North East Lincolnshire Council,http://statistics.data.gov.uk/id/local-authority/00FC),Deputy Chief Executive,Director Of Childrens Services,Access And Education Services,Contract Hire-Operating Leases,Vehicles - Contract Hire,JC101,23/01/2018,499909,525,REVENUE,AIRPORT TRAVEL,101208
North East Lincolnshire Council,http://statistics.data.gov.uk/id/local-authority/00FC),Deputy Chief Executive,Director Of Childrens Services,Access And Education Services,Contract Hire-Operating Leases,Vehicles - Contract Hire,JC101,22/01/2018,499855,325.5,REVENUE,LINKS TAXIS,100546
North East Lincolnshire Council,http://statistics.data.gov.uk/id/local-authority/00FC),Deputy Chief Executive,Director Of Childrens Services,Access And Education Services,Contract Hire-Operating Leases,Vehicles - Contract Hire,JC101,22/01/2018,499745,559,REVENUE,LINKS TAXIS,100546
North East Lincolnshire Council,http://statistics.data.gov.uk/id/local-authority/00FC),Deputy Chief Executive,Director Of Childrens Services,Access And Education Services,Contract Hire-Operating Leases,Vehicles - Contract Hire,JC101,22/01/2018,499790,1442,REVENUE,LINKS TAXIS,100546
North East Lincolnshire Council,http://statistics.data.gov.uk/id/local-authority/00FC),Deputy Chief Executive,Director Of Childrens Services,Access And Education Services,Contract Hire-Operating Leases,Vehicles - Contract Hire,JC101,22/01/2018,499857,665,REVENUE,LINKS TAXIS,100546
North East Lincolnshire Council,http://statistics.data.gov.uk/id/local-authority/00FC),Deputy Chief Executive,Director Of Childrens Services,Access And Education Services,Contract Hire-Operating Leases,Vehicles - Contract Hire,JC101,22/01/2018,499801,660,REVENUE,LINKS TAXIS,100546
North East Lincolnshire Council,http://statistics.data.gov.uk/id/local-authority/00FC),Deputy Chief Executive,Director Of Childrens Services,Access And Education Services,Contract Hire-Operating Leases,Vehicles - Contract Hire,JC101,22/01/2018,499839,564,REVENUE,AA RADIO CARS LTD,101222
North East Lincolnshire Council,http://statistics.data.gov.uk/id/local-authority/00FC),Deputy Chief Executive,Director Of Childrens Services,Access And Education Services,Contract Hire-Operating Leases,Vehicles - Contract Hire,JC101,23/01/2018,499918,728,REVENUE,WHEELCHAIR FRIENDLY TAXI SERVICE,101915
North East Lincolnshire Council,http://statistics.data.gov.uk/id/local-authority/00FC),Deputy Chief Executive,Director Of Childrens Services,Access And Education Services,Contract Hire-Operating Leases,Vehicles - Contract Hire,JC101,22/01/2018,499795,429,REVENUE,LINKS TAXIS,100546
North East Lincolnshire Council,http://statistics.data.gov.uk/id/local-authority/00FC),Deputy Chief Executive,Director Of Childrens Services,Access And Education Services,Contract Hire-Operating Leases,Vehicles - Contract Hire,JC101,25/01/2018,500347,1605,REVENUE,LOUTH TAXIS LTD T/A AJZ CARS,138018
North East Lincolnshire Council,http://statistics.data.gov.uk/id/local-authority/00FC),Deputy Chief Executive,Director Of Childrens Services,Access And Education Services,Contract Hire-Operating Leases,Vehicles - Contract Hire,JC101,23/01/2018,499914,1680,REVENUE,THE BUS RUN,101522
North East Lincolnshire Council,http://statistics.data.gov.uk/id/local-authority/00FC),Deputy Chief Executive,Director Of Childrens Services,Access And Education Services,Contract Hire-Operating Leases,Vehicles - Contract Hire,JC101,23/01/2018,499905,1330,REVENUE,AMVALE MEDICAL TRANSPORT LTD,130777
North East Lincolnshire Council,http://statistics.data.gov.uk/id/local-authority/00FC),Deputy Chief Executive,Director Of Childrens Services,Access And Education Services,Contract Hire-Operating Leases,Vehicles - Contract Hire,JC101,25/01/2018,500341,312,REVENUE,COXONS CARS LIMITED,100578
North East Lincolnshire Council,http://statistics.data.gov.uk/id/local-authority/00FC),Deputy Chief Executive,Director Of Childrens Services,Access And Education Services,Contributions To Provisions,Contributions - Other,LK103,29/01/2018,564331,771.95,REVENUE,REDACTED PERSONAL INFORMATION,REDACTED PERSONAL INFORMATION
North East Lincolnshire Council,http://statistics.data.gov.uk/id/local-authority/00FC),Deputy Chief Executive,Director Of Childrens Services,Access And Education Services,Direct Employee Expenses,Agency Supply Teachers,EA104,23/01/2018,499889,2045,REVENUE,LISA OLIVER,101318
North East Lincolnshire Council,http://statistics.data.gov.uk/id/local-authority/00FC),Deputy Chief Executive,Director Of Childrens Services,Access And Education Services,Direct Employee Expenses,Agency Supply Teachers,EA104,15/01/2018,498282,3700,REVENUE,MIKE SELLARS,102161
North East Lincolnshire Council,http://statistics.data.gov.uk/id/local-authority/00FC),Deputy Chief Executive,Director Of Childrens Services,Access And Education Services,Direct Employee Expenses,Agency Supply Teachers,EA104,29/01/2018,500780,550,REVENUE,KIM GOODEY,134788
North East Lincolnshire Council,http://statistics.data.gov.uk/id/local-authority/00FC),Deputy Chief Executive,Director Of Childrens Services,Access And Education Services,Services,Internal Sla'S,LE102,23/01/2018,499888,360,REVENUE,LISA OLIVER,101318
North East Lincolnshire Council,http://statistics.data.gov.uk/id/local-authority/00FC),Deputy Chief Executive,Director Of Childrens Services,Access And Education Services,Miscellaneous Expenses,Other Expenses General,LL119,11/01/2018,498723,370,REVENUE,NORMANS (BURTON ON TRENT) LTD,101490
North East Lincolnshire Council,http://statistics.data.gov.uk/id/local-authority/00FC),Deputy Chief Executive,Director Of Childrens Services,Access And Education Services,Miscellaneous Expenses,Other Expenses General,LL119,11/01/2018,498725,264,REVENUE,NORMANS (BURTON ON TRENT) LTD,101490
North East Lincolnshire Council,http://statistics.data.gov.uk/id/local-authority/00FC),Deputy Chief Executive,Director Of Childrens Services,Access And Education Services,Other Agencies,Other,PJ121,16/01/2018,499071,1400,REVENUE,EMMA MIDDLETON,105103
North East Lincolnshire Council,http://statistics.data.gov.uk/id/local-authority/00FC),Deputy Chief Executive,Director Of Childrens Services,Access And Education Services,Other Agencies,Other,PJ121,29/01/2018,500790,1400,REVENUE,EMMA MIDDLETON,105103
North East Lincolnshire Council,http://statistics.data.gov.uk/id/local-authority/00FC),Deputy Chief Executive,Director Of Childrens Services,Access And Education Services,Other Agencies,Performers,PJ101,08/01/2018,497720,270,REVENUE,LISA OLIVER,101318
North East Lincolnshire Council,http://statistics.data.gov.uk/id/local-authority/00FC),Deputy Chief Executive,Director Of Childrens Services,Access And Education Services,Other Agencies,Performers,PJ101,25/01/2018,500394,360,REVENUE,JOSIE ANNE CRESCENT MOON (JOSIE MOON),105805
North East Lincolnshire Council,http://statistics.data.gov.uk/id/local-authority/00FC),Deputy Chief Executive,Director Of Childrens Services,Access And Education Services,Consultancy,Consultancy,PL101,23/01/2018,500026,2000,REVENUE,LOUDER THAN LIFE,107191
North East Lincolnshire Council,http://statistics.data.gov.uk/id/local-authority/00FC),Deputy Chief Executive,Director Of Childrens Services,Access And Education Services,Other Agencies,Additional Cost,PJ114,23/01/2018,563410,600,REVENUE,REDACTED PERSONAL INFORMATION,REDACTED PERSONAL INFORMATION
North East Lincolnshire Council,http://statistics.data.gov.uk/id/local-authority/00FC),Deputy Chief Executive,Director Of Childrens Services,Access And Education Services,Other Agencies,Tuition,PJ112,11/01/2018,498355,7125,REVENUE,ORCHARD TRAINING & EDUCATION LTD,101643
North East Lincolnshire Council,http://statistics.data.gov.uk/id/local-authority/00FC),Deputy Chief Executive,Director Of Childrens Services,Access And Education Services,Other Agencies,Tuition,PJ112,23/01/2018,499880,330,REVENUE,BEST FUTURES COMMUNITY INTEREST COMPANY,128600
North East Lincolnshire Council,http://statistics.data.gov.uk/id/local-authority/00FC),Deputy Chief Executive,Director Of Childrens Services,Access And Education Services,Other Agencies,Tuition,PJ112,23/01/2018,499879,1050,REVENUE,BEST FUTURES COMMUNITY INTEREST COMPANY,128600
North East Lincolnshire Council,http://statistics.data.gov.uk/id/local-authority/00FC),Deputy Chief Executive,Director Of Childrens Services,Access And Education Services,Other Agencies,Tuition,PJ112,23/01/2018,499878,708,REVENUE,STAGECOACH THEATRE ARTS SCHOOL,126791
North East Lincolnshire Council,http://statistics.data.gov.uk/id/local-authority/00FC),Deputy Chief Executive,Director Of Childrens Services,Access And Education Services,Other Agencies,Tuition,PJ112,23/01/2018,499968,1200,REVENUE,BEST FUTURES COMMUNITY INTEREST COMPANY,128600
North East Lincolnshire Council,http://statistics.data.gov.uk/id/local-authority/00FC),Deputy Chief Executive,Director Of Childrens Services,Access And Education Services,Other Agencies,Tuition,PJ112,23/01/2018,499968,2100,REVENUE,BEST FUTURES COMMUNITY INTEREST COMPANY,128600
North East Lincolnshire Council,http://statistics.data.gov.uk/id/local-authority/00FC),Deputy Chief Executive,Director Of Childrens Services,Sen/Inclusion,Contributions To Provisions,Contributions - Other,LK103,25/01/2018,500582,400,REVENUE,THE GRIMSBY INSTITUTE OF FURTHER,102742
North East Lincolnshire Council,http://statistics.data.gov.uk/id/local-authority/00FC),Deputy Chief Executive,Director Of Childrens Services,Sen/Inclusion,Other Local Authorities,Third Pp - Other Local Auth,PC101,08/01/2018,495122,4776.3,REVENUE,REDACTED PERSONAL INFORMATION,REDACTED PERSONAL INFORMATION
North East Lincolnshire Council,http://statistics.data.gov.uk/id/local-authority/00FC),Deputy Chief Executive,Director Of Childrens Services,Sen/Inclusion,Other Local Authorities,Third Pp - Other Local Auth,PC101,25/01/2018,500594,5184,REVENUE,REDACTED PERSONAL INFORMATION,REDACTED PERSONAL INFORMATION
North East Lincolnshire Council,http://statistics.data.gov.uk/id/local-authority/00FC),Deputy Chief Executive,Director Of Childrens Services,Sen/Inclusion,Other Local Authorities,Third Pp - Other Local Auth,PC101,04/01/2018,497511,10063.7,REVENUE,REDACTED PERSONAL INFORMATION,REDACTED PERSONAL INFORMATION
North East Lincolnshire Council,http://statistics.data.gov.uk/id/local-authority/00FC),Deputy Chief Executive,Director Of Childrens Services,Sen/Inclusion,Other Local Authorities,Third Pp - Other Local Auth,PC101,09/01/2018,498562,8005.26,REVENUE,REDACTED PERSONAL INFORMATION,REDACTED PERSONAL INFORMATION
North East Lincolnshire Council,http://statistics.data.gov.uk/id/local-authority/00FC),Deputy Chief Executive,Director Of Childrens Services,Sen/Inclusion,Other Local Authorities,Third Pp - Other Local Auth,PC101,04/01/2018,497506,5093.11,REVENUE,REDACTED PERSONAL INFORMATION,REDACTED PERSONAL INFORMATION
